Workbook

Sheet НАЧАЛО
B1: ЗА ТОЗИ ШАБЛОН
B2: Използвайте тази работна книга за бюджет на разходите на фирмата, за да проследявате планираните и действителните разходи и разликите.
B3: Попълнете име на фирмата и добавете емблема.
B4: Въведете подробните данни в таблиците в работните листове "Планирани разходи" и "Действителни разходи".
B5: Таблиците се актуализират автоматично в работния лист "Разлики в разходите" и диаграмите в работния лист "Анализ на разходите"
B6: Забележка:
B7: Допълнителни инструкции са предоставени в колона A във всеки работен лист. Този текст е скрит нарочно. За да премахнете текста, изберете колона А, след което изберете DELETE. За да покажете текст, изберете колона A, след което променете цвета на шрифта.
B8: За да научите повече за таблиците, натиснете SHIFT и след това F10 в таблица, изберете опцията ТАБЛИЦА, след което изберете АЛТЕРНАТИВЕН ТЕКСТ

Sheet ПЛАНИРАНИ РАЗХОДИ
A1: Въведете планираните разходи за служители, офис, маркетинг и обучения или пътувания в съответните таблици в този работен лист. Общи суми се изчисляват автоматично. Полезни инструкции как да използвате този работен лист, можете да намерите в клетките в тази колона. Натиснете стрелката надолу, за да започнете.
A2: Въведете име на фирмата в клетката отдясно и добавете емблема в клетка N2. Заглавието на този работен лист е в клетка K2. | B2: Име на фирмата | K2: Подробни прогнози за разходите | N2: Контейнерът за емблемата е в тази клетка.
A3: Пояснението е в клетка K3. | K3: Оцветените клетки се изчисляват.
A4: Етикетът "Планирани разходи" е в клетката отдясно, месеците – в клетки от C4 до N4, етикетът "Година" – в О4, а инструкциите как да използвате този шаблон – в клетка R4. | B4: ПЛАНИРАНИ РАЗХОДИ | C4: ЯНР | D4: ФЕВ | E4: МАР | F4: АПР | G4: МАЙ | H4: ЮНИ | I4: ЮЛИ | J4: АВГ | K4: СЕПТ | L4: ОКТ | M4: НОЕ | N4: ДЕК | O4: ГОДИНА | R4: Пояснение: КАК СЕ ИЗПОЛЗВА ТОЗИ ШАБЛОН Въведете данни в белите клетки в работните листове ПЛАНИРАНИ РАЗХОДИ и ДЕЙСТВИТЕЛНИ РАЗХОДИ, а РАЗЛИКИ В РАЗХОДИТЕ и АНАЛИЗ НА РАЗХОДИТЕ ще бъдат изчислени за вас. Ако добавите ред в един лист, другите листове трябва да съвпадат.
A5: Въведете разходи за служители в таблицата "Планирани за служители", започваща от клетката вдясно. Следващата инструкция е в клетка A10. | B5: Разходи за служители | C5: Янр | D5: Фев | E5: Мар | F5: Апр | G5: Май | H5: Юни | I5: Юли | J5: Авг | K5: Сеп | L5: Окт | M5: Ное | N5: Дек | O5: ГОДИНА
B6: Заплати | C6: 85,000.00 лв. | D6: 85,000.00 лв. | E6: 85,000.00 лв. | F6: 87,500.00 лв. | G6: 87,500.00 лв. | H6: 87,500.00 лв. | I6: 87,500.00 лв. | J6: 92,400.00 лв. | K6: 92,400.00 лв. | L6: 92,400.00 лв. | M6: 92,400.00 лв. | N6: 92,400.00 лв. | O6: =SUM(C6:N6) -> 1,067,000.00 лв.
B7: Осигуровки | C7: =C6*0.27 -> 22,950.00 лв. | D7: 22,950.00 лв. | E7: 22,950.00 лв. | F7: 23,625.00 лв. | G7: 23,625.00 лв. | H7: 23,625.00 лв. | I7: 23,625.00 лв. | J7: 24,948.00 лв. | K7: 24,948.00 лв. | L7: 24,948.00 лв. | M7: 24,948.00 лв. | N7: 24,948.00 лв. | O7: =SUM(C7:N7) -> 288,090.00 лв.
B8: Междинна сума | C8: =SUBTOTAL(109,ПланираниЗаСлужители[Янр]) -> 107,950.00 лв. | D8: =SUBTOTAL(109,ПланираниЗаСлужители[Фев]) -> 107,950.00 лв. | E8: =SUBTOTAL(109,ПланираниЗаСлужители[Мар]) -> 107,950.00 лв. | F8: =SUBTOTAL(109,ПланираниЗаСлужители[Апр]) -> 111,125.00 лв. | G8: =SUBTOTAL(109,ПланираниЗаСлужители[Май]) -> 111,125.00 лв. | H8: =SUBTOTAL(109,ПланираниЗаСлужители[Юни]) -> 111,125.00 лв. | I8: =SUBTOTAL(109,ПланираниЗаСлужители[Юли]) -> 111,125.00 лв. | J8: =SUBTOTAL(109,ПланираниЗаСлужители[Авг]) -> 117,348.00 лв. | K8: =SUBTOTAL(109,ПланираниЗаСлужители[Сеп]) -> 117,348.00 лв. | L8: =SUBTOTAL(109,ПланираниЗаСлужители[Окт]) -> 117,348.00 лв. | M8: =SUBTOTAL(109,ПланираниЗаСлужители[Ное]) -> 117,348.00 лв. | N8: =SUBTOTAL(109,ПланираниЗаСлужители[Дек]) -> 117,348.00 лв. | O8: =SUBTOTAL(109,ПланираниЗаСлужители[ГОДИНА]) -> 1,355,090.00 лв.
A10: Въведете разходи за офис в таблицата "Планирани за офис", започваща от клетката вдясно. Следващата инструкция е в клетка A21. | B10: Разходи за офис | C10: Янр | D10: Фев | E10: Мар | F10: Апр | G10: Май | H10: Юни | I10: Юли | J10: Авг | K10: Сеп | L10: Окт | M10: Ное | N10: Дек | O10: ГОДИНА
B11: Наем на офис | C11: 9,800.00 лв. | D11: 9,800.00 лв. | E11: 9,800.00 лв. | F11: 9,800.00 лв. | G11: 9,800.00 лв. | H11: 9,800.00 лв. | I11: 9,800.00 лв. | J11: 9,800.00 лв. | K11: 9,800.00 лв. | L11: 9,800.00 лв. | M11: 9,800.00 лв. | N11: 9,800.00 лв. | O11: =SUM(C11:N11) -> 117,600.00 лв.
B12: Газ | D12: 400.00 лв. | E12: 400.00 лв. | F12: 100.00 лв. | G12: 100.00 лв. | H12: 100.00 лв. | I12: 100.00 лв. | J12: 100.00 лв. | K12: 100.00 лв. | L12: 100.00 лв. | M12: 400.00 лв. | N12: 400.00 лв. | O12: 2,300.00 лв.
B13: Ток | C13: 300.00 лв. | D13: 300.00 лв. | E13: 300.00 лв. | F13: 300.00 лв. | G13: 300.00 лв. | H13: 300.00 лв. | I13: 300.00 лв. | J13: 300.00 лв. | K13: 300.00 лв. | L13: 300.00 лв. | M13: 300.00 лв. | N13: 300.00 лв. | O13: 3,600.00 лв.
B14: Вода | C14: 40.00 лв. | D14: 40.00 лв. | E14: 40.00 лв. | F14: 40.00 лв. | G14: 40.00 лв. | H14: 40.00 лв. | I14: 40.00 лв. | J14: 40.00 лв. | K14: 40.00 лв. | L14: 40.00 лв. | M14: 40.00 лв. | N14: 40.00 лв. | O14: 480.00 лв.
B15: Телефон | C15: 250.00 лв. | D15: 250.00 лв. | E15: 250.00 лв. | F15: 250.00 лв. | G15: 250.00 лв. | H15: 250.00 лв. | I15: 250.00 лв. | J15: 250.00 лв. | K15: 250.00 лв. | L15: 250.00 лв. | M15: 250.00 лв. | N15: 250.00 лв. | O15: 3,000.00 лв.
B16: Достъп до интернет | C16: 180.00 лв. | D16: 180.00 лв. | E16: 180.00 лв. | F16: 180.00 лв. | G16: 180.00 лв. | H16: 180.00 лв. | I16: 180.00 лв. | J16: 180.00 лв. | K16: 180.00 лв. | L16: 180.00 лв. | M16: 180.00 лв. | N16: 180.00 лв. | O16: 2,160.00 лв.
B17: Канцеларски материали | C17: 200.00 лв. | D17: 200.00 лв. | E17: 200.00 лв. | F17: 200.00 лв. | G17: 200.00 лв. | H17: 200.00 лв. | I17: 200.00 лв. | J17: 200.00 лв. | K17: 200.00 лв. | L17: 200.00 лв. | M17: 200.00 лв. | N17: 200.00 лв. | O17: 2,400.00 лв.
B18: Охрана | C18: 600.00 лв. | D18: 600.00 лв. | E18: 600.00 лв. | F18: 600.00 лв. | G18: 600.00 лв. | H18: 600.00 лв. | I18: 600.00 лв. | J18: 600.00 лв. | K18: 600.00 лв. | L18: 600.00 лв. | M18: 600.00 лв. | N18: 600.00 лв. | O18: 7,200.00 лв.
B19: Междинна сума | C19: =SUBTOTAL(109,ПланираниЗаОфис[Янр]) -> 11,370.00 лв. | D19: =SUBTOTAL(109,ПланираниЗаОфис[Фев]) -> 11,770.00 лв. | E19: =SUBTOTAL(109,ПланираниЗаОфис[Мар]) -> 11,770.00 лв. | F19: =SUBTOTAL(109,ПланираниЗаОфис[Апр]) -> 11,470.00 лв. | G19: =SUBTOTAL(109,ПланираниЗаОфис[Май]) -> 11,470.00 лв. | H19: =SUBTOTAL(109,ПланираниЗаОфис[Юни]) -> 11,470.00 лв. | I19: =SUBTOTAL(109,ПланираниЗаОфис[Юли]) -> 11,470.00 лв. | J19: =SUBTOTAL(109,ПланираниЗаОфис[Авг]) -> 11,470.00 лв. | K19: =SUBTOTAL(109,ПланираниЗаОфис[Сеп]) -> 11,470.00 лв. | L19: =SUBTOTAL(109,ПланираниЗаОфис[Окт]) -> 11,470.00 лв. | M19: =SUBTOTAL(109,ПланираниЗаОфис[Ное]) -> 11,770.00 лв. | N19: =SUBTOTAL(109,ПланираниЗаОфис[Дек]) -> 11,770.00 лв. | O19: =SUBTOTAL(109,ПланираниЗаОфис[ГОДИНА]) -> 138,740.00 лв.
A21: Въведете разходите за маркетинг в таблицата "Планирани за маркетинг", започваща от клетката вдясно. Следващата инструкция е в клетка A30. | B21: Разходи за маркетинг | C21: Янр | D21: Фев | E21: Мар | F21: Апр | G21: Май | H21: Юни | I21: Юли | J21: Авг | K21: Сеп | L21: Окт | M21: Ное | N21: Дек | O21: ГОДИНА
B22: Хостинг на уеб сайт | C22: 500.00 лв. | D22: 500.00 лв. | E22: 500.00 лв. | F22: 500.00 лв. | G22: 500.00 лв. | H22: 500.00 лв. | I22: 500.00 лв. | J22: 500.00 лв. | K22: 500.00 лв. | L22: 500.00 лв. | M22: 500.00 лв. | N22: 500.00 лв. | O22: =SUM(C22:N22) -> 6,000.00 лв.
B23: Актуализации на уеб сайт | C23: 200.00 лв. | D23: 200.00 лв. | E23: 200.00 лв. | F23: 200.00 лв. | G23: 200.00 лв. | H23: 1,000.00 лв. | I23: 200.00 лв. | J23: 200.00 лв. | K23: 200.00 лв. | L23: 200.00 лв. | M23: 200.00 лв. | N23: 1,000.00 лв. | O23: 4,000.00 лв.
B24: Подготовка на маркетингови материали | C24: 5,000.00 лв. | D24: 0.00 лв. | E24: 0.00 лв. | F24: 5,000.00 лв. | G24: 0.00 лв. | H24: 0.00 лв. | I24: 5,000.00 лв. | J24: 0.00 лв. | K24: 0.00 лв. | L24: 5,000.00 лв. | M24: 0.00 лв. | N24: 0.00 лв. | O24: 20,000.00 лв.
B25: Печат на маркетингови материали | C25: 200.00 лв. | D25: 200.00 лв. | E25: 200.00 лв. | F25: 200.00 лв. | G25: 200.00 лв. | H25: 200.00 лв. | I25: 200.00 лв. | J25: 200.00 лв. | K25: 200.00 лв. | L25: 200.00 лв. | M25: 200.00 лв. | N25: 200.00 лв. | O25: 2,400.00 лв.
B26: Маркетингови събития | C26: 2,000.00 лв. | D26: 2,000.00 лв. | E26: 2,000.00 лв. | F26: 5,000.00 лв. | G26: 2,000.00 лв. | H26: 2,000.00 лв. | I26: 2,000.00 лв. | J26: 5,000.00 лв. | K26: 2,000.00 лв. | L26: 2,000.00 лв. | M26: 2,000.00 лв. | N26: 5,000.00 лв. | O26: 33,000.00 лв.
B27: Разни разходи | C27: 200.00 лв. | D27: 200.00 лв. | E27: 200.00 лв. | F27: 200.00 лв. | G27: 200.00 лв. | H27: 200.00 лв. | I27: 200.00 лв. | J27: 200.00 лв. | K27: 200.00 лв. | L27: 200.00 лв. | M27: 200.00 лв. | N27: 200.00 лв. | O27: 2,400.00 лв.
B28: Междинна сума | C28: =SUBTOTAL(109,ПланираниЗаМаркетинг[Янр]) -> 8,100.00 лв. | D28: =SUBTOTAL(109,ПланираниЗаМаркетинг[Фев]) -> 3,100.00 лв. | E28: =SUBTOTAL(109,ПланираниЗаМаркетинг[Мар]) -> 3,100.00 лв. | F28: =SUBTOTAL(109,ПланираниЗаМаркетинг[Апр]) -> 11,100.00 лв. | G28: =SUBTOTAL(109,ПланираниЗаМаркетинг[Май]) -> 3,100.00 лв. | H28: =SUBTOTAL(109,ПланираниЗаМаркетинг[Юни]) -> 3,900.00 лв. | I28: =SUBTOTAL(109,ПланираниЗаМаркетинг[Юли]) -> 8,100.00 лв. | J28: =SUBTOTAL(109,ПланираниЗаМаркетинг[Авг]) -> 6,100.00 лв. | K28: =SUBTOTAL(109,ПланираниЗаМаркетинг[Сеп]) -> 3,100.00 лв. | L28: =SUBTOTAL(109,ПланираниЗаМаркетинг[Окт]) -> 8,100.00 лв. | M28: =SUBTOTAL(109,ПланираниЗаМаркетинг[Ное]) -> 3,100.00 лв. | N28: =SUBTOTAL(109,ПланираниЗаМаркетинг[Дек]) -> 6,900.00 лв. | O28: =SUBTOTAL(109,ПланираниЗаМаркетинг[ГОДИНА]) -> 67,800.00 лв.
A30: Въведете разходите за обучения и пътувания в таблицата "Планирани за обучения и пътувания", започваща от клетката вдясно. Следващата инструкция е в клетка A35. | B30: Обучения/пътувания | C30: Янр | D30: Фев | E30: Мар | F30: Апр | G30: Май | H30: Юни | I30: Юли | J30: Авг | K30: Сеп | L30: Окт | M30: Ное | N30: Дек | O30: ГОДИНА
B31: Курсове за обучение | C31: 2,000.00 лв. | D31: 2,000.00 лв. | E31: 2,000.00 лв. | F31: 2,000.00 лв. | G31: 2,000.00 лв. | H31: 2,000.00 лв. | I31: 2,000.00 лв. | J31: 2,000.00 лв. | K31: 2,000.00 лв. | L31: 2,000.00 лв. | M31: 2,000.00 лв. | N31: 2,000.00 лв. | O31: =SUM(C31:N31) -> 24,000.00 лв.
B32: Пътни разходи, свързани с обучение | C32: 2,000.00 лв. | D32: 2,000.00 лв. | E32: 2,000.00 лв. | F32: 2,000.00 лв. | G32: 2,000.00 лв. | H32: 2,000.00 лв. | I32: 2,000.00 лв. | J32: 2,000.00 лв. | K32: 2,000.00 лв. | L32: 2,000.00 лв. | M32: 2,000.00 лв. | N32: 2,000.00 лв. | O32: =SUM(C32:N32) -> 24,000.00 лв.
B33: Междинна сума | C33: =SUBTOTAL(109,ПланираниЗаОбученияИПътувания[Янр]) -> 4,000.00 лв. | D33: =SUBTOTAL(109,ПланираниЗаОбученияИПътувания[Фев]) -> 4,000.00 лв. | E33: =SUBTOTAL(109,ПланираниЗаОбученияИПътувания[Мар]) -> 4,000.00 лв. | F33: =SUBTOTAL(109,ПланираниЗаОбученияИПътувания[Апр]) -> 4,000.00 лв. | G33: =SUBTOTAL(109,ПланираниЗаОбученияИПътувания[Май]) -> 4,000.00 лв. | H33: =SUBTOTAL(109,ПланираниЗаОбученияИПътувания[Юни]) -> 4,000.00 лв. | I33: =SUBTOTAL(109,ПланираниЗаОбученияИПътувания[Юли]) -> 4,000.00 лв. | J33: =SUBTOTAL(109,ПланираниЗаОбученияИПътувания[Авг]) -> 4,000.00 лв. | K33: =SUBTOTAL(109,ПланираниЗаОбученияИПътувания[Сеп]) -> 4,000.00 лв. | L33: =SUBTOTAL(109,ПланираниЗаОбученияИПътувания[Окт]) -> 4,000.00 лв. | M33: =SUBTOTAL(109,ПланираниЗаОбученияИПътувания[Ное]) -> 4,000.00 лв. | N33: =SUBTOTAL(109,ПланираниЗаОбученияИПътувания[Дек]) -> 4,000.00 лв. | O33: =SUBTOTAL(109,ПланираниЗаОбученияИПътувания[ГОДИНА]) -> 48,000.00 лв.
A35: Общи суми се изчисляват автоматично в таблицата "Общо планирани", започваща от клетката вдясно. | B35: ОБЩИ СУМИ | C35: Янр | D35: Фев | E35: Мар | F35: Апр | G35: Май | H35: Юни | I35: Юли | J35: Авг | K35: Сеп | L35: Окт | M35: Ное | N35: Дек | O35: Година
B36: Месечни планирани разходи | C36: =ПланираниЗаОбученияИПътувания[[#Totals],[Янр]]+ПланираниЗаМаркетинг[[#Totals],[Янр]]+ПланираниЗаОфис[[#Totals],[Янр]]+ПланираниЗаСлужители[[#Totals],[Янр]] -> 131,420.00 лв. | D36: =ПланираниЗаОбученияИПътувания[[#Totals],[Фев]]+ПланираниЗаМаркетинг[[#Totals],[Фев]]+ПланираниЗаОфис[[#Totals],[Фев]]+ПланираниЗаСлужители[[#Totals],[Фев]] -> 126,820.00 лв. | E36: =ПланираниЗаОбученияИПътувания[[#Totals],[Мар]]+ПланираниЗаМаркетинг[[#Totals],[Мар]]+ПланираниЗаОфис[[#Totals],[Мар]]+ПланираниЗаСлужители[[#Totals],[Мар]] -> 126,820.00 лв. | F36: =ПланираниЗаОбученияИПътувания[[#Totals],[Апр]]+ПланираниЗаМаркетинг[[#Totals],[Апр]]+ПланираниЗаОфис[[#Totals],[Апр]]+ПланираниЗаСлужители[[#Totals],[Апр]] -> 137,695.00 лв. | G36: =ПланираниЗаОбученияИПътувания[[#Totals],[Май]]+ПланираниЗаМаркетинг[[#Totals],[Май]]+ПланираниЗаОфис[[#Totals],[Май]]+ПланираниЗаСлужители[[#Totals],[Май]] -> 129,695.00 лв. | H36: =ПланираниЗаОбученияИПътувания[[#Totals],[Юни]]+ПланираниЗаМаркетинг[[#Totals],[Юни]]+ПланираниЗаОфис[[#Totals],[Юни]]+ПланираниЗаСлужители[[#Totals],[Юни]] -> 130,495.00 лв. | I36: =ПланираниЗаОбученияИПътувания[[#Totals],[Юли]]+ПланираниЗаМаркетинг[[#Totals],[Юли]]+ПланираниЗаОфис[[#Totals],[Юли]]+ПланираниЗаСлужители[[#Totals],[Юли]] -> 134,695.00 лв. | J36: =ПланираниЗаОбученияИПътувания[[#Totals],[Авг]]+ПланираниЗаМаркетинг[[#Totals],[Авг]]+ПланираниЗаОфис[[#Totals],[Авг]]+ПланираниЗаСлужители[[#Totals],[Авг]] -> 138,918.00 лв. | K36: =ПланираниЗаОбученияИПътувания[[#Totals],[Сеп]]+ПланираниЗаМаркетинг[[#Totals],[Сеп]]+ПланираниЗаОфис[[#Totals],[Сеп]]+ПланираниЗаСлужители[[#Totals],[Сеп]] -> 135,918.00 лв. | L36: =ПланираниЗаОбученияИПътувания[[#Totals],[Окт]]+ПланираниЗаМаркетинг[[#Totals],[Окт]]+ПланираниЗаОфис[[#Totals],[Окт]]+ПланираниЗаСлужители[[#Totals],[Окт]] -> 140,918.00 лв. | M36: =ПланираниЗаОбученияИПътувания[[#Totals],[Ное]]+ПланираниЗаМаркетинг[[#Totals],[Ное]]+ПланираниЗаОфис[[#Totals],[Ное]]+ПланираниЗаСлужители[[#Totals],[Ное]] -> 136,218.00 лв. | N36: =ПланираниЗаОбученияИПътувания[[#Totals],[Дек]]+ПланираниЗаМаркетинг[[#Totals],[Дек]]+ПланираниЗаОфис[[#Totals],[Дек]]+ПланираниЗаСлужители[[#Totals],[Дек]] -> 140,018.00 лв. | O36: =ПланираниЗаОбученияИПътувания[[#Totals],[ГОДИНА]]+ПланираниЗаМаркетинг[[#Totals],[ГОДИНА]]+ПланираниЗаОфис[[#Totals],[ГОДИНА]]+ПланираниЗаСлужители[[#Totals],[ГОДИНА]] -> 1,609,630.00 лв.
B37: ОБЩИ планирани разходи | C37: =SUM($C$36:C36) -> 131,420.00 лв. | D37: =SUM($C$36:D36) -> 258,240.00 лв. | E37: =SUM($C$36:E36) -> 385,060.00 лв. | F37: =SUM($C$36:F36) -> 522,755.00 лв. | G37: =SUM($C$36:G36) -> 652,450.00 лв. | H37: =SUM($C$36:H36) -> 782,945.00 лв. | I37: =SUM($C$36:I36) -> 917,640.00 лв. | J37: =SUM($C$36:J36) -> 1,056,558.00 лв. | K37: =SUM($C$36:K36) -> 1,192,476.00 лв. | L37: =SUM($C$36:L36) -> 1,333,394.00 лв. | M37: =SUM($C$36:M36) -> 1,469,612.00 лв. | N37: =SUM($C$36:N36) -> 1,609,630.00 лв.

Sheet ДЕЙСТВИТЕЛНИ РАЗХОДИ
A1: Въведете действителните разходи за служители, офис, маркетинг и обучения или пътувания в съответните таблици в този работен лист. Общи суми се изчисляват автоматично. Полезни инструкции как да използвате този работен лист, можете да намерите в клетките в тази колона. Натиснете стрелката надолу, за да започнете.
A2: Име на фирмата се актуализира автоматично в клетката отдясно. Заглавието на този работен лист е в клетка K2. Добавете емблема в клетка N2. | B2: ='ПЛАНИРАНИ РАЗХОДИ'!B2:D3 -> Име на фирмата | K2: =заглавие_работен_лист -> Подробни прогнози за разходите | N2: Контейнерът за емблемата е в тази клетка.
A3: Пояснението е в клетка K3. | K3: Оцветените клетки се изчисляват.
A4: Етикетът "Действителни разходи" е в клетката отдясно, месеците – в клетки от C4 до N4, а етикетът "Година" – в O4. | B4: ДЕЙСТВИТЕЛНИ РАЗХОДИ | C4: ЯНР | D4: ФЕВ | E4: МАР | F4: АПР | G4: МАЙ | H4: ЮНИ | I4: ЮЛИ | J4: АВГ | K4: СЕПТ | L4: ОКТ | M4: НОЕ | N4: ДЕК | O4: ГОДИНА
A5: Въведете разходи за служители в таблицата "Действителни за служители", започваща от клетката вдясно. Следващата инструкция е в клетка A10. | B5: Разходи за служители | C5: Янр | D5: Фев | E5: Мар | F5: Апр | G5: Май | H5: Юни | I5: Юли | J5: Авг | K5: Сеп | L5: Окт | M5: Ное | N5: Дек | O5: ГОДИНА
B6: Заплати | C6: 85,000.00 лв. | D6: 85,000.00 лв. | E6: 85,000.00 лв. | F6: 88,000.00 лв. | G6: 88,000.00 лв. | H6: 88,000.00 лв. | O6: =SUM(C6:N6) -> 519,000.00 лв.
B7: Осигуровки | C7: =C6*0.27 -> 22,950.00 лв. | D7: 22,950.00 лв. | E7: 22,950.00 лв. | F7: 23,760.00 лв. | G7: 23,760.00 лв. | H7: 23,760.00 лв. | I7: 0.00 лв. | J7: 0.00 лв. | K7: 0.00 лв. | L7: 0.00 лв. | M7: 0.00 лв. | N7: 0.00 лв. | O7: =SUM(C7:N7) -> 140,130.00 лв.
B8: Междинна сума | C8: =SUBTOTAL(109,ДействителниЗаСлужители[Янр]) -> 107,950.00 лв. | D8: =SUBTOTAL(109,ДействителниЗаСлужители[Фев]) -> 107,950.00 лв. | E8: =SUBTOTAL(109,ДействителниЗаСлужители[Мар]) -> 107,950.00 лв. | F8: =SUBTOTAL(109,ДействителниЗаСлужители[Апр]) -> 111,760.00 лв. | G8: =SUBTOTAL(109,ДействителниЗаСлужители[Май]) -> 111,760.00 лв. | H8: =SUBTOTAL(109,ДействителниЗаСлужители[Юни]) -> 111,760.00 лв. | I8: =SUBTOTAL(109,ДействителниЗаСлужители[Юли]) -> 0.00 лв. | J8: =SUBTOTAL(109,ДействителниЗаСлужители[Авг]) -> 0.00 лв. | K8: =SUBTOTAL(109,ДействителниЗаСлужители[Сеп]) -> 0.00 лв. | L8: =SUBTOTAL(109,ДействителниЗаСлужители[Окт]) -> 0.00 лв. | M8: =SUBTOTAL(109,ДействителниЗаСлужители[Ное]) -> 0.00 лв. | N8: =SUBTOTAL(109,ДействителниЗаСлужители[Дек]) -> 0.00 лв. | O8: =SUBTOTAL(109,ДействителниЗаСлужители[ГОДИНА]) -> 659,130.00 лв.
A10: Въведете разходи за офис в таблицата "Действители за офис", започваща от клетката вдясно. Следващата инструкция е в клетка A21. | B10: Разходи за офис | C10: Янр | D10: Фев | E10: Мар | F10: Апр | G10: Май | H10: Юни | I10: Юли | J10: Авг | K10: Сеп | L10: Окт | M10: Ное | N10: Дек | O10: ГОДИНА
B11: Наем на офис | C11: 9,800.00 лв. | D11: 9,800.00 лв. | E11: 9,800.00 лв. | F11: 9,800.00 лв. | G11: 9,800.00 лв. | H11: 9,800.00 лв. | O11: =SUM(C11:N11) -> 58,800.00 лв.
B12: Газ | C12: 4.00 лв. | D12: 430.00 лв. | E12: 385.00 лв. | F12: 230.00 лв. | G12: 87.00 лв. | H12: 88.00 лв. | O12: 1,224.00 лв.
B13: Ток | C13: 288.00 лв. | D13: 278.00 лв. | E13: 268.00 лв. | F13: 299.00 лв. | G13: 306.00 лв. | H13: 290.00 лв. | O13: 1,729.00 лв.
B14: Вода | C14: 35.00 лв. | D14: 33.00 лв. | E14: 34.00 лв. | F14: 36.00 лв. | G14: 34.00 лв. | H14: 36.00 лв. | O14: 208.00 лв.
B15: Телефон | C15: 224.00 лв. | D15: 235.00 лв. | E15: 265.00 лв. | F15: 245.00 лв. | G15: 245.00 лв. | H15: 220.00 лв. | O15: 1,434.00 лв.
B16: Достъп до интернет | C16: 180.00 лв. | D16: 180.00 лв. | E16: 180.00 лв. | F16: 180.00 лв. | G16: 180.00 лв. | H16: 180.00 лв. | O16: 1,080.00 лв.
B17: Канцеларски материали | C17: 256.00 лв. | D17: 142.00 лв. | E17: 160.00 лв. | F17: 221.00 лв. | G17: 256.00 лв. | H17: 240.00 лв. | O17: 1,275.00 лв.
B18: Охрана | C18: 600.00 лв. | D18: 600.00 лв. | E18: 600.00 лв. | F18: 600.00 лв. | G18: 600.00 лв. | H18: 600.00 лв. | O18: 3,600.00 лв.
B19: Междинна сума | C19: =SUBTOTAL(109,ДействителиЗаОфис[Янр]) -> 11,387.00 лв. | D19: =SUBTOTAL(109,ДействителиЗаОфис[Фев]) -> 11,698.00 лв. | E19: =SUBTOTAL(109,ДействителиЗаОфис[Мар]) -> 11,692.00 лв. | F19: =SUBTOTAL(109,ДействителиЗаОфис[Апр]) -> 11,611.00 лв. | G19: =SUBTOTAL(109,ДействителиЗаОфис[Май]) -> 11,508.00 лв. | H19: =SUBTOTAL(109,ДействителиЗаОфис[Юни]) -> 11,454.00 лв. | I19: =SUBTOTAL(109,ДействителиЗаОфис[Юли]) -> 0.00 лв. | J19: =SUBTOTAL(109,ДействителиЗаОфис[Авг]) -> 0.00 лв. | K19: =SUBTOTAL(109,ДействителиЗаОфис[Сеп]) -> 0.00 лв. | L19: =SUBTOTAL(109,ДействителиЗаОфис[Окт]) -> 0.00 лв. | M19: =SUBTOTAL(109,ДействителиЗаОфис[Ное]) -> 0.00 лв. | N19: =SUBTOTAL(109,ДействителиЗаОфис[Дек]) -> 0.00 лв. | O19: =SUBTOTAL(109,ДействителиЗаОфис[ГОДИНА]) -> 69,350.00 лв.
A21: Въведете разходи за маркетинг в таблицата "Действителни за маркетинг", започваща от клетката вдясно. Следващата инструкция е в клетка A30. | B21: Разходи за маркетинг | C21: Янр | D21: Фев | E21: Мар | F21: Апр | G21: Май | H21: Юни | I21: Юли | J21: Авг | K21: Сеп | L21: Окт | M21: Ное | N21: Дек | O21: ГОДИНА
B22: Хостинг на уеб сайт | C22: 500.00 лв. | D22: 500.00 лв. | E22: 500.00 лв. | F22: 500.00 лв. | G22: 500.00 лв. | H22: 500.00 лв. | O22: =SUM(C22:N22) -> 3,000.00 лв.
B23: Актуализации на уеб сайт | C23: 200.00 лв. | D23: 200.00 лв. | E23: 200.00 лв. | F23: 200.00 лв. | G23: 200.00 лв. | H23: 1,500.00 лв. | O23: 2,500.00 лв.
B24: Подготовка на маркетингови материали | C24: 4,800.00 лв. | D24: 0.00 лв. | E24: 0.00 лв. | F24: 5,500.00 лв. | G24: 0.00 лв. | H24: 0.00 лв. | O24: 10,300.00 лв.
B25: Печат на маркетингови материали | C25: 100.00 лв. | D25: 500.00 лв. | E25: 100.00 лв. | F25: 100.00 лв. | G25: 600.00 лв. | H25: 180.00 лв. | O25: 1,580.00 лв.
B26: Маркетингови събития | C26: 1,800.00 лв. | D26: 2,200.00 лв. | E26: 2,200.00 лв. | F26: 4,700.00 лв. | G26: 1,500.00 лв. | H26: 2,300.00 лв. | O26: 14,700.00 лв.
B27: Разни разходи | C27: 145.00 лв. | D27: 156.00 лв. | E27: 123.00 лв. | F27: 223.00 лв. | G27: 187.00 лв. | H27: 245.00 лв. | O27: 1,079.00 лв.
B28: Междинна сума | C28: =SUBTOTAL(109,ДействителниЗаМаркетинг[Янр]) -> 7,545.00 лв. | D28: =SUBTOTAL(109,ДействителниЗаМаркетинг[Фев]) -> 3,556.00 лв. | E28: =SUBTOTAL(109,ДействителниЗаМаркетинг[Мар]) -> 3,123.00 лв. | F28: =SUBTOTAL(109,ДействителниЗаМаркетинг[Апр]) -> 11,223.00 лв. | G28: =SUBTOTAL(109,ДействителниЗаМаркетинг[Май]) -> 2,987.00 лв. | H28: =SUBTOTAL(109,ДействителниЗаМаркетинг[Юни]) -> 4,725.00 лв. | I28: =SUBTOTAL(109,ДействителниЗаМаркетинг[Юли]) -> 0.00 лв. | J28: =SUBTOTAL(109,ДействителниЗаМаркетинг[Авг]) -> 0.00 лв. | K28: =SUBTOTAL(109,ДействителниЗаМаркетинг[Сеп]) -> 0.00 лв. | L28: =SUBTOTAL(109,ДействителниЗаМаркетинг[Окт]) -> 0.00 лв. | M28: =SUBTOTAL(109,ДействителниЗаМаркетинг[Ное]) -> 0.00 лв. | N28: =SUBTOTAL(109,ДействителниЗаМаркетинг[Дек]) -> 0.00 лв. | O28: =SUBTOTAL(109,ДействителниЗаМаркетинг[ГОДИНА]) -> 33,159.00 лв.
A30: Въведете разходите за обучения или пътувания в таблицата "Действителни за обучения и пътувания", започваща от клетката вдясно. Следващата инструкция е в клетка A35. | B30: Обучения/пътувания | C30: Янр | D30: Фев | E30: Мар | F30: Апр | G30: Май | H30: Юни | I30: Юли | J30: Авг | K30: Сеп | L30: Окт | M30: Ное | N30: Дек | O30: ГОДИНА
B31: Курсове за обучение | C31: 1,600.00 лв. | D31: 2,400.00 лв. | E31: 1,400.00 лв. | F31: 1,600.00 лв. | G31: 1,200.00 лв. | H31: 2,800.00 лв. | O31: =SUM(C31:N31) -> 11,000.00 лв.
B32: Пътни разходи, свързани с обучение | C32: 1,200.00 лв. | D32: 2,200.00 лв. | E32: 1,400.00 лв. | F32: 1,200.00 лв. | G32: 800.00 лв. | H32: 3,500.00 лв. | O32: =SUM(C32:N32) -> 10,300.00 лв.
B33: Междинна сума | C33: =SUBTOTAL(109,ДействителниЗаОбученияИПътувания[Янр]) -> 2,800.00 лв. | D33: =SUBTOTAL(109,ДействителниЗаОбученияИПътувания[Фев]) -> 4,600.00 лв. | E33: =SUBTOTAL(109,ДействителниЗаОбученияИПътувания[Мар]) -> 2,800.00 лв. | F33: =SUBTOTAL(109,ДействителниЗаОбученияИПътувания[Апр]) -> 2,800.00 лв. | G33: =SUBTOTAL(109,ДействителниЗаОбученияИПътувания[Май]) -> 2,000.00 лв. | H33: =SUBTOTAL(109,ДействителниЗаОбученияИПътувания[Юни]) -> 6,300.00 лв. | I33: =SUBTOTAL(109,ДействителниЗаОбученияИПътувания[Юли]) -> 0.00 лв. | J33: =SUBTOTAL(109,ДействителниЗаОбученияИПътувания[Авг]) -> 0.00 лв. | K33: =SUBTOTAL(109,ДействителниЗаОбученияИПътувания[Сеп]) -> 0.00 лв. | L33: =SUBTOTAL(109,ДействителниЗаОбученияИПътувания[Окт]) -> 0.00 лв. | M33: =SUBTOTAL(109,ДействителниЗаОбученияИПътувания[Ное]) -> 0.00 лв. | N33: =SUBTOTAL(109,ДействителниЗаОбученияИПътувания[Дек]) -> 0.00 лв. | O33: =SUBTOTAL(109,ДействителниЗаОбученияИПътувания[ГОДИНА]) -> 21,300.00 лв.
A35: Общи действителни разходи се изчисляват автоматично в таблицата "Общо действителни", започваща от клетката вдясно. | B35: ОБЩИ планирани разходи | C35: Янр | D35: Фев | E35: Мар | F35: Апр | G35: Май | H35: Юни | I35: Юли | J35: Авг | K35: Сеп | L35: Окт | M35: Ное | N35: Дек | O35: Година
B36: Месечни действителни разходи | C36: =ДействителниЗаОбученияИПътувания[[#Totals],[Янр]]+ДействителниЗаМаркетинг[[#Totals],[Янр]]+ДействителиЗаОфис[[#Totals],[Янр]]+ДействителниЗаСлужители[[#Totals],[Янр]] -> 129,682.00 лв. | D36: =ДействителниЗаОбученияИПътувания[[#Totals],[Фев]]+ДействителниЗаМаркетинг[[#Totals],[Фев]]+ДействителиЗаОфис[[#Totals],[Фев]]+ДействителниЗаСлужители[[#Totals],[Фев]] -> 127,804.00 лв. | E36: =ДействителниЗаОбученияИПътувания[[#Totals],[Мар]]+ДействителниЗаМаркетинг[[#Totals],[Мар]]+ДействителиЗаОфис[[#Totals],[Мар]]+ДействителниЗаСлужители[[#Totals],[Мар]] -> 125,565.00 лв. | F36: =ДействителниЗаОбученияИПътувания[[#Totals],[Апр]]+ДействителниЗаМаркетинг[[#Totals],[Апр]]+ДействителиЗаОфис[[#Totals],[Апр]]+ДействителниЗаСлужители[[#Totals],[Апр]] -> 137,394.00 лв. | G36: =ДействителниЗаОбученияИПътувания[[#Totals],[Май]]+ДействителниЗаМаркетинг[[#Totals],[Май]]+ДействителиЗаОфис[[#Totals],[Май]]+ДействителниЗаСлужители[[#Totals],[Май]] -> 128,255.00 лв. | H36: =ДействителниЗаОбученияИПътувания[[#Totals],[Юни]]+ДействителниЗаМаркетинг[[#Totals],[Юни]]+ДействителиЗаОфис[[#Totals],[Юни]]+ДействителниЗаСлужители[[#Totals],[Юни]] -> 134,239.00 лв. | I36: =ДействителниЗаОбученияИПътувания[[#Totals],[Юли]]+ДействителниЗаМаркетинг[[#Totals],[Юли]]+ДействителиЗаОфис[[#Totals],[Юли]]+ДействителниЗаСлужители[[#Totals],[Юли]] -> 0.00 лв. | J36: =ДействителниЗаОбученияИПътувания[[#Totals],[Авг]]+ДействителниЗаМаркетинг[[#Totals],[Авг]]+ДействителиЗаОфис[[#Totals],[Авг]]+ДействителниЗаСлужители[[#Totals],[Авг]] -> 0.00 лв. | K36: =ДействителниЗаОбученияИПътувания[[#Totals],[Сеп]]+ДействителниЗаМаркетинг[[#Totals],[Сеп]]+ДействителиЗаОфис[[#Totals],[Сеп]]+ДействителниЗаСлужители[[#Totals],[Сеп]] -> 0.00 лв. | L36: =ДействителниЗаОбученияИПътувания[[#Totals],[Окт]]+ДействителниЗаМаркетинг[[#Totals],[Окт]]+ДействителиЗаОфис[[#Totals],[Окт]]+ДействителниЗаСлужители[[#Totals],[Окт]] -> 0.00 лв. | M36: =ДействителниЗаОбученияИПътувания[[#Totals],[Ное]]+ДействителниЗаМаркетинг[[#Totals],[Ное]]+ДействителиЗаОфис[[#Totals],[Ное]]+ДействителниЗаСлужители[[#Totals],[Ное]] -> 0.00 лв. | N36: =ДействителниЗаОбученияИПътувания[[#Totals],[Дек]]+ДействителниЗаМаркетинг[[#Totals],[Дек]]+ДействителиЗаОфис[[#Totals],[Дек]]+ДействителниЗаСлужители[[#Totals],[Дек]] -> 0.00 лв. | O36: =ДействителниЗаОбученияИПътувания[[#Totals],[ГОДИНА]]+ДействителниЗаМаркетинг[[#Totals],[ГОДИНА]]+ДействителиЗаОфис[[#Totals],[ГОДИНА]]+ДействителниЗаСлужители[[#Totals],[ГОДИНА]] -> 782,939.00 лв.
B37: ОБЩИ действителни разходи | C37: =SUM($C$36:C36) -> 129,682.00 лв. | D37: =SUM($C$36:D36) -> 257,486.00 лв. | E37: =SUM($C$36:E36) -> 383,051.00 лв. | F37: =SUM($C$36:F36) -> 520,445.00 лв. | G37: =SUM($C$36:G36) -> 648,700.00 лв. | H37: =SUM($C$36:H36) -> 782,939.00 лв. | I37: =SUM($C$36:I36) -> 782,939.00 лв. | J37: =SUM($C$36:J36) -> 782,939.00 лв. | K37: =SUM($C$36:K36) -> 782,939.00 лв. | L37: =SUM($C$36:L36) -> 782,939.00 лв. | M37: =SUM($C$36:M36) -> 782,939.00 лв. | N37: =SUM($C$36:N36) -> 782,939.00 лв.

Sheet РАЗЛИКИ В РАЗХОДИТЕ
A1: Разликите в разходите се изчисляват автоматично в този работен лист за разходи за служители, офис, маркетинг и обучения или пътувания в съответните таблици в този работен лист. Полезни инструкции как да използвате този работен лист, можете да намерите в клетките в тази колона. Натиснете стрелката надолу, за да започнете.
A2: Име на фирмата се актуализира автоматично в клетката отдясно. Заглавието на този работен лист е в клетка K2. Добавете емблема в клетка N2. | B2: ='ПЛАНИРАНИ РАЗХОДИ'!B2:D3 -> Име на фирмата | K2: =заглавие_работен_лист -> Подробни прогнози за разходите | N2: Контейнерът за емблемата е в тази клетка.
A3: Пояснението е в клетка K3. | K3: Оцветените клетки се изчисляват.
A4: Етикетът "Разлики в разходите" е в клетката отдясно, месеците – в клетки от C4 до N4, а етикетът "Година" – в O4. | B4: РАЗЛИКИ В РАЗХОДИТЕ | C4: ЯНР | D4: ФЕВ | E4: МАР | F4: АПР | G4: МАЙ | H4: ЮНИ | I4: ЮЛИ | J4: АВГ | K4: СЕПТ | L4: ОКТ | M4: НОЕ | N4: ДЕК | O4: ГОДИНА
A5: Разликата в разходи за служители се изчислява автоматично в таблицата "Разлики за служители", започваща от клетката вдясно. Следващата инструкция е в клетка A10. | B5: Разходи за служители | C5: Янр | D5: Фев | E5: Мар | F5: Апр | G5: Май | H5: Юни | I5: Юли | J5: Авг | K5: Сеп | L5: Окт | M5: Ное | N5: Дек | O5: ГОДИНА
B6: Заплати | C6: =INDEX(ПланираниЗаСлужители[],MATCH(INDEX(РазликиЗаСлужители[],ROW()-ROW(РазликиЗаСлужители[[#Headers],[Янр]]),1),INDEX(ПланираниЗаСлужители[],,1),0),MATCH(РазликиЗаСлужители[[#Headers],[Янр]],ПланираниЗаСлужители[#Headers],0))-INDEX(ДействителниЗаСлужители[],MATCH(INDEX(РазликиЗаСлужители[],ROW()-ROW(РазликиЗаСлужители[[#Headers],[Янр]]),1),INDEX(ПланираниЗаСлужители[],,1),0),MATCH(РазликиЗаСлужители[[#Headers],[Янр]],ДействителниЗаСлужители[#Headers],0)) -> 0.00 лв. | D6: =INDEX(ПланираниЗаСлужители[],MATCH(INDEX(РазликиЗаСлужители[],ROW()-ROW(РазликиЗаСлужители[[#Headers],[Фев]]),1),INDEX(ПланираниЗаСлужители[],,1),0),MATCH(РазликиЗаСлужители[[#Headers],[Фев]],ПланираниЗаСлужители[#Headers],0))-INDEX(ДействителниЗаСлужители[],MATCH(INDEX(РазликиЗаСлужители[],ROW()-ROW(РазликиЗаСлужители[[#Headers],[Фев]]),1),INDEX(ПланираниЗаСлужители[],,1),0),MATCH(РазликиЗаСлужители[[#Headers],[Фев]],ДействителниЗаСлужители[#Headers],0)) -> 0.00 лв. | E6: =INDEX(ПланираниЗаСлужители[],MATCH(INDEX(РазликиЗаСлужители[],ROW()-ROW(РазликиЗаСлужители[[#Headers],[Мар]]),1),INDEX(ПланираниЗаСлужители[],,1),0),MATCH(РазликиЗаСлужители[[#Headers],[Мар]],ПланираниЗаСлужители[#Headers],0))-INDEX(ДействителниЗаСлужители[],MATCH(INDEX(РазликиЗаСлужители[],ROW()-ROW(РазликиЗаСлужители[[#Headers],[Мар]]),1),INDEX(ПланираниЗаСлужители[],,1),0),MATCH(РазликиЗаСлужители[[#Headers],[Мар]],ДействителниЗаСлужители[#Headers],0)) -> 0.00 лв. | F6: =INDEX(ПланираниЗаСлужители[],MATCH(INDEX(РазликиЗаСлужители[],ROW()-ROW(РазликиЗаСлужители[[#Headers],[Апр]]),1),INDEX(ПланираниЗаСлужители[],,1),0),MATCH(РазликиЗаСлужители[[#Headers],[Апр]],ПланираниЗаСлужители[#Headers],0))-INDEX(ДействителниЗаСлужители[],MATCH(INDEX(РазликиЗаСлужители[],ROW()-ROW(РазликиЗаСлужители[[#Headers],[Апр]]),1),INDEX(ПланираниЗаСлужители[],,1),0),MATCH(РазликиЗаСлужители[[#Headers],[Апр]],ДействителниЗаСлужители[#Headers],0)) -> -500.00 лв. | G6: =INDEX(ПланираниЗаСлужители[],MATCH(INDEX(РазликиЗаСлужители[],ROW()-ROW(РазликиЗаСлужители[[#Headers],[Май]]),1),INDEX(ПланираниЗаСлужители[],,1),0),MATCH(РазликиЗаСлужители[[#Headers],[Май]],ПланираниЗаСлужители[#Headers],0))-INDEX(ДействителниЗаСлужители[],MATCH(INDEX(РазликиЗаСлужители[],ROW()-ROW(РазликиЗаСлужители[[#Headers],[Май]]),1),INDEX(ПланираниЗаСлужители[],,1),0),MATCH(РазликиЗаСлужители[[#Headers],[Май]],ДействителниЗаСлужители[#Headers],0)) -> -500.00 лв. | H6: =INDEX(ПланираниЗаСлужители[],MATCH(INDEX(РазликиЗаСлужители[],ROW()-ROW(РазликиЗаСлужители[[#Headers],[Юни]]),1),INDEX(ПланираниЗаСлужители[],,1),0),MATCH(РазликиЗаСлужители[[#Headers],[Юни]],ПланираниЗаСлужители[#Headers],0))-INDEX(ДействителниЗаСлужители[],MATCH(INDEX(РазликиЗаСлужители[],ROW()-ROW(РазликиЗаСлужители[[#Headers],[Юни]]),1),INDEX(ПланираниЗаСлужители[],,1),0),MATCH(РазликиЗаСлужители[[#Headers],[Юни]],ДействителниЗаСлужители[#Headers],0)) -> -500.00 лв. | I6: =INDEX(ПланираниЗаСлужители[],MATCH(INDEX(РазликиЗаСлужители[],ROW()-ROW(РазликиЗаСлужители[[#Headers],[Юли]]),1),INDEX(ПланираниЗаСлужители[],,1),0),MATCH(РазликиЗаСлужители[[#Headers],[Юли]],ПланираниЗаСлужители[#Headers],0))-INDEX(ДействителниЗаСлужители[],MATCH(INDEX(РазликиЗаСлужители[],ROW()-ROW(РазликиЗаСлужители[[#Headers],[Юли]]),1),INDEX(ПланираниЗаСлужители[],,1),0),MATCH(РазликиЗаСлужители[[#Headers],[Юли]],ДействителниЗаСлужители[#Headers],0)) -> 87,500.00 лв. | J6: =INDEX(ПланираниЗаСлужители[],MATCH(INDEX(РазликиЗаСлужители[],ROW()-ROW(РазликиЗаСлужители[[#Headers],[Авг]]),1),INDEX(ПланираниЗаСлужители[],,1),0),MATCH(РазликиЗаСлужители[[#Headers],[Авг]],ПланираниЗаСлужители[#Headers],0))-INDEX(ДействителниЗаСлужители[],MATCH(INDEX(РазликиЗаСлужители[],ROW()-ROW(РазликиЗаСлужители[[#Headers],[Авг]]),1),INDEX(ПланираниЗаСлужители[],,1),0),MATCH(РазликиЗаСлужители[[#Headers],[Авг]],ДействителниЗаСлужители[#Headers],0)) -> 92,400.00 лв. | K6: =INDEX(ПланираниЗаСлужители[],MATCH(INDEX(РазликиЗаСлужители[],ROW()-ROW(РазликиЗаСлужители[[#Headers],[Сеп]]),1),INDEX(ПланираниЗаСлужители[],,1),0),MATCH(РазликиЗаСлужители[[#Headers],[Сеп]],ПланираниЗаСлужители[#Headers],0))-INDEX(ДействителниЗаСлужители[],MATCH(INDEX(РазликиЗаСлужители[],ROW()-ROW(РазликиЗаСлужители[[#Headers],[Сеп]]),1),INDEX(ПланираниЗаСлужители[],,1),0),MATCH(РазликиЗаСлужители[[#Headers],[Сеп]],ДействителниЗаСлужители[#Headers],0)) -> 92,400.00 лв. | L6: =INDEX(ПланираниЗаСлужители[],MATCH(INDEX(РазликиЗаСлужители[],ROW()-ROW(РазликиЗаСлужители[[#Headers],[Окт]]),1),INDEX(ПланираниЗаСлужители[],,1),0),MATCH(РазликиЗаСлужители[[#Headers],[Окт]],ПланираниЗаСлужители[#Headers],0))-INDEX(ДействителниЗаСлужители[],MATCH(INDEX(РазликиЗаСлужители[],ROW()-ROW(РазликиЗаСлужители[[#Headers],[Окт]]),1),INDEX(ПланираниЗаСлужители[],,1),0),MATCH(РазликиЗаСлужители[[#Headers],[Окт]],ДействителниЗаСлужители[#Headers],0)) -> 92,400.00 лв. | M6: =INDEX(ПланираниЗаСлужители[],MATCH(INDEX(РазликиЗаСлужители[],ROW()-ROW(РазликиЗаСлужители[[#Headers],[Ное]]),1),INDEX(ПланираниЗаСлужители[],,1),0),MATCH(РазликиЗаСлужители[[#Headers],[Ное]],ПланираниЗаСлужители[#Headers],0))-INDEX(ДействителниЗаСлужители[],MATCH(INDEX(РазликиЗаСлужители[],ROW()-ROW(РазликиЗаСлужители[[#Headers],[Ное]]),1),INDEX(ПланираниЗаСлужители[],,1),0),MATCH(РазликиЗаСлужители[[#Headers],[Ное]],ДействителниЗаСлужители[#Headers],0)) -> 92,400.00 лв. | N6: =INDEX(ПланираниЗаСлужители[],MATCH(INDEX(РазликиЗаСлужители[],ROW()-ROW(РазликиЗаСлужители[[#Headers],[Дек]]),1),INDEX(ПланираниЗаСлужители[],,1),0),MATCH(РазликиЗаСлужители[[#Headers],[Дек]],ПланираниЗаСлужители[#Headers],0))-INDEX(ДействителниЗаСлужители[],MATCH(INDEX(РазликиЗаСлужители[],ROW()-ROW(РазликиЗаСлужители[[#Headers],[Дек]]),1),INDEX(ПланираниЗаСлужители[],,1),0),MATCH(РазликиЗаСлужители[[#Headers],[Дек]],ДействителниЗаСлужители[#Headers],0)) -> 92,400.00 лв. | O6: =SUM(РазликиЗаСлужители[[#This Row],[Янр]:[Дек]]) -> 548,000.00 лв.
B7: Осигуровки | C7: =INDEX(ПланираниЗаСлужители[],MATCH(INDEX(РазликиЗаСлужители[],ROW()-ROW(РазликиЗаСлужители[[#Headers],[Янр]]),1),INDEX(ПланираниЗаСлужители[],,1),0),MATCH(РазликиЗаСлужители[[#Headers],[Янр]],ПланираниЗаСлужители[#Headers],0))-INDEX(ДействителниЗаСлужители[],MATCH(INDEX(РазликиЗаСлужители[],ROW()-ROW(РазликиЗаСлужители[[#Headers],[Янр]]),1),INDEX(ПланираниЗаСлужители[],,1),0),MATCH(РазликиЗаСлужители[[#Headers],[Янр]],ДействителниЗаСлужители[#Headers],0)) -> 0.00 лв. | D7: =INDEX(ПланираниЗаСлужители[],MATCH(INDEX(РазликиЗаСлужители[],ROW()-ROW(РазликиЗаСлужители[[#Headers],[Фев]]),1),INDEX(ПланираниЗаСлужители[],,1),0),MATCH(РазликиЗаСлужители[[#Headers],[Фев]],ПланираниЗаСлужители[#Headers],0))-INDEX(ДействителниЗаСлужители[],MATCH(INDEX(РазликиЗаСлужители[],ROW()-ROW(РазликиЗаСлужители[[#Headers],[Фев]]),1),INDEX(ПланираниЗаСлужители[],,1),0),MATCH(РазликиЗаСлужители[[#Headers],[Фев]],ДействителниЗаСлужители[#Headers],0)) -> 0.00 лв. | E7: =INDEX(ПланираниЗаСлужители[],MATCH(INDEX(РазликиЗаСлужители[],ROW()-ROW(РазликиЗаСлужители[[#Headers],[Мар]]),1),INDEX(ПланираниЗаСлужители[],,1),0),MATCH(РазликиЗаСлужители[[#Headers],[Мар]],ПланираниЗаСлужители[#Headers],0))-INDEX(ДействителниЗаСлужители[],MATCH(INDEX(РазликиЗаСлужители[],ROW()-ROW(РазликиЗаСлужители[[#Headers],[Мар]]),1),INDEX(ПланираниЗаСлужители[],,1),0),MATCH(РазликиЗаСлужители[[#Headers],[Мар]],ДействителниЗаСлужители[#Headers],0)) -> 0.00 лв. | F7: =INDEX(ПланираниЗаСлужители[],MATCH(INDEX(РазликиЗаСлужители[],ROW()-ROW(РазликиЗаСлужители[[#Headers],[Апр]]),1),INDEX(ПланираниЗаСлужители[],,1),0),MATCH(РазликиЗаСлужители[[#Headers],[Апр]],ПланираниЗаСлужители[#Headers],0))-INDEX(ДействителниЗаСлужители[],MATCH(INDEX(РазликиЗаСлужители[],ROW()-ROW(РазликиЗаСлужители[[#Headers],[Апр]]),1),INDEX(ПланираниЗаСлужители[],,1),0),MATCH(РазликиЗаСлужители[[#Headers],[Апр]],ДействителниЗаСлужители[#Headers],0)) -> -135.00 лв. | G7: =INDEX(ПланираниЗаСлужители[],MATCH(INDEX(РазликиЗаСлужители[],ROW()-ROW(РазликиЗаСлужители[[#Headers],[Май]]),1),INDEX(ПланираниЗаСлужители[],,1),0),MATCH(РазликиЗаСлужители[[#Headers],[Май]],ПланираниЗаСлужители[#Headers],0))-INDEX(ДействителниЗаСлужители[],MATCH(INDEX(РазликиЗаСлужители[],ROW()-ROW(РазликиЗаСлужители[[#Headers],[Май]]),1),INDEX(ПланираниЗаСлужители[],,1),0),MATCH(РазликиЗаСлужители[[#Headers],[Май]],ДействителниЗаСлужители[#Headers],0)) -> -135.00 лв. | H7: =INDEX(ПланираниЗаСлужители[],MATCH(INDEX(РазликиЗаСлужители[],ROW()-ROW(РазликиЗаСлужители[[#Headers],[Юни]]),1),INDEX(ПланираниЗаСлужители[],,1),0),MATCH(РазликиЗаСлужители[[#Headers],[Юни]],ПланираниЗаСлужители[#Headers],0))-INDEX(ДействителниЗаСлужители[],MATCH(INDEX(РазликиЗаСлужители[],ROW()-ROW(РазликиЗаСлужители[[#Headers],[Юни]]),1),INDEX(ПланираниЗаСлужители[],,1),0),MATCH(РазликиЗаСлужители[[#Headers],[Юни]],ДействителниЗаСлужители[#Headers],0)) -> -135.00 лв. | I7: =INDEX(ПланираниЗаСлужители[],MATCH(INDEX(РазликиЗаСлужители[],ROW()-ROW(РазликиЗаСлужители[[#Headers],[Юли]]),1),INDEX(ПланираниЗаСлужители[],,1),0),MATCH(РазликиЗаСлужители[[#Headers],[Юли]],ПланираниЗаСлужители[#Headers],0))-INDEX(ДействителниЗаСлужители[],MATCH(INDEX(РазликиЗаСлужители[],ROW()-ROW(РазликиЗаСлужители[[#Headers],[Юли]]),1),INDEX(ПланираниЗаСлужители[],,1),0),MATCH(РазликиЗаСлужители[[#Headers],[Юли]],ДействителниЗаСлужители[#Headers],0)) -> 23,625.00 лв. | J7: =INDEX(ПланираниЗаСлужители[],MATCH(INDEX(РазликиЗаСлужители[],ROW()-ROW(РазликиЗаСлужители[[#Headers],[Авг]]),1),INDEX(ПланираниЗаСлужители[],,1),0),MATCH(РазликиЗаСлужители[[#Headers],[Авг]],ПланираниЗаСлужители[#Headers],0))-INDEX(ДействителниЗаСлужители[],MATCH(INDEX(РазликиЗаСлужители[],ROW()-ROW(РазликиЗаСлужители[[#Headers],[Авг]]),1),INDEX(ПланираниЗаСлужители[],,1),0),MATCH(РазликиЗаСлужители[[#Headers],[Авг]],ДействителниЗаСлужители[#Headers],0)) -> 24,948.00 лв. | K7: =INDEX(ПланираниЗаСлужители[],MATCH(INDEX(РазликиЗаСлужители[],ROW()-ROW(РазликиЗаСлужители[[#Headers],[Сеп]]),1),INDEX(ПланираниЗаСлужители[],,1),0),MATCH(РазликиЗаСлужители[[#Headers],[Сеп]],ПланираниЗаСлужители[#Headers],0))-INDEX(ДействителниЗаСлужители[],MATCH(INDEX(РазликиЗаСлужители[],ROW()-ROW(РазликиЗаСлужители[[#Headers],[Сеп]]),1),INDEX(ПланираниЗаСлужители[],,1),0),MATCH(РазликиЗаСлужители[[#Headers],[Сеп]],ДействителниЗаСлужители[#Headers],0)) -> 24,948.00 лв. | L7: =INDEX(ПланираниЗаСлужители[],MATCH(INDEX(РазликиЗаСлужители[],ROW()-ROW(РазликиЗаСлужители[[#Headers],[Окт]]),1),INDEX(ПланираниЗаСлужители[],,1),0),MATCH(РазликиЗаСлужители[[#Headers],[Окт]],ПланираниЗаСлужители[#Headers],0))-INDEX(ДействителниЗаСлужители[],MATCH(INDEX(РазликиЗаСлужители[],ROW()-ROW(РазликиЗаСлужители[[#Headers],[Окт]]),1),INDEX(ПланираниЗаСлужители[],,1),0),MATCH(РазликиЗаСлужители[[#Headers],[Окт]],ДействителниЗаСлужители[#Headers],0)) -> 24,948.00 лв. | M7: =INDEX(ПланираниЗаСлужители[],MATCH(INDEX(РазликиЗаСлужители[],ROW()-ROW(РазликиЗаСлужители[[#Headers],[Ное]]),1),INDEX(ПланираниЗаСлужители[],,1),0),MATCH(РазликиЗаСлужители[[#Headers],[Ное]],ПланираниЗаСлужители[#Headers],0))-INDEX(ДействителниЗаСлужители[],MATCH(INDEX(РазликиЗаСлужители[],ROW()-ROW(РазликиЗаСлужители[[#Headers],[Ное]]),1),INDEX(ПланираниЗаСлужители[],,1),0),MATCH(РазликиЗаСлужители[[#Headers],[Ное]],ДействителниЗаСлужители[#Headers],0)) -> 24,948.00 лв. | N7: =INDEX(ПланираниЗаСлужители[],MATCH(INDEX(РазликиЗаСлужители[],ROW()-ROW(РазликиЗаСлужители[[#Headers],[Дек]]),1),INDEX(ПланираниЗаСлужители[],,1),0),MATCH(РазликиЗаСлужители[[#Headers],[Дек]],ПланираниЗаСлужители[#Headers],0))-INDEX(ДействителниЗаСлужители[],MATCH(INDEX(РазликиЗаСлужители[],ROW()-ROW(РазликиЗаСлужители[[#Headers],[Дек]]),1),INDEX(ПланираниЗаСлужители[],,1),0),MATCH(РазликиЗаСлужители[[#Headers],[Дек]],ДействителниЗаСлужители[#Headers],0)) -> 24,948.00 лв. | O7: =SUM(РазликиЗаСлужители[[#This Row],[Янр]:[Дек]]) -> 147,960.00 лв.
B8: Междинна сума | C8: =SUBTOTAL(109,РазликиЗаСлужители[Янр]) -> 0.00 лв. | D8: =SUBTOTAL(109,РазликиЗаСлужители[Фев]) -> 0.00 лв. | E8: =SUBTOTAL(109,РазликиЗаСлужители[Мар]) -> 0.00 лв. | F8: =SUBTOTAL(109,РазликиЗаСлужители[Апр]) -> -635.00 лв. | G8: =SUBTOTAL(109,РазликиЗаСлужители[Май]) -> -635.00 лв. | H8: =SUBTOTAL(109,РазликиЗаСлужители[Юни]) -> -635.00 лв. | I8: =SUBTOTAL(109,РазликиЗаСлужители[Юли]) -> 111,125.00 лв. | J8: =SUBTOTAL(109,РазликиЗаСлужители[Авг]) -> 117,348.00 лв. | K8: =SUBTOTAL(109,РазликиЗаСлужители[Сеп]) -> 117,348.00 лв. | L8: =SUBTOTAL(109,РазликиЗаСлужители[Окт]) -> 117,348.00 лв. | M8: =SUBTOTAL(109,РазликиЗаСлужители[Ное]) -> 117,348.00 лв. | N8: =SUBTOTAL(109,РазликиЗаСлужители[Дек]) -> 117,348.00 лв. | O8: =SUBTOTAL(109,РазликиЗаСлужители[ГОДИНА]) -> 695,960.00 лв.
A10: Разликата в разходи за офис се изчислява автоматично в таблицата "Разлики за офис", започваща от клетката вдясно. Следващата инструкция е в клетка A21. | B10: Разходи за офис | C10: Янр | D10: Фев | E10: Мар | F10: Апр | G10: Май | H10: Юни | I10: Юли | J10: Авг | K10: Сеп | L10: Окт | M10: Ное | N10: Дек | O10: ГОДИНА
B11: Наем на офис | C11: =INDEX(ПланираниЗаОфис[],MATCH(INDEX(РазликиЗаОфис[],ROW()-ROW(РазликиЗаОфис[[#Headers],[Янр]]),1),INDEX(ПланираниЗаОфис[],,1),0),MATCH(РазликиЗаОфис[[#Headers],[Янр]],ПланираниЗаОфис[#Headers],0))-INDEX(ДействителиЗаОфис[],MATCH(INDEX(РазликиЗаОфис[],ROW()-ROW(РазликиЗаОфис[[#Headers],[Янр]]),1),INDEX(ПланираниЗаОфис[],,1),0),MATCH(РазликиЗаОфис[[#Headers],[Янр]],ДействителиЗаОфис[#Headers],0)) -> 0.00 лв. | D11: =INDEX(ПланираниЗаОфис[],MATCH(INDEX(РазликиЗаОфис[],ROW()-ROW(РазликиЗаОфис[[#Headers],[Фев]]),1),INDEX(ПланираниЗаОфис[],,1),0),MATCH(РазликиЗаОфис[[#Headers],[Фев]],ПланираниЗаОфис[#Headers],0))-INDEX(ДействителиЗаОфис[],MATCH(INDEX(РазликиЗаОфис[],ROW()-ROW(РазликиЗаОфис[[#Headers],[Фев]]),1),INDEX(ПланираниЗаОфис[],,1),0),MATCH(РазликиЗаОфис[[#Headers],[Фев]],ДействителиЗаОфис[#Headers],0)) -> 0.00 лв. | E11: =INDEX(ПланираниЗаОфис[],MATCH(INDEX(РазликиЗаОфис[],ROW()-ROW(РазликиЗаОфис[[#Headers],[Мар]]),1),INDEX(ПланираниЗаОфис[],,1),0),MATCH(РазликиЗаОфис[[#Headers],[Мар]],ПланираниЗаОфис[#Headers],0))-INDEX(ДействителиЗаОфис[],MATCH(INDEX(РазликиЗаОфис[],ROW()-ROW(РазликиЗаОфис[[#Headers],[Мар]]),1),INDEX(ПланираниЗаОфис[],,1),0),MATCH(РазликиЗаОфис[[#Headers],[Мар]],ДействителиЗаОфис[#Headers],0)) -> 0.00 лв. | F11: =INDEX(ПланираниЗаОфис[],MATCH(INDEX(РазликиЗаОфис[],ROW()-ROW(РазликиЗаОфис[[#Headers],[Апр]]),1),INDEX(ПланираниЗаОфис[],,1),0),MATCH(РазликиЗаОфис[[#Headers],[Апр]],ПланираниЗаОфис[#Headers],0))-INDEX(ДействителиЗаОфис[],MATCH(INDEX(РазликиЗаОфис[],ROW()-ROW(РазликиЗаОфис[[#Headers],[Апр]]),1),INDEX(ПланираниЗаОфис[],,1),0),MATCH(РазликиЗаОфис[[#Headers],[Апр]],ДействителиЗаОфис[#Headers],0)) -> 0.00 лв. | G11: =INDEX(ПланираниЗаОфис[],MATCH(INDEX(РазликиЗаОфис[],ROW()-ROW(РазликиЗаОфис[[#Headers],[Май]]),1),INDEX(ПланираниЗаОфис[],,1),0),MATCH(РазликиЗаОфис[[#Headers],[Май]],ПланираниЗаОфис[#Headers],0))-INDEX(ДействителиЗаОфис[],MATCH(INDEX(РазликиЗаОфис[],ROW()-ROW(РазликиЗаОфис[[#Headers],[Май]]),1),INDEX(ПланираниЗаОфис[],,1),0),MATCH(РазликиЗаОфис[[#Headers],[Май]],ДействителиЗаОфис[#Headers],0)) -> 0.00 лв. | H11: =INDEX(ПланираниЗаОфис[],MATCH(INDEX(РазликиЗаОфис[],ROW()-ROW(РазликиЗаОфис[[#Headers],[Юни]]),1),INDEX(ПланираниЗаОфис[],,1),0),MATCH(РазликиЗаОфис[[#Headers],[Юни]],ПланираниЗаОфис[#Headers],0))-INDEX(ДействителиЗаОфис[],MATCH(INDEX(РазликиЗаОфис[],ROW()-ROW(РазликиЗаОфис[[#Headers],[Юни]]),1),INDEX(ПланираниЗаОфис[],,1),0),MATCH(РазликиЗаОфис[[#Headers],[Юни]],ДействителиЗаОфис[#Headers],0)) -> 0.00 лв. | I11: =INDEX(ПланираниЗаОфис[],MATCH(INDEX(РазликиЗаОфис[],ROW()-ROW(РазликиЗаОфис[[#Headers],[Юли]]),1),INDEX(ПланираниЗаОфис[],,1),0),MATCH(РазликиЗаОфис[[#Headers],[Юли]],ПланираниЗаОфис[#Headers],0))-INDEX(ДействителиЗаОфис[],MATCH(INDEX(РазликиЗаОфис[],ROW()-ROW(РазликиЗаОфис[[#Headers],[Юли]]),1),INDEX(ПланираниЗаОфис[],,1),0),MATCH(РазликиЗаОфис[[#Headers],[Юли]],ДействителиЗаОфис[#Headers],0)) -> 9,800.00 лв. | J11: =INDEX(ПланираниЗаОфис[],MATCH(INDEX(РазликиЗаОфис[],ROW()-ROW(РазликиЗаОфис[[#Headers],[Авг]]),1),INDEX(ПланираниЗаОфис[],,1),0),MATCH(РазликиЗаОфис[[#Headers],[Авг]],ПланираниЗаОфис[#Headers],0))-INDEX(ДействителиЗаОфис[],MATCH(INDEX(РазликиЗаОфис[],ROW()-ROW(РазликиЗаОфис[[#Headers],[Авг]]),1),INDEX(ПланираниЗаОфис[],,1),0),MATCH(РазликиЗаОфис[[#Headers],[Авг]],ДействителиЗаОфис[#Headers],0)) -> 9,800.00 лв. | K11: =INDEX(ПланираниЗаОфис[],MATCH(INDEX(РазликиЗаОфис[],ROW()-ROW(РазликиЗаОфис[[#Headers],[Сеп]]),1),INDEX(ПланираниЗаОфис[],,1),0),MATCH(РазликиЗаОфис[[#Headers],[Сеп]],ПланираниЗаОфис[#Headers],0))-INDEX(ДействителиЗаОфис[],MATCH(INDEX(РазликиЗаОфис[],ROW()-ROW(РазликиЗаОфис[[#Headers],[Сеп]]),1),INDEX(ПланираниЗаОфис[],,1),0),MATCH(РазликиЗаОфис[[#Headers],[Сеп]],ДействителиЗаОфис[#Headers],0)) -> 9,800.00 лв. | L11: =INDEX(ПланираниЗаОфис[],MATCH(INDEX(РазликиЗаОфис[],ROW()-ROW(РазликиЗаОфис[[#Headers],[Окт]]),1),INDEX(ПланираниЗаОфис[],,1),0),MATCH(РазликиЗаОфис[[#Headers],[Окт]],ПланираниЗаОфис[#Headers],0))-INDEX(ДействителиЗаОфис[],MATCH(INDEX(РазликиЗаОфис[],ROW()-ROW(РазликиЗаОфис[[#Headers],[Окт]]),1),INDEX(ПланираниЗаОфис[],,1),0),MATCH(РазликиЗаОфис[[#Headers],[Окт]],ДействителиЗаОфис[#Headers],0)) -> 9,800.00 лв. | M11: =INDEX(ПланираниЗаОфис[],MATCH(INDEX(РазликиЗаОфис[],ROW()-ROW(РазликиЗаОфис[[#Headers],[Ное]]),1),INDEX(ПланираниЗаОфис[],,1),0),MATCH(РазликиЗаОфис[[#Headers],[Ное]],ПланираниЗаОфис[#Headers],0))-INDEX(ДействителиЗаОфис[],MATCH(INDEX(РазликиЗаОфис[],ROW()-ROW(РазликиЗаОфис[[#Headers],[Ное]]),1),INDEX(ПланираниЗаОфис[],,1),0),MATCH(РазликиЗаОфис[[#Headers],[Ное]],ДействителиЗаОфис[#Headers],0)) -> 9,800.00 лв. | N11: =INDEX(ПланираниЗаОфис[],MATCH(INDEX(РазликиЗаОфис[],ROW()-ROW(РазликиЗаОфис[[#Headers],[Дек]]),1),INDEX(ПланираниЗаОфис[],,1),0),MATCH(РазликиЗаОфис[[#Headers],[Дек]],ПланираниЗаОфис[#Headers],0))-INDEX(ДействителиЗаОфис[],MATCH(INDEX(РазликиЗаОфис[],ROW()-ROW(РазликиЗаОфис[[#Headers],[Дек]]),1),INDEX(ПланираниЗаОфис[],,1),0),MATCH(РазликиЗаОфис[[#Headers],[Дек]],ДействителиЗаОфис[#Headers],0)) -> 9,800.00 лв. | O11: =SUM(РазликиЗаОфис[[#This Row],[Янр]:[Дек]]) -> 58,800.00 лв.
B12: Газ | C12: =INDEX(ПланираниЗаОфис[],MATCH(INDEX(РазликиЗаОфис[],ROW()-ROW(РазликиЗаОфис[[#Headers],[Янр]]),1),INDEX(ПланираниЗаОфис[],,1),0),MATCH(РазликиЗаОфис[[#Headers],[Янр]],ПланираниЗаОфис[#Headers],0))-INDEX(ДействителиЗаОфис[],MATCH(INDEX(РазликиЗаОфис[],ROW()-ROW(РазликиЗаОфис[[#Headers],[Янр]]),1),INDEX(ПланираниЗаОфис[],,1),0),MATCH(РазликиЗаОфис[[#Headers],[Янр]],ДействителиЗаОфис[#Headers],0)) -> -4.00 лв. | D12: =INDEX(ПланираниЗаОфис[],MATCH(INDEX(РазликиЗаОфис[],ROW()-ROW(РазликиЗаОфис[[#Headers],[Фев]]),1),INDEX(ПланираниЗаОфис[],,1),0),MATCH(РазликиЗаОфис[[#Headers],[Фев]],ПланираниЗаОфис[#Headers],0))-INDEX(ДействителиЗаОфис[],MATCH(INDEX(РазликиЗаОфис[],ROW()-ROW(РазликиЗаОфис[[#Headers],[Фев]]),1),INDEX(ПланираниЗаОфис[],,1),0),MATCH(РазликиЗаОфис[[#Headers],[Фев]],ДействителиЗаОфис[#Headers],0)) -> -30.00 лв. | E12: =INDEX(ПланираниЗаОфис[],MATCH(INDEX(РазликиЗаОфис[],ROW()-ROW(РазликиЗаОфис[[#Headers],[Мар]]),1),INDEX(ПланираниЗаОфис[],,1),0),MATCH(РазликиЗаОфис[[#Headers],[Мар]],ПланираниЗаОфис[#Headers],0))-INDEX(ДействителиЗаОфис[],MATCH(INDEX(РазликиЗаОфис[],ROW()-ROW(РазликиЗаОфис[[#Headers],[Мар]]),1),INDEX(ПланираниЗаОфис[],,1),0),MATCH(РазликиЗаОфис[[#Headers],[Мар]],ДействителиЗаОфис[#Headers],0)) -> 15.00 лв. | F12: =INDEX(ПланираниЗаОфис[],MATCH(INDEX(РазликиЗаОфис[],ROW()-ROW(РазликиЗаОфис[[#Headers],[Апр]]),1),INDEX(ПланираниЗаОфис[],,1),0),MATCH(РазликиЗаОфис[[#Headers],[Апр]],ПланираниЗаОфис[#Headers],0))-INDEX(ДействителиЗаОфис[],MATCH(INDEX(РазликиЗаОфис[],ROW()-ROW(РазликиЗаОфис[[#Headers],[Апр]]),1),INDEX(ПланираниЗаОфис[],,1),0),MATCH(РазликиЗаОфис[[#Headers],[Апр]],ДействителиЗаОфис[#Headers],0)) -> -130.00 лв. | G12: =INDEX(ПланираниЗаОфис[],MATCH(INDEX(РазликиЗаОфис[],ROW()-ROW(РазликиЗаОфис[[#Headers],[Май]]),1),INDEX(ПланираниЗаОфис[],,1),0),MATCH(РазликиЗаОфис[[#Headers],[Май]],ПланираниЗаОфис[#Headers],0))-INDEX(ДействителиЗаОфис[],MATCH(INDEX(РазликиЗаОфис[],ROW()-ROW(РазликиЗаОфис[[#Headers],[Май]]),1),INDEX(ПланираниЗаОфис[],,1),0),MATCH(РазликиЗаОфис[[#Headers],[Май]],ДействителиЗаОфис[#Headers],0)) -> 13.00 лв. | H12: =INDEX(ПланираниЗаОфис[],MATCH(INDEX(РазликиЗаОфис[],ROW()-ROW(РазликиЗаОфис[[#Headers],[Юни]]),1),INDEX(ПланираниЗаОфис[],,1),0),MATCH(РазликиЗаОфис[[#Headers],[Юни]],ПланираниЗаОфис[#Headers],0))-INDEX(ДействителиЗаОфис[],MATCH(INDEX(РазликиЗаОфис[],ROW()-ROW(РазликиЗаОфис[[#Headers],[Юни]]),1),INDEX(ПланираниЗаОфис[],,1),0),MATCH(РазликиЗаОфис[[#Headers],[Юни]],ДействителиЗаОфис[#Headers],0)) -> 12.00 лв. | I12: =INDEX(ПланираниЗаОфис[],MATCH(INDEX(РазликиЗаОфис[],ROW()-ROW(РазликиЗаОфис[[#Headers],[Юли]]),1),INDEX(ПланираниЗаОфис[],,1),0),MATCH(РазликиЗаОфис[[#Headers],[Юли]],ПланираниЗаОфис[#Headers],0))-INDEX(ДействителиЗаОфис[],MATCH(INDEX(РазликиЗаОфис[],ROW()-ROW(РазликиЗаОфис[[#Headers],[Юли]]),1),INDEX(ПланираниЗаОфис[],,1),0),MATCH(РазликиЗаОфис[[#Headers],[Юли]],ДействителиЗаОфис[#Headers],0)) -> 100.00 лв. | J12: =INDEX(ПланираниЗаОфис[],MATCH(INDEX(РазликиЗаОфис[],ROW()-ROW(РазликиЗаОфис[[#Headers],[Авг]]),1),INDEX(ПланираниЗаОфис[],,1),0),MATCH(РазликиЗаОфис[[#Headers],[Авг]],ПланираниЗаОфис[#Headers],0))-INDEX(ДействителиЗаОфис[],MATCH(INDEX(РазликиЗаОфис[],ROW()-ROW(РазликиЗаОфис[[#Headers],[Авг]]),1),INDEX(ПланираниЗаОфис[],,1),0),MATCH(РазликиЗаОфис[[#Headers],[Авг]],ДействителиЗаОфис[#Headers],0)) -> 100.00 лв. | K12: =INDEX(ПланираниЗаОфис[],MATCH(INDEX(РазликиЗаОфис[],ROW()-ROW(РазликиЗаОфис[[#Headers],[Сеп]]),1),INDEX(ПланираниЗаОфис[],,1),0),MATCH(РазликиЗаОфис[[#Headers],[Сеп]],ПланираниЗаОфис[#Headers],0))-INDEX(ДействителиЗаОфис[],MATCH(INDEX(РазликиЗаОфис[],ROW()-ROW(РазликиЗаОфис[[#Headers],[Сеп]]),1),INDEX(ПланираниЗаОфис[],,1),0),MATCH(РазликиЗаОфис[[#Headers],[Сеп]],ДействителиЗаОфис[#Headers],0)) -> 100.00 лв. | L12: =INDEX(ПланираниЗаОфис[],MATCH(INDEX(РазликиЗаОфис[],ROW()-ROW(РазликиЗаОфис[[#Headers],[Окт]]),1),INDEX(ПланираниЗаОфис[],,1),0),MATCH(РазликиЗаОфис[[#Headers],[Окт]],ПланираниЗаОфис[#Headers],0))-INDEX(ДействителиЗаОфис[],MATCH(INDEX(РазликиЗаОфис[],ROW()-ROW(РазликиЗаОфис[[#Headers],[Окт]]),1),INDEX(ПланираниЗаОфис[],,1),0),MATCH(РазликиЗаОфис[[#Headers],[Окт]],ДействителиЗаОфис[#Headers],0)) -> 100.00 лв. | M12: =INDEX(ПланираниЗаОфис[],MATCH(INDEX(РазликиЗаОфис[],ROW()-ROW(РазликиЗаОфис[[#Headers],[Ное]]),1),INDEX(ПланираниЗаОфис[],,1),0),MATCH(РазликиЗаОфис[[#Headers],[Ное]],ПланираниЗаОфис[#Headers],0))-INDEX(ДействителиЗаОфис[],MATCH(INDEX(РазликиЗаОфис[],ROW()-ROW(РазликиЗаОфис[[#Headers],[Ное]]),1),INDEX(ПланираниЗаОфис[],,1),0),MATCH(РазликиЗаОфис[[#Headers],[Ное]],ДействителиЗаОфис[#Headers],0)) -> 400.00 лв. | N12: =INDEX(ПланираниЗаОфис[],MATCH(INDEX(РазликиЗаОфис[],ROW()-ROW(РазликиЗаОфис[[#Headers],[Дек]]),1),INDEX(ПланираниЗаОфис[],,1),0),MATCH(РазликиЗаОфис[[#Headers],[Дек]],ПланираниЗаОфис[#Headers],0))-INDEX(ДействителиЗаОфис[],MATCH(INDEX(РазликиЗаОфис[],ROW()-ROW(РазликиЗаОфис[[#Headers],[Дек]]),1),INDEX(ПланираниЗаОфис[],,1),0),MATCH(РазликиЗаОфис[[#Headers],[Дек]],ДействителиЗаОфис[#Headers],0)) -> 400.00 лв. | O12: =SUM(РазликиЗаОфис[[#This Row],[Янр]:[Дек]]) -> 1,076.00 лв.
B13: Ток | C13: =INDEX(ПланираниЗаОфис[],MATCH(INDEX(РазликиЗаОфис[],ROW()-ROW(РазликиЗаОфис[[#Headers],[Янр]]),1),INDEX(ПланираниЗаОфис[],,1),0),MATCH(РазликиЗаОфис[[#Headers],[Янр]],ПланираниЗаОфис[#Headers],0))-INDEX(ДействителиЗаОфис[],MATCH(INDEX(РазликиЗаОфис[],ROW()-ROW(РазликиЗаОфис[[#Headers],[Янр]]),1),INDEX(ПланираниЗаОфис[],,1),0),MATCH(РазликиЗаОфис[[#Headers],[Янр]],ДействителиЗаОфис[#Headers],0)) -> 12.00 лв. | D13: =INDEX(ПланираниЗаОфис[],MATCH(INDEX(РазликиЗаОфис[],ROW()-ROW(РазликиЗаОфис[[#Headers],[Фев]]),1),INDEX(ПланираниЗаОфис[],,1),0),MATCH(РазликиЗаОфис[[#Headers],[Фев]],ПланираниЗаОфис[#Headers],0))-INDEX(ДействителиЗаОфис[],MATCH(INDEX(РазликиЗаОфис[],ROW()-ROW(РазликиЗаОфис[[#Headers],[Фев]]),1),INDEX(ПланираниЗаОфис[],,1),0),MATCH(РазликиЗаОфис[[#Headers],[Фев]],ДействителиЗаОфис[#Headers],0)) -> 22.00 лв. | E13: =INDEX(ПланираниЗаОфис[],MATCH(INDEX(РазликиЗаОфис[],ROW()-ROW(РазликиЗаОфис[[#Headers],[Мар]]),1),INDEX(ПланираниЗаОфис[],,1),0),MATCH(РазликиЗаОфис[[#Headers],[Мар]],ПланираниЗаОфис[#Headers],0))-INDEX(ДействителиЗаОфис[],MATCH(INDEX(РазликиЗаОфис[],ROW()-ROW(РазликиЗаОфис[[#Headers],[Мар]]),1),INDEX(ПланираниЗаОфис[],,1),0),MATCH(РазликиЗаОфис[[#Headers],[Мар]],ДействителиЗаОфис[#Headers],0)) -> 32.00 лв. | F13: =INDEX(ПланираниЗаОфис[],MATCH(INDEX(РазликиЗаОфис[],ROW()-ROW(РазликиЗаОфис[[#Headers],[Апр]]),1),INDEX(ПланираниЗаОфис[],,1),0),MATCH(РазликиЗаОфис[[#Headers],[Апр]],ПланираниЗаОфис[#Headers],0))-INDEX(ДействителиЗаОфис[],MATCH(INDEX(РазликиЗаОфис[],ROW()-ROW(РазликиЗаОфис[[#Headers],[Апр]]),1),INDEX(ПланираниЗаОфис[],,1),0),MATCH(РазликиЗаОфис[[#Headers],[Апр]],ДействителиЗаОфис[#Headers],0)) -> 1.00 лв. | G13: =INDEX(ПланираниЗаОфис[],MATCH(INDEX(РазликиЗаОфис[],ROW()-ROW(РазликиЗаОфис[[#Headers],[Май]]),1),INDEX(ПланираниЗаОфис[],,1),0),MATCH(РазликиЗаОфис[[#Headers],[Май]],ПланираниЗаОфис[#Headers],0))-INDEX(ДействителиЗаОфис[],MATCH(INDEX(РазликиЗаОфис[],ROW()-ROW(РазликиЗаОфис[[#Headers],[Май]]),1),INDEX(ПланираниЗаОфис[],,1),0),MATCH(РазликиЗаОфис[[#Headers],[Май]],ДействителиЗаОфис[#Headers],0)) -> -6.00 лв. | H13: =INDEX(ПланираниЗаОфис[],MATCH(INDEX(РазликиЗаОфис[],ROW()-ROW(РазликиЗаОфис[[#Headers],[Юни]]),1),INDEX(ПланираниЗаОфис[],,1),0),MATCH(РазликиЗаОфис[[#Headers],[Юни]],ПланираниЗаОфис[#Headers],0))-INDEX(ДействителиЗаОфис[],MATCH(INDEX(РазликиЗаОфис[],ROW()-ROW(РазликиЗаОфис[[#Headers],[Юни]]),1),INDEX(ПланираниЗаОфис[],,1),0),MATCH(РазликиЗаОфис[[#Headers],[Юни]],ДействителиЗаОфис[#Headers],0)) -> 10.00 лв. | I13: =INDEX(ПланираниЗаОфис[],MATCH(INDEX(РазликиЗаОфис[],ROW()-ROW(РазликиЗаОфис[[#Headers],[Юли]]),1),INDEX(ПланираниЗаОфис[],,1),0),MATCH(РазликиЗаОфис[[#Headers],[Юли]],ПланираниЗаОфис[#Headers],0))-INDEX(ДействителиЗаОфис[],MATCH(INDEX(РазликиЗаОфис[],ROW()-ROW(РазликиЗаОфис[[#Headers],[Юли]]),1),INDEX(ПланираниЗаОфис[],,1),0),MATCH(РазликиЗаОфис[[#Headers],[Юли]],ДействителиЗаОфис[#Headers],0)) -> 300.00 лв. | J13: =INDEX(ПланираниЗаОфис[],MATCH(INDEX(РазликиЗаОфис[],ROW()-ROW(РазликиЗаОфис[[#Headers],[Авг]]),1),INDEX(ПланираниЗаОфис[],,1),0),MATCH(РазликиЗаОфис[[#Headers],[Авг]],ПланираниЗаОфис[#Headers],0))-INDEX(ДействителиЗаОфис[],MATCH(INDEX(РазликиЗаОфис[],ROW()-ROW(РазликиЗаОфис[[#Headers],[Авг]]),1),INDEX(ПланираниЗаОфис[],,1),0),MATCH(РазликиЗаОфис[[#Headers],[Авг]],ДействителиЗаОфис[#Headers],0)) -> 300.00 лв. | K13: =INDEX(ПланираниЗаОфис[],MATCH(INDEX(РазликиЗаОфис[],ROW()-ROW(РазликиЗаОфис[[#Headers],[Сеп]]),1),INDEX(ПланираниЗаОфис[],,1),0),MATCH(РазликиЗаОфис[[#Headers],[Сеп]],ПланираниЗаОфис[#Headers],0))-INDEX(ДействителиЗаОфис[],MATCH(INDEX(РазликиЗаОфис[],ROW()-ROW(РазликиЗаОфис[[#Headers],[Сеп]]),1),INDEX(ПланираниЗаОфис[],,1),0),MATCH(РазликиЗаОфис[[#Headers],[Сеп]],ДействителиЗаОфис[#Headers],0)) -> 300.00 лв. | L13: =INDEX(ПланираниЗаОфис[],MATCH(INDEX(РазликиЗаОфис[],ROW()-ROW(РазликиЗаОфис[[#Headers],[Окт]]),1),INDEX(ПланираниЗаОфис[],,1),0),MATCH(РазликиЗаОфис[[#Headers],[Окт]],ПланираниЗаОфис[#Headers],0))-INDEX(ДействителиЗаОфис[],MATCH(INDEX(РазликиЗаОфис[],ROW()-ROW(РазликиЗаОфис[[#Headers],[Окт]]),1),INDEX(ПланираниЗаОфис[],,1),0),MATCH(РазликиЗаОфис[[#Headers],[Окт]],ДействителиЗаОфис[#Headers],0)) -> 300.00 лв. | M13: =INDEX(ПланираниЗаОфис[],MATCH(INDEX(РазликиЗаОфис[],ROW()-ROW(РазликиЗаОфис[[#Headers],[Ное]]),1),INDEX(ПланираниЗаОфис[],,1),0),MATCH(РазликиЗаОфис[[#Headers],[Ное]],ПланираниЗаОфис[#Headers],0))-INDEX(ДействителиЗаОфис[],MATCH(INDEX(РазликиЗаОфис[],ROW()-ROW(РазликиЗаОфис[[#Headers],[Ное]]),1),INDEX(ПланираниЗаОфис[],,1),0),MATCH(РазликиЗаОфис[[#Headers],[Ное]],ДействителиЗаОфис[#Headers],0)) -> 300.00 лв. | N13: =INDEX(ПланираниЗаОфис[],MATCH(INDEX(РазликиЗаОфис[],ROW()-ROW(РазликиЗаОфис[[#Headers],[Дек]]),1),INDEX(ПланираниЗаОфис[],,1),0),MATCH(РазликиЗаОфис[[#Headers],[Дек]],ПланираниЗаОфис[#Headers],0))-INDEX(ДействителиЗаОфис[],MATCH(INDEX(РазликиЗаОфис[],ROW()-ROW(РазликиЗаОфис[[#Headers],[Дек]]),1),INDEX(ПланираниЗаОфис[],,1),0),MATCH(РазликиЗаОфис[[#Headers],[Дек]],ДействителиЗаОфис[#Headers],0)) -> 300.00 лв. | O13: =SUM(РазликиЗаОфис[[#This Row],[Янр]:[Дек]]) -> 1,871.00 лв.
B14: Вода | C14: =INDEX(ПланираниЗаОфис[],MATCH(INDEX(РазликиЗаОфис[],ROW()-ROW(РазликиЗаОфис[[#Headers],[Янр]]),1),INDEX(ПланираниЗаОфис[],,1),0),MATCH(РазликиЗаОфис[[#Headers],[Янр]],ПланираниЗаОфис[#Headers],0))-INDEX(ДействителиЗаОфис[],MATCH(INDEX(РазликиЗаОфис[],ROW()-ROW(РазликиЗаОфис[[#Headers],[Янр]]),1),INDEX(ПланираниЗаОфис[],,1),0),MATCH(РазликиЗаОфис[[#Headers],[Янр]],ДействителиЗаОфис[#Headers],0)) -> 5.00 лв. | D14: =INDEX(ПланираниЗаОфис[],MATCH(INDEX(РазликиЗаОфис[],ROW()-ROW(РазликиЗаОфис[[#Headers],[Фев]]),1),INDEX(ПланираниЗаОфис[],,1),0),MATCH(РазликиЗаОфис[[#Headers],[Фев]],ПланираниЗаОфис[#Headers],0))-INDEX(ДействителиЗаОфис[],MATCH(INDEX(РазликиЗаОфис[],ROW()-ROW(РазликиЗаОфис[[#Headers],[Фев]]),1),INDEX(ПланираниЗаОфис[],,1),0),MATCH(РазликиЗаОфис[[#Headers],[Фев]],ДействителиЗаОфис[#Headers],0)) -> 7.00 лв. | E14: =INDEX(ПланираниЗаОфис[],MATCH(INDEX(РазликиЗаОфис[],ROW()-ROW(РазликиЗаОфис[[#Headers],[Мар]]),1),INDEX(ПланираниЗаОфис[],,1),0),MATCH(РазликиЗаОфис[[#Headers],[Мар]],ПланираниЗаОфис[#Headers],0))-INDEX(ДействителиЗаОфис[],MATCH(INDEX(РазликиЗаОфис[],ROW()-ROW(РазликиЗаОфис[[#Headers],[Мар]]),1),INDEX(ПланираниЗаОфис[],,1),0),MATCH(РазликиЗаОфис[[#Headers],[Мар]],ДействителиЗаОфис[#Headers],0)) -> 6.00 лв. | F14: =INDEX(ПланираниЗаОфис[],MATCH(INDEX(РазликиЗаОфис[],ROW()-ROW(РазликиЗаОфис[[#Headers],[Апр]]),1),INDEX(ПланираниЗаОфис[],,1),0),MATCH(РазликиЗаОфис[[#Headers],[Апр]],ПланираниЗаОфис[#Headers],0))-INDEX(ДействителиЗаОфис[],MATCH(INDEX(РазликиЗаОфис[],ROW()-ROW(РазликиЗаОфис[[#Headers],[Апр]]),1),INDEX(ПланираниЗаОфис[],,1),0),MATCH(РазликиЗаОфис[[#Headers],[Апр]],ДействителиЗаОфис[#Headers],0)) -> 4.00 лв. | G14: =INDEX(ПланираниЗаОфис[],MATCH(INDEX(РазликиЗаОфис[],ROW()-ROW(РазликиЗаОфис[[#Headers],[Май]]),1),INDEX(ПланираниЗаОфис[],,1),0),MATCH(РазликиЗаОфис[[#Headers],[Май]],ПланираниЗаОфис[#Headers],0))-INDEX(ДействителиЗаОфис[],MATCH(INDEX(РазликиЗаОфис[],ROW()-ROW(РазликиЗаОфис[[#Headers],[Май]]),1),INDEX(ПланираниЗаОфис[],,1),0),MATCH(РазликиЗаОфис[[#Headers],[Май]],ДействителиЗаОфис[#Headers],0)) -> 6.00 лв. | H14: =INDEX(ПланираниЗаОфис[],MATCH(INDEX(РазликиЗаОфис[],ROW()-ROW(РазликиЗаОфис[[#Headers],[Юни]]),1),INDEX(ПланираниЗаОфис[],,1),0),MATCH(РазликиЗаОфис[[#Headers],[Юни]],ПланираниЗаОфис[#Headers],0))-INDEX(ДействителиЗаОфис[],MATCH(INDEX(РазликиЗаОфис[],ROW()-ROW(РазликиЗаОфис[[#Headers],[Юни]]),1),INDEX(ПланираниЗаОфис[],,1),0),MATCH(РазликиЗаОфис[[#Headers],[Юни]],ДействителиЗаОфис[#Headers],0)) -> 4.00 лв. | I14: =INDEX(ПланираниЗаОфис[],MATCH(INDEX(РазликиЗаОфис[],ROW()-ROW(РазликиЗаОфис[[#Headers],[Юли]]),1),INDEX(ПланираниЗаОфис[],,1),0),MATCH(РазликиЗаОфис[[#Headers],[Юли]],ПланираниЗаОфис[#Headers],0))-INDEX(ДействителиЗаОфис[],MATCH(INDEX(РазликиЗаОфис[],ROW()-ROW(РазликиЗаОфис[[#Headers],[Юли]]),1),INDEX(ПланираниЗаОфис[],,1),0),MATCH(РазликиЗаОфис[[#Headers],[Юли]],ДействителиЗаОфис[#Headers],0)) -> 40.00 лв. | J14: =INDEX(ПланираниЗаОфис[],MATCH(INDEX(РазликиЗаОфис[],ROW()-ROW(РазликиЗаОфис[[#Headers],[Авг]]),1),INDEX(ПланираниЗаОфис[],,1),0),MATCH(РазликиЗаОфис[[#Headers],[Авг]],ПланираниЗаОфис[#Headers],0))-INDEX(ДействителиЗаОфис[],MATCH(INDEX(РазликиЗаОфис[],ROW()-ROW(РазликиЗаОфис[[#Headers],[Авг]]),1),INDEX(ПланираниЗаОфис[],,1),0),MATCH(РазликиЗаОфис[[#Headers],[Авг]],ДействителиЗаОфис[#Headers],0)) -> 40.00 лв. | K14: =INDEX(ПланираниЗаОфис[],MATCH(INDEX(РазликиЗаОфис[],ROW()-ROW(РазликиЗаОфис[[#Headers],[Сеп]]),1),INDEX(ПланираниЗаОфис[],,1),0),MATCH(РазликиЗаОфис[[#Headers],[Сеп]],ПланираниЗаОфис[#Headers],0))-INDEX(ДействителиЗаОфис[],MATCH(INDEX(РазликиЗаОфис[],ROW()-ROW(РазликиЗаОфис[[#Headers],[Сеп]]),1),INDEX(ПланираниЗаОфис[],,1),0),MATCH(РазликиЗаОфис[[#Headers],[Сеп]],ДействителиЗаОфис[#Headers],0)) -> 40.00 лв. | L14: =INDEX(ПланираниЗаОфис[],MATCH(INDEX(РазликиЗаОфис[],ROW()-ROW(РазликиЗаОфис[[#Headers],[Окт]]),1),INDEX(ПланираниЗаОфис[],,1),0),MATCH(РазликиЗаОфис[[#Headers],[Окт]],ПланираниЗаОфис[#Headers],0))-INDEX(ДействителиЗаОфис[],MATCH(INDEX(РазликиЗаОфис[],ROW()-ROW(РазликиЗаОфис[[#Headers],[Окт]]),1),INDEX(ПланираниЗаОфис[],,1),0),MATCH(РазликиЗаОфис[[#Headers],[Окт]],ДействителиЗаОфис[#Headers],0)) -> 40.00 лв. | M14: =INDEX(ПланираниЗаОфис[],MATCH(INDEX(РазликиЗаОфис[],ROW()-ROW(РазликиЗаОфис[[#Headers],[Ное]]),1),INDEX(ПланираниЗаОфис[],,1),0),MATCH(РазликиЗаОфис[[#Headers],[Ное]],ПланираниЗаОфис[#Headers],0))-INDEX(ДействителиЗаОфис[],MATCH(INDEX(РазликиЗаОфис[],ROW()-ROW(РазликиЗаОфис[[#Headers],[Ное]]),1),INDEX(ПланираниЗаОфис[],,1),0),MATCH(РазликиЗаОфис[[#Headers],[Ное]],ДействителиЗаОфис[#Headers],0)) -> 40.00 лв. | N14: =INDEX(ПланираниЗаОфис[],MATCH(INDEX(РазликиЗаОфис[],ROW()-ROW(РазликиЗаОфис[[#Headers],[Дек]]),1),INDEX(ПланираниЗаОфис[],,1),0),MATCH(РазликиЗаОфис[[#Headers],[Дек]],ПланираниЗаОфис[#Headers],0))-INDEX(ДействителиЗаОфис[],MATCH(INDEX(РазликиЗаОфис[],ROW()-ROW(РазликиЗаОфис[[#Headers],[Дек]]),1),INDEX(ПланираниЗаОфис[],,1),0),MATCH(РазликиЗаОфис[[#Headers],[Дек]],ДействителиЗаОфис[#Headers],0)) -> 40.00 лв. | O14: =SUM(РазликиЗаОфис[[#This Row],[Янр]:[Дек]]) -> 272.00 лв.
B15: Телефон | C15: =INDEX(ПланираниЗаОфис[],MATCH(INDEX(РазликиЗаОфис[],ROW()-ROW(РазликиЗаОфис[[#Headers],[Янр]]),1),INDEX(ПланираниЗаОфис[],,1),0),MATCH(РазликиЗаОфис[[#Headers],[Янр]],ПланираниЗаОфис[#Headers],0))-INDEX(ДействителиЗаОфис[],MATCH(INDEX(РазликиЗаОфис[],ROW()-ROW(РазликиЗаОфис[[#Headers],[Янр]]),1),INDEX(ПланираниЗаОфис[],,1),0),MATCH(РазликиЗаОфис[[#Headers],[Янр]],ДействителиЗаОфис[#Headers],0)) -> 26.00 лв. | D15: =INDEX(ПланираниЗаОфис[],MATCH(INDEX(РазликиЗаОфис[],ROW()-ROW(РазликиЗаОфис[[#Headers],[Фев]]),1),INDEX(ПланираниЗаОфис[],,1),0),MATCH(РазликиЗаОфис[[#Headers],[Фев]],ПланираниЗаОфис[#Headers],0))-INDEX(ДействителиЗаОфис[],MATCH(INDEX(РазликиЗаОфис[],ROW()-ROW(РазликиЗаОфис[[#Headers],[Фев]]),1),INDEX(ПланираниЗаОфис[],,1),0),MATCH(РазликиЗаОфис[[#Headers],[Фев]],ДействителиЗаОфис[#Headers],0)) -> 15.00 лв. | E15: =INDEX(ПланираниЗаОфис[],MATCH(INDEX(РазликиЗаОфис[],ROW()-ROW(РазликиЗаОфис[[#Headers],[Мар]]),1),INDEX(ПланираниЗаОфис[],,1),0),MATCH(РазликиЗаОфис[[#Headers],[Мар]],ПланираниЗаОфис[#Headers],0))-INDEX(ДействителиЗаОфис[],MATCH(INDEX(РазликиЗаОфис[],ROW()-ROW(РазликиЗаОфис[[#Headers],[Мар]]),1),INDEX(ПланираниЗаОфис[],,1),0),MATCH(РазликиЗаОфис[[#Headers],[Мар]],ДействителиЗаОфис[#Headers],0)) -> -15.00 лв. | F15: =INDEX(ПланираниЗаОфис[],MATCH(INDEX(РазликиЗаОфис[],ROW()-ROW(РазликиЗаОфис[[#Headers],[Апр]]),1),INDEX(ПланираниЗаОфис[],,1),0),MATCH(РазликиЗаОфис[[#Headers],[Апр]],ПланираниЗаОфис[#Headers],0))-INDEX(ДействителиЗаОфис[],MATCH(INDEX(РазликиЗаОфис[],ROW()-ROW(РазликиЗаОфис[[#Headers],[Апр]]),1),INDEX(ПланираниЗаОфис[],,1),0),MATCH(РазликиЗаОфис[[#Headers],[Апр]],ДействителиЗаОфис[#Headers],0)) -> 5.00 лв. | G15: =INDEX(ПланираниЗаОфис[],MATCH(INDEX(РазликиЗаОфис[],ROW()-ROW(РазликиЗаОфис[[#Headers],[Май]]),1),INDEX(ПланираниЗаОфис[],,1),0),MATCH(РазликиЗаОфис[[#Headers],[Май]],ПланираниЗаОфис[#Headers],0))-INDEX(ДействителиЗаОфис[],MATCH(INDEX(РазликиЗаОфис[],ROW()-ROW(РазликиЗаОфис[[#Headers],[Май]]),1),INDEX(ПланираниЗаОфис[],,1),0),MATCH(РазликиЗаОфис[[#Headers],[Май]],ДействителиЗаОфис[#Headers],0)) -> 5.00 лв. | H15: =INDEX(ПланираниЗаОфис[],MATCH(INDEX(РазликиЗаОфис[],ROW()-ROW(РазликиЗаОфис[[#Headers],[Юни]]),1),INDEX(ПланираниЗаОфис[],,1),0),MATCH(РазликиЗаОфис[[#Headers],[Юни]],ПланираниЗаОфис[#Headers],0))-INDEX(ДействителиЗаОфис[],MATCH(INDEX(РазликиЗаОфис[],ROW()-ROW(РазликиЗаОфис[[#Headers],[Юни]]),1),INDEX(ПланираниЗаОфис[],,1),0),MATCH(РазликиЗаОфис[[#Headers],[Юни]],ДействителиЗаОфис[#Headers],0)) -> 30.00 лв. | I15: =INDEX(ПланираниЗаОфис[],MATCH(INDEX(РазликиЗаОфис[],ROW()-ROW(РазликиЗаОфис[[#Headers],[Юли]]),1),INDEX(ПланираниЗаОфис[],,1),0),MATCH(РазликиЗаОфис[[#Headers],[Юли]],ПланираниЗаОфис[#Headers],0))-INDEX(ДействителиЗаОфис[],MATCH(INDEX(РазликиЗаОфис[],ROW()-ROW(РазликиЗаОфис[[#Headers],[Юли]]),1),INDEX(ПланираниЗаОфис[],,1),0),MATCH(РазликиЗаОфис[[#Headers],[Юли]],ДействителиЗаОфис[#Headers],0)) -> 250.00 лв. | J15: =INDEX(ПланираниЗаОфис[],MATCH(INDEX(РазликиЗаОфис[],ROW()-ROW(РазликиЗаОфис[[#Headers],[Авг]]),1),INDEX(ПланираниЗаОфис[],,1),0),MATCH(РазликиЗаОфис[[#Headers],[Авг]],ПланираниЗаОфис[#Headers],0))-INDEX(ДействителиЗаОфис[],MATCH(INDEX(РазликиЗаОфис[],ROW()-ROW(РазликиЗаОфис[[#Headers],[Авг]]),1),INDEX(ПланираниЗаОфис[],,1),0),MATCH(РазликиЗаОфис[[#Headers],[Авг]],ДействителиЗаОфис[#Headers],0)) -> 250.00 лв. | K15: =INDEX(ПланираниЗаОфис[],MATCH(INDEX(РазликиЗаОфис[],ROW()-ROW(РазликиЗаОфис[[#Headers],[Сеп]]),1),INDEX(ПланираниЗаОфис[],,1),0),MATCH(РазликиЗаОфис[[#Headers],[Сеп]],ПланираниЗаОфис[#Headers],0))-INDEX(ДействителиЗаОфис[],MATCH(INDEX(РазликиЗаОфис[],ROW()-ROW(РазликиЗаОфис[[#Headers],[Сеп]]),1),INDEX(ПланираниЗаОфис[],,1),0),MATCH(РазликиЗаОфис[[#Headers],[Сеп]],ДействителиЗаОфис[#Headers],0)) -> 250.00 лв. | L15: =INDEX(ПланираниЗаОфис[],MATCH(INDEX(РазликиЗаОфис[],ROW()-ROW(РазликиЗаОфис[[#Headers],[Окт]]),1),INDEX(ПланираниЗаОфис[],,1),0),MATCH(РазликиЗаОфис[[#Headers],[Окт]],ПланираниЗаОфис[#Headers],0))-INDEX(ДействителиЗаОфис[],MATCH(INDEX(РазликиЗаОфис[],ROW()-ROW(РазликиЗаОфис[[#Headers],[Окт]]),1),INDEX(ПланираниЗаОфис[],,1),0),MATCH(РазликиЗаОфис[[#Headers],[Окт]],ДействителиЗаОфис[#Headers],0)) -> 250.00 лв. | M15: =INDEX(ПланираниЗаОфис[],MATCH(INDEX(РазликиЗаОфис[],ROW()-ROW(РазликиЗаОфис[[#Headers],[Ное]]),1),INDEX(ПланираниЗаОфис[],,1),0),MATCH(РазликиЗаОфис[[#Headers],[Ное]],ПланираниЗаОфис[#Headers],0))-INDEX(ДействителиЗаОфис[],MATCH(INDEX(РазликиЗаОфис[],ROW()-ROW(РазликиЗаОфис[[#Headers],[Ное]]),1),INDEX(ПланираниЗаОфис[],,1),0),MATCH(РазликиЗаОфис[[#Headers],[Ное]],ДействителиЗаОфис[#Headers],0)) -> 250.00 лв. | N15: =INDEX(ПланираниЗаОфис[],MATCH(INDEX(РазликиЗаОфис[],ROW()-ROW(РазликиЗаОфис[[#Headers],[Дек]]),1),INDEX(ПланираниЗаОфис[],,1),0),MATCH(РазликиЗаОфис[[#Headers],[Дек]],ПланираниЗаОфис[#Headers],0))-INDEX(ДействителиЗаОфис[],MATCH(INDEX(РазликиЗаОфис[],ROW()-ROW(РазликиЗаОфис[[#Headers],[Дек]]),1),INDEX(ПланираниЗаОфис[],,1),0),MATCH(РазликиЗаОфис[[#Headers],[Дек]],ДействителиЗаОфис[#Headers],0)) -> 250.00 лв. | O15: =SUM(РазликиЗаОфис[[#This Row],[Янр]:[Дек]]) -> 1,566.00 лв.
B16: Достъп до интернет | C16: =INDEX(ПланираниЗаОфис[],MATCH(INDEX(РазликиЗаОфис[],ROW()-ROW(РазликиЗаОфис[[#Headers],[Янр]]),1),INDEX(ПланираниЗаОфис[],,1),0),MATCH(РазликиЗаОфис[[#Headers],[Янр]],ПланираниЗаОфис[#Headers],0))-INDEX(ДействителиЗаОфис[],MATCH(INDEX(РазликиЗаОфис[],ROW()-ROW(РазликиЗаОфис[[#Headers],[Янр]]),1),INDEX(ПланираниЗаОфис[],,1),0),MATCH(РазликиЗаОфис[[#Headers],[Янр]],ДействителиЗаОфис[#Headers],0)) -> 0.00 лв. | D16: =INDEX(ПланираниЗаОфис[],MATCH(INDEX(РазликиЗаОфис[],ROW()-ROW(РазликиЗаОфис[[#Headers],[Фев]]),1),INDEX(ПланираниЗаОфис[],,1),0),MATCH(РазликиЗаОфис[[#Headers],[Фев]],ПланираниЗаОфис[#Headers],0))-INDEX(ДействителиЗаОфис[],MATCH(INDEX(РазликиЗаОфис[],ROW()-ROW(РазликиЗаОфис[[#Headers],[Фев]]),1),INDEX(ПланираниЗаОфис[],,1),0),MATCH(РазликиЗаОфис[[#Headers],[Фев]],ДействителиЗаОфис[#Headers],0)) -> 0.00 лв. | E16: =INDEX(ПланираниЗаОфис[],MATCH(INDEX(РазликиЗаОфис[],ROW()-ROW(РазликиЗаОфис[[#Headers],[Мар]]),1),INDEX(ПланираниЗаОфис[],,1),0),MATCH(РазликиЗаОфис[[#Headers],[Мар]],ПланираниЗаОфис[#Headers],0))-INDEX(ДействителиЗаОфис[],MATCH(INDEX(РазликиЗаОфис[],ROW()-ROW(РазликиЗаОфис[[#Headers],[Мар]]),1),INDEX(ПланираниЗаОфис[],,1),0),MATCH(РазликиЗаОфис[[#Headers],[Мар]],ДействителиЗаОфис[#Headers],0)) -> 0.00 лв. | F16: =INDEX(ПланираниЗаОфис[],MATCH(INDEX(РазликиЗаОфис[],ROW()-ROW(РазликиЗаОфис[[#Headers],[Апр]]),1),INDEX(ПланираниЗаОфис[],,1),0),MATCH(РазликиЗаОфис[[#Headers],[Апр]],ПланираниЗаОфис[#Headers],0))-INDEX(ДействителиЗаОфис[],MATCH(INDEX(РазликиЗаОфис[],ROW()-ROW(РазликиЗаОфис[[#Headers],[Апр]]),1),INDEX(ПланираниЗаОфис[],,1),0),MATCH(РазликиЗаОфис[[#Headers],[Апр]],ДействителиЗаОфис[#Headers],0)) -> 0.00 лв. | G16: =INDEX(ПланираниЗаОфис[],MATCH(INDEX(РазликиЗаОфис[],ROW()-ROW(РазликиЗаОфис[[#Headers],[Май]]),1),INDEX(ПланираниЗаОфис[],,1),0),MATCH(РазликиЗаОфис[[#Headers],[Май]],ПланираниЗаОфис[#Headers],0))-INDEX(ДействителиЗаОфис[],MATCH(INDEX(РазликиЗаОфис[],ROW()-ROW(РазликиЗаОфис[[#Headers],[Май]]),1),INDEX(ПланираниЗаОфис[],,1),0),MATCH(РазликиЗаОфис[[#Headers],[Май]],ДействителиЗаОфис[#Headers],0)) -> 0.00 лв. | H16: =INDEX(ПланираниЗаОфис[],MATCH(INDEX(РазликиЗаОфис[],ROW()-ROW(РазликиЗаОфис[[#Headers],[Юни]]),1),INDEX(ПланираниЗаОфис[],,1),0),MATCH(РазликиЗаОфис[[#Headers],[Юни]],ПланираниЗаОфис[#Headers],0))-INDEX(ДействителиЗаОфис[],MATCH(INDEX(РазликиЗаОфис[],ROW()-ROW(РазликиЗаОфис[[#Headers],[Юни]]),1),INDEX(ПланираниЗаОфис[],,1),0),MATCH(РазликиЗаОфис[[#Headers],[Юни]],ДействителиЗаОфис[#Headers],0)) -> 0.00 лв. | I16: =INDEX(ПланираниЗаОфис[],MATCH(INDEX(РазликиЗаОфис[],ROW()-ROW(РазликиЗаОфис[[#Headers],[Юли]]),1),INDEX(ПланираниЗаОфис[],,1),0),MATCH(РазликиЗаОфис[[#Headers],[Юли]],ПланираниЗаОфис[#Headers],0))-INDEX(ДействителиЗаОфис[],MATCH(INDEX(РазликиЗаОфис[],ROW()-ROW(РазликиЗаОфис[[#Headers],[Юли]]),1),INDEX(ПланираниЗаОфис[],,1),0),MATCH(РазликиЗаОфис[[#Headers],[Юли]],ДействителиЗаОфис[#Headers],0)) -> 180.00 лв. | J16: =INDEX(ПланираниЗаОфис[],MATCH(INDEX(РазликиЗаОфис[],ROW()-ROW(РазликиЗаОфис[[#Headers],[Авг]]),1),INDEX(ПланираниЗаОфис[],,1),0),MATCH(РазликиЗаОфис[[#Headers],[Авг]],ПланираниЗаОфис[#Headers],0))-INDEX(ДействителиЗаОфис[],MATCH(INDEX(РазликиЗаОфис[],ROW()-ROW(РазликиЗаОфис[[#Headers],[Авг]]),1),INDEX(ПланираниЗаОфис[],,1),0),MATCH(РазликиЗаОфис[[#Headers],[Авг]],ДействителиЗаОфис[#Headers],0)) -> 180.00 лв. | K16: =INDEX(ПланираниЗаОфис[],MATCH(INDEX(РазликиЗаОфис[],ROW()-ROW(РазликиЗаОфис[[#Headers],[Сеп]]),1),INDEX(ПланираниЗаОфис[],,1),0),MATCH(РазликиЗаОфис[[#Headers],[Сеп]],ПланираниЗаОфис[#Headers],0))-INDEX(ДействителиЗаОфис[],MATCH(INDEX(РазликиЗаОфис[],ROW()-ROW(РазликиЗаОфис[[#Headers],[Сеп]]),1),INDEX(ПланираниЗаОфис[],,1),0),MATCH(РазликиЗаОфис[[#Headers],[Сеп]],ДействителиЗаОфис[#Headers],0)) -> 180.00 лв. | L16: =INDEX(ПланираниЗаОфис[],MATCH(INDEX(РазликиЗаОфис[],ROW()-ROW(РазликиЗаОфис[[#Headers],[Окт]]),1),INDEX(ПланираниЗаОфис[],,1),0),MATCH(РазликиЗаОфис[[#Headers],[Окт]],ПланираниЗаОфис[#Headers],0))-INDEX(ДействителиЗаОфис[],MATCH(INDEX(РазликиЗаОфис[],ROW()-ROW(РазликиЗаОфис[[#Headers],[Окт]]),1),INDEX(ПланираниЗаОфис[],,1),0),MATCH(РазликиЗаОфис[[#Headers],[Окт]],ДействителиЗаОфис[#Headers],0)) -> 180.00 лв. | M16: =INDEX(ПланираниЗаОфис[],MATCH(INDEX(РазликиЗаОфис[],ROW()-ROW(РазликиЗаОфис[[#Headers],[Ное]]),1),INDEX(ПланираниЗаОфис[],,1),0),MATCH(РазликиЗаОфис[[#Headers],[Ное]],ПланираниЗаОфис[#Headers],0))-INDEX(ДействителиЗаОфис[],MATCH(INDEX(РазликиЗаОфис[],ROW()-ROW(РазликиЗаОфис[[#Headers],[Ное]]),1),INDEX(ПланираниЗаОфис[],,1),0),MATCH(РазликиЗаОфис[[#Headers],[Ное]],ДействителиЗаОфис[#Headers],0)) -> 180.00 лв. | N16: =INDEX(ПланираниЗаОфис[],MATCH(INDEX(РазликиЗаОфис[],ROW()-ROW(РазликиЗаОфис[[#Headers],[Дек]]),1),INDEX(ПланираниЗаОфис[],,1),0),MATCH(РазликиЗаОфис[[#Headers],[Дек]],ПланираниЗаОфис[#Headers],0))-INDEX(ДействителиЗаОфис[],MATCH(INDEX(РазликиЗаОфис[],ROW()-ROW(РазликиЗаОфис[[#Headers],[Дек]]),1),INDEX(ПланираниЗаОфис[],,1),0),MATCH(РазликиЗаОфис[[#Headers],[Дек]],ДействителиЗаОфис[#Headers],0)) -> 180.00 лв. | O16: =SUM(РазликиЗаОфис[[#This Row],[Янр]:[Дек]]) -> 1,080.00 лв.
B17: Канцеларски материали | C17: =INDEX(ПланираниЗаОфис[],MATCH(INDEX(РазликиЗаОфис[],ROW()-ROW(РазликиЗаОфис[[#Headers],[Янр]]),1),INDEX(ПланираниЗаОфис[],,1),0),MATCH(РазликиЗаОфис[[#Headers],[Янр]],ПланираниЗаОфис[#Headers],0))-INDEX(ДействителиЗаОфис[],MATCH(INDEX(РазликиЗаОфис[],ROW()-ROW(РазликиЗаОфис[[#Headers],[Янр]]),1),INDEX(ПланираниЗаОфис[],,1),0),MATCH(РазликиЗаОфис[[#Headers],[Янр]],ДействителиЗаОфис[#Headers],0)) -> -56.00 лв. | D17: =INDEX(ПланираниЗаОфис[],MATCH(INDEX(РазликиЗаОфис[],ROW()-ROW(РазликиЗаОфис[[#Headers],[Фев]]),1),INDEX(ПланираниЗаОфис[],,1),0),MATCH(РазликиЗаОфис[[#Headers],[Фев]],ПланираниЗаОфис[#Headers],0))-INDEX(ДействителиЗаОфис[],MATCH(INDEX(РазликиЗаОфис[],ROW()-ROW(РазликиЗаОфис[[#Headers],[Фев]]),1),INDEX(ПланираниЗаОфис[],,1),0),MATCH(РазликиЗаОфис[[#Headers],[Фев]],ДействителиЗаОфис[#Headers],0)) -> 58.00 лв. | E17: =INDEX(ПланираниЗаОфис[],MATCH(INDEX(РазликиЗаОфис[],ROW()-ROW(РазликиЗаОфис[[#Headers],[Мар]]),1),INDEX(ПланираниЗаОфис[],,1),0),MATCH(РазликиЗаОфис[[#Headers],[Мар]],ПланираниЗаОфис[#Headers],0))-INDEX(ДействителиЗаОфис[],MATCH(INDEX(РазликиЗаОфис[],ROW()-ROW(РазликиЗаОфис[[#Headers],[Мар]]),1),INDEX(ПланираниЗаОфис[],,1),0),MATCH(РазликиЗаОфис[[#Headers],[Мар]],ДействителиЗаОфис[#Headers],0)) -> 40.00 лв. | F17: =INDEX(ПланираниЗаОфис[],MATCH(INDEX(РазликиЗаОфис[],ROW()-ROW(РазликиЗаОфис[[#Headers],[Апр]]),1),INDEX(ПланираниЗаОфис[],,1),0),MATCH(РазликиЗаОфис[[#Headers],[Апр]],ПланираниЗаОфис[#Headers],0))-INDEX(ДействителиЗаОфис[],MATCH(INDEX(РазликиЗаОфис[],ROW()-ROW(РазликиЗаОфис[[#Headers],[Апр]]),1),INDEX(ПланираниЗаОфис[],,1),0),MATCH(РазликиЗаОфис[[#Headers],[Апр]],ДействителиЗаОфис[#Headers],0)) -> -21.00 лв. | G17: =INDEX(ПланираниЗаОфис[],MATCH(INDEX(РазликиЗаОфис[],ROW()-ROW(РазликиЗаОфис[[#Headers],[Май]]),1),INDEX(ПланираниЗаОфис[],,1),0),MATCH(РазликиЗаОфис[[#Headers],[Май]],ПланираниЗаОфис[#Headers],0))-INDEX(ДействителиЗаОфис[],MATCH(INDEX(РазликиЗаОфис[],ROW()-ROW(РазликиЗаОфис[[#Headers],[Май]]),1),INDEX(ПланираниЗаОфис[],,1),0),MATCH(РазликиЗаОфис[[#Headers],[Май]],ДействителиЗаОфис[#Headers],0)) -> -56.00 лв. | H17: =INDEX(ПланираниЗаОфис[],MATCH(INDEX(РазликиЗаОфис[],ROW()-ROW(РазликиЗаОфис[[#Headers],[Юни]]),1),INDEX(ПланираниЗаОфис[],,1),0),MATCH(РазликиЗаОфис[[#Headers],[Юни]],ПланираниЗаОфис[#Headers],0))-INDEX(ДействителиЗаОфис[],MATCH(INDEX(РазликиЗаОфис[],ROW()-ROW(РазликиЗаОфис[[#Headers],[Юни]]),1),INDEX(ПланираниЗаОфис[],,1),0),MATCH(РазликиЗаОфис[[#Headers],[Юни]],ДействителиЗаОфис[#Headers],0)) -> -40.00 лв. | I17: =INDEX(ПланираниЗаОфис[],MATCH(INDEX(РазликиЗаОфис[],ROW()-ROW(РазликиЗаОфис[[#Headers],[Юли]]),1),INDEX(ПланираниЗаОфис[],,1),0),MATCH(РазликиЗаОфис[[#Headers],[Юли]],ПланираниЗаОфис[#Headers],0))-INDEX(ДействителиЗаОфис[],MATCH(INDEX(РазликиЗаОфис[],ROW()-ROW(РазликиЗаОфис[[#Headers],[Юли]]),1),INDEX(ПланираниЗаОфис[],,1),0),MATCH(РазликиЗаОфис[[#Headers],[Юли]],ДействителиЗаОфис[#Headers],0)) -> 200.00 лв. | J17: =INDEX(ПланираниЗаОфис[],MATCH(INDEX(РазликиЗаОфис[],ROW()-ROW(РазликиЗаОфис[[#Headers],[Авг]]),1),INDEX(ПланираниЗаОфис[],,1),0),MATCH(РазликиЗаОфис[[#Headers],[Авг]],ПланираниЗаОфис[#Headers],0))-INDEX(ДействителиЗаОфис[],MATCH(INDEX(РазликиЗаОфис[],ROW()-ROW(РазликиЗаОфис[[#Headers],[Авг]]),1),INDEX(ПланираниЗаОфис[],,1),0),MATCH(РазликиЗаОфис[[#Headers],[Авг]],ДействителиЗаОфис[#Headers],0)) -> 200.00 лв. | K17: =INDEX(ПланираниЗаОфис[],MATCH(INDEX(РазликиЗаОфис[],ROW()-ROW(РазликиЗаОфис[[#Headers],[Сеп]]),1),INDEX(ПланираниЗаОфис[],,1),0),MATCH(РазликиЗаОфис[[#Headers],[Сеп]],ПланираниЗаОфис[#Headers],0))-INDEX(ДействителиЗаОфис[],MATCH(INDEX(РазликиЗаОфис[],ROW()-ROW(РазликиЗаОфис[[#Headers],[Сеп]]),1),INDEX(ПланираниЗаОфис[],,1),0),MATCH(РазликиЗаОфис[[#Headers],[Сеп]],ДействителиЗаОфис[#Headers],0)) -> 200.00 лв. | L17: =INDEX(ПланираниЗаОфис[],MATCH(INDEX(РазликиЗаОфис[],ROW()-ROW(РазликиЗаОфис[[#Headers],[Окт]]),1),INDEX(ПланираниЗаОфис[],,1),0),MATCH(РазликиЗаОфис[[#Headers],[Окт]],ПланираниЗаОфис[#Headers],0))-INDEX(ДействителиЗаОфис[],MATCH(INDEX(РазликиЗаОфис[],ROW()-ROW(РазликиЗаОфис[[#Headers],[Окт]]),1),INDEX(ПланираниЗаОфис[],,1),0),MATCH(РазликиЗаОфис[[#Headers],[Окт]],ДействителиЗаОфис[#Headers],0)) -> 200.00 лв. | M17: =INDEX(ПланираниЗаОфис[],MATCH(INDEX(РазликиЗаОфис[],ROW()-ROW(РазликиЗаОфис[[#Headers],[Ное]]),1),INDEX(ПланираниЗаОфис[],,1),0),MATCH(РазликиЗаОфис[[#Headers],[Ное]],ПланираниЗаОфис[#Headers],0))-INDEX(ДействителиЗаОфис[],MATCH(INDEX(РазликиЗаОфис[],ROW()-ROW(РазликиЗаОфис[[#Headers],[Ное]]),1),INDEX(ПланираниЗаОфис[],,1),0),MATCH(РазликиЗаОфис[[#Headers],[Ное]],ДействителиЗаОфис[#Headers],0)) -> 200.00 лв. | N17: =INDEX(ПланираниЗаОфис[],MATCH(INDEX(РазликиЗаОфис[],ROW()-ROW(РазликиЗаОфис[[#Headers],[Дек]]),1),INDEX(ПланираниЗаОфис[],,1),0),MATCH(РазликиЗаОфис[[#Headers],[Дек]],ПланираниЗаОфис[#Headers],0))-INDEX(ДействителиЗаОфис[],MATCH(INDEX(РазликиЗаОфис[],ROW()-ROW(РазликиЗаОфис[[#Headers],[Дек]]),1),INDEX(ПланираниЗаОфис[],,1),0),MATCH(РазликиЗаОфис[[#Headers],[Дек]],ДействителиЗаОфис[#Headers],0)) -> 200.00 лв. | O17: =SUM(РазликиЗаОфис[[#This Row],[Янр]:[Дек]]) -> 1,125.00 лв.
B18: Охрана | C18: =INDEX(ПланираниЗаОфис[],MATCH(INDEX(РазликиЗаОфис[],ROW()-ROW(РазликиЗаОфис[[#Headers],[Янр]]),1),INDEX(ПланираниЗаОфис[],,1),0),MATCH(РазликиЗаОфис[[#Headers],[Янр]],ПланираниЗаОфис[#Headers],0))-INDEX(ДействителиЗаОфис[],MATCH(INDEX(РазликиЗаОфис[],ROW()-ROW(РазликиЗаОфис[[#Headers],[Янр]]),1),INDEX(ПланираниЗаОфис[],,1),0),MATCH(РазликиЗаОфис[[#Headers],[Янр]],ДействителиЗаОфис[#Headers],0)) -> 0.00 лв. | D18: =INDEX(ПланираниЗаОфис[],MATCH(INDEX(РазликиЗаОфис[],ROW()-ROW(РазликиЗаОфис[[#Headers],[Фев]]),1),INDEX(ПланираниЗаОфис[],,1),0),MATCH(РазликиЗаОфис[[#Headers],[Фев]],ПланираниЗаОфис[#Headers],0))-INDEX(ДействителиЗаОфис[],MATCH(INDEX(РазликиЗаОфис[],ROW()-ROW(РазликиЗаОфис[[#Headers],[Фев]]),1),INDEX(ПланираниЗаОфис[],,1),0),MATCH(РазликиЗаОфис[[#Headers],[Фев]],ДействителиЗаОфис[#Headers],0)) -> 0.00 лв. | E18: =INDEX(ПланираниЗаОфис[],MATCH(INDEX(РазликиЗаОфис[],ROW()-ROW(РазликиЗаОфис[[#Headers],[Мар]]),1),INDEX(ПланираниЗаОфис[],,1),0),MATCH(РазликиЗаОфис[[#Headers],[Мар]],ПланираниЗаОфис[#Headers],0))-INDEX(ДействителиЗаОфис[],MATCH(INDEX(РазликиЗаОфис[],ROW()-ROW(РазликиЗаОфис[[#Headers],[Мар]]),1),INDEX(ПланираниЗаОфис[],,1),0),MATCH(РазликиЗаОфис[[#Headers],[Мар]],ДействителиЗаОфис[#Headers],0)) -> 0.00 лв. | F18: =INDEX(ПланираниЗаОфис[],MATCH(INDEX(РазликиЗаОфис[],ROW()-ROW(РазликиЗаОфис[[#Headers],[Апр]]),1),INDEX(ПланираниЗаОфис[],,1),0),MATCH(РазликиЗаОфис[[#Headers],[Апр]],ПланираниЗаОфис[#Headers],0))-INDEX(ДействителиЗаОфис[],MATCH(INDEX(РазликиЗаОфис[],ROW()-ROW(РазликиЗаОфис[[#Headers],[Апр]]),1),INDEX(ПланираниЗаОфис[],,1),0),MATCH(РазликиЗаОфис[[#Headers],[Апр]],ДействителиЗаОфис[#Headers],0)) -> 0.00 лв. | G18: =INDEX(ПланираниЗаОфис[],MATCH(INDEX(РазликиЗаОфис[],ROW()-ROW(РазликиЗаОфис[[#Headers],[Май]]),1),INDEX(ПланираниЗаОфис[],,1),0),MATCH(РазликиЗаОфис[[#Headers],[Май]],ПланираниЗаОфис[#Headers],0))-INDEX(ДействителиЗаОфис[],MATCH(INDEX(РазликиЗаОфис[],ROW()-ROW(РазликиЗаОфис[[#Headers],[Май]]),1),INDEX(ПланираниЗаОфис[],,1),0),MATCH(РазликиЗаОфис[[#Headers],[Май]],ДействителиЗаОфис[#Headers],0)) -> 0.00 лв. | H18: =INDEX(ПланираниЗаОфис[],MATCH(INDEX(РазликиЗаОфис[],ROW()-ROW(РазликиЗаОфис[[#Headers],[Юни]]),1),INDEX(ПланираниЗаОфис[],,1),0),MATCH(РазликиЗаОфис[[#Headers],[Юни]],ПланираниЗаОфис[#Headers],0))-INDEX(ДействителиЗаОфис[],MATCH(INDEX(РазликиЗаОфис[],ROW()-ROW(РазликиЗаОфис[[#Headers],[Юни]]),1),INDEX(ПланираниЗаОфис[],,1),0),MATCH(РазликиЗаОфис[[#Headers],[Юни]],ДействителиЗаОфис[#Headers],0)) -> 0.00 лв. | I18: =INDEX(ПланираниЗаОфис[],MATCH(INDEX(РазликиЗаОфис[],ROW()-ROW(РазликиЗаОфис[[#Headers],[Юли]]),1),INDEX(ПланираниЗаОфис[],,1),0),MATCH(РазликиЗаОфис[[#Headers],[Юли]],ПланираниЗаОфис[#Headers],0))-INDEX(ДействителиЗаОфис[],MATCH(INDEX(РазликиЗаОфис[],ROW()-ROW(РазликиЗаОфис[[#Headers],[Юли]]),1),INDEX(ПланираниЗаОфис[],,1),0),MATCH(РазликиЗаОфис[[#Headers],[Юли]],ДействителиЗаОфис[#Headers],0)) -> 600.00 лв. | J18: =INDEX(ПланираниЗаОфис[],MATCH(INDEX(РазликиЗаОфис[],ROW()-ROW(РазликиЗаОфис[[#Headers],[Авг]]),1),INDEX(ПланираниЗаОфис[],,1),0),MATCH(РазликиЗаОфис[[#Headers],[Авг]],ПланираниЗаОфис[#Headers],0))-INDEX(ДействителиЗаОфис[],MATCH(INDEX(РазликиЗаОфис[],ROW()-ROW(РазликиЗаОфис[[#Headers],[Авг]]),1),INDEX(ПланираниЗаОфис[],,1),0),MATCH(РазликиЗаОфис[[#Headers],[Авг]],ДействителиЗаОфис[#Headers],0)) -> 600.00 лв. | K18: =INDEX(ПланираниЗаОфис[],MATCH(INDEX(РазликиЗаОфис[],ROW()-ROW(РазликиЗаОфис[[#Headers],[Сеп]]),1),INDEX(ПланираниЗаОфис[],,1),0),MATCH(РазликиЗаОфис[[#Headers],[Сеп]],ПланираниЗаОфис[#Headers],0))-INDEX(ДействителиЗаОфис[],MATCH(INDEX(РазликиЗаОфис[],ROW()-ROW(РазликиЗаОфис[[#Headers],[Сеп]]),1),INDEX(ПланираниЗаОфис[],,1),0),MATCH(РазликиЗаОфис[[#Headers],[Сеп]],ДействителиЗаОфис[#Headers],0)) -> 600.00 лв. | L18: =INDEX(ПланираниЗаОфис[],MATCH(INDEX(РазликиЗаОфис[],ROW()-ROW(РазликиЗаОфис[[#Headers],[Окт]]),1),INDEX(ПланираниЗаОфис[],,1),0),MATCH(РазликиЗаОфис[[#Headers],[Окт]],ПланираниЗаОфис[#Headers],0))-INDEX(ДействителиЗаОфис[],MATCH(INDEX(РазликиЗаОфис[],ROW()-ROW(РазликиЗаОфис[[#Headers],[Окт]]),1),INDEX(ПланираниЗаОфис[],,1),0),MATCH(РазликиЗаОфис[[#Headers],[Окт]],ДействителиЗаОфис[#Headers],0)) -> 600.00 лв. | M18: =INDEX(ПланираниЗаОфис[],MATCH(INDEX(РазликиЗаОфис[],ROW()-ROW(РазликиЗаОфис[[#Headers],[Ное]]),1),INDEX(ПланираниЗаОфис[],,1),0),MATCH(РазликиЗаОфис[[#Headers],[Ное]],ПланираниЗаОфис[#Headers],0))-INDEX(ДействителиЗаОфис[],MATCH(INDEX(РазликиЗаОфис[],ROW()-ROW(РазликиЗаОфис[[#Headers],[Ное]]),1),INDEX(ПланираниЗаОфис[],,1),0),MATCH(РазликиЗаОфис[[#Headers],[Ное]],ДействителиЗаОфис[#Headers],0)) -> 600.00 лв. | N18: =INDEX(ПланираниЗаОфис[],MATCH(INDEX(РазликиЗаОфис[],ROW()-ROW(РазликиЗаОфис[[#Headers],[Дек]]),1),INDEX(ПланираниЗаОфис[],,1),0),MATCH(РазликиЗаОфис[[#Headers],[Дек]],ПланираниЗаОфис[#Headers],0))-INDEX(ДействителиЗаОфис[],MATCH(INDEX(РазликиЗаОфис[],ROW()-ROW(РазликиЗаОфис[[#Headers],[Дек]]),1),INDEX(ПланираниЗаОфис[],,1),0),MATCH(РазликиЗаОфис[[#Headers],[Дек]],ДействителиЗаОфис[#Headers],0)) -> 600.00 лв. | O18: =SUM(РазликиЗаОфис[[#This Row],[Янр]:[Дек]]) -> 3,600.00 лв.
B19: Междинна сума | C19: =SUBTOTAL(109,РазликиЗаОфис[Янр]) -> -17.00 лв. | D19: =SUBTOTAL(109,РазликиЗаОфис[Фев]) -> 72.00 лв. | E19: =SUBTOTAL(109,РазликиЗаОфис[Мар]) -> 78.00 лв. | F19: =SUBTOTAL(109,РазликиЗаОфис[Апр]) -> -141.00 лв. | G19: =SUBTOTAL(109,РазликиЗаОфис[Май]) -> -38.00 лв. | H19: =SUBTOTAL(109,РазликиЗаОфис[Юни]) -> 16.00 лв. | I19: =SUBTOTAL(109,РазликиЗаОфис[Юли]) -> 11,470.00 лв. | J19: =SUBTOTAL(109,РазликиЗаОфис[Авг]) -> 11,470.00 лв. | K19: =SUBTOTAL(109,РазликиЗаОфис[Сеп]) -> 11,470.00 лв. | L19: =SUBTOTAL(109,РазликиЗаОфис[Окт]) -> 11,470.00 лв. | M19: =SUBTOTAL(109,РазликиЗаОфис[Ное]) -> 11,770.00 лв. | N19: =SUBTOTAL(109,РазликиЗаОфис[Дек]) -> 11,770.00 лв. | O19: =SUBTOTAL(109,РазликиЗаОфис[ГОДИНА]) -> 69,390.00 лв.
A21: Разликата в разходи за маркетинг се изчислява автоматично в таблицата "Разлики за маркетинг", започваща от клетката вдясно. Следващата инструкция е в клетка A30. | B21: Разходи за маркетинг | C21: Янр | D21: Фев | E21: Мар | F21: Апр | G21: Май | H21: Юни | I21: Юли | J21: Авг | K21: Сеп | L21: Окт | M21: Ное | N21: Дек | O21: ГОДИНА
B22: Хостинг на уеб сайт | C22: =INDEX(ПланираниЗаМаркетинг[],MATCH(INDEX(РазликиЗаМаркетинг[],ROW()-ROW(РазликиЗаМаркетинг[[#Headers],[Янр]]),1),INDEX(ПланираниЗаМаркетинг[],,1),0),MATCH(РазликиЗаМаркетинг[[#Headers],[Янр]],ПланираниЗаМаркетинг[#Headers],0))-INDEX(ДействителниЗаМаркетинг[],MATCH(INDEX(РазликиЗаМаркетинг[],ROW()-ROW(РазликиЗаМаркетинг[[#Headers],[Янр]]),1),INDEX(ПланираниЗаМаркетинг[],,1),0),MATCH(РазликиЗаМаркетинг[[#Headers],[Янр]],ДействителниЗаМаркетинг[#Headers],0)) -> 0.00 лв. | D22: =INDEX(ПланираниЗаМаркетинг[],MATCH(INDEX(РазликиЗаМаркетинг[],ROW()-ROW(РазликиЗаМаркетинг[[#Headers],[Фев]]),1),INDEX(ПланираниЗаМаркетинг[],,1),0),MATCH(РазликиЗаМаркетинг[[#Headers],[Фев]],ПланираниЗаМаркетинг[#Headers],0))-INDEX(ДействителниЗаМаркетинг[],MATCH(INDEX(РазликиЗаМаркетинг[],ROW()-ROW(РазликиЗаМаркетинг[[#Headers],[Фев]]),1),INDEX(ПланираниЗаМаркетинг[],,1),0),MATCH(РазликиЗаМаркетинг[[#Headers],[Фев]],ДействителниЗаМаркетинг[#Headers],0)) -> 0.00 лв. | E22: =INDEX(ПланираниЗаМаркетинг[],MATCH(INDEX(РазликиЗаМаркетинг[],ROW()-ROW(РазликиЗаМаркетинг[[#Headers],[Мар]]),1),INDEX(ПланираниЗаМаркетинг[],,1),0),MATCH(РазликиЗаМаркетинг[[#Headers],[Мар]],ПланираниЗаМаркетинг[#Headers],0))-INDEX(ДействителниЗаМаркетинг[],MATCH(INDEX(РазликиЗаМаркетинг[],ROW()-ROW(РазликиЗаМаркетинг[[#Headers],[Мар]]),1),INDEX(ПланираниЗаМаркетинг[],,1),0),MATCH(РазликиЗаМаркетинг[[#Headers],[Мар]],ДействителниЗаМаркетинг[#Headers],0)) -> 0.00 лв. | F22: =INDEX(ПланираниЗаМаркетинг[],MATCH(INDEX(РазликиЗаМаркетинг[],ROW()-ROW(РазликиЗаМаркетинг[[#Headers],[Апр]]),1),INDEX(ПланираниЗаМаркетинг[],,1),0),MATCH(РазликиЗаМаркетинг[[#Headers],[Апр]],ПланираниЗаМаркетинг[#Headers],0))-INDEX(ДействителниЗаМаркетинг[],MATCH(INDEX(РазликиЗаМаркетинг[],ROW()-ROW(РазликиЗаМаркетинг[[#Headers],[Апр]]),1),INDEX(ПланираниЗаМаркетинг[],,1),0),MATCH(РазликиЗаМаркетинг[[#Headers],[Апр]],ДействителниЗаМаркетинг[#Headers],0)) -> 0.00 лв. | G22: =INDEX(ПланираниЗаМаркетинг[],MATCH(INDEX(РазликиЗаМаркетинг[],ROW()-ROW(РазликиЗаМаркетинг[[#Headers],[Май]]),1),INDEX(ПланираниЗаМаркетинг[],,1),0),MATCH(РазликиЗаМаркетинг[[#Headers],[Май]],ПланираниЗаМаркетинг[#Headers],0))-INDEX(ДействителниЗаМаркетинг[],MATCH(INDEX(РазликиЗаМаркетинг[],ROW()-ROW(РазликиЗаМаркетинг[[#Headers],[Май]]),1),INDEX(ПланираниЗаМаркетинг[],,1),0),MATCH(РазликиЗаМаркетинг[[#Headers],[Май]],ДействителниЗаМаркетинг[#Headers],0)) -> 0.00 лв. | H22: =INDEX(ПланираниЗаМаркетинг[],MATCH(INDEX(РазликиЗаМаркетинг[],ROW()-ROW(РазликиЗаМаркетинг[[#Headers],[Юни]]),1),INDEX(ПланираниЗаМаркетинг[],,1),0),MATCH(РазликиЗаМаркетинг[[#Headers],[Юни]],ПланираниЗаМаркетинг[#Headers],0))-INDEX(ДействителниЗаМаркетинг[],MATCH(INDEX(РазликиЗаМаркетинг[],ROW()-ROW(РазликиЗаМаркетинг[[#Headers],[Юни]]),1),INDEX(ПланираниЗаМаркетинг[],,1),0),MATCH(РазликиЗаМаркетинг[[#Headers],[Юни]],ДействителниЗаМаркетинг[#Headers],0)) -> 0.00 лв. | I22: =INDEX(ПланираниЗаМаркетинг[],MATCH(INDEX(РазликиЗаМаркетинг[],ROW()-ROW(РазликиЗаМаркетинг[[#Headers],[Юли]]),1),INDEX(ПланираниЗаМаркетинг[],,1),0),MATCH(РазликиЗаМаркетинг[[#Headers],[Юли]],ПланираниЗаМаркетинг[#Headers],0))-INDEX(ДействителниЗаМаркетинг[],MATCH(INDEX(РазликиЗаМаркетинг[],ROW()-ROW(РазликиЗаМаркетинг[[#Headers],[Юли]]),1),INDEX(ПланираниЗаМаркетинг[],,1),0),MATCH(РазликиЗаМаркетинг[[#Headers],[Юли]],ДействителниЗаМаркетинг[#Headers],0)) -> 500.00 лв. | J22: =INDEX(ПланираниЗаМаркетинг[],MATCH(INDEX(РазликиЗаМаркетинг[],ROW()-ROW(РазликиЗаМаркетинг[[#Headers],[Авг]]),1),INDEX(ПланираниЗаМаркетинг[],,1),0),MATCH(РазликиЗаМаркетинг[[#Headers],[Авг]],ПланираниЗаМаркетинг[#Headers],0))-INDEX(ДействителниЗаМаркетинг[],MATCH(INDEX(РазликиЗаМаркетинг[],ROW()-ROW(РазликиЗаМаркетинг[[#Headers],[Авг]]),1),INDEX(ПланираниЗаМаркетинг[],,1),0),MATCH(РазликиЗаМаркетинг[[#Headers],[Авг]],ДействителниЗаМаркетинг[#Headers],0)) -> 500.00 лв. | K22: =INDEX(ПланираниЗаМаркетинг[],MATCH(INDEX(РазликиЗаМаркетинг[],ROW()-ROW(РазликиЗаМаркетинг[[#Headers],[Сеп]]),1),INDEX(ПланираниЗаМаркетинг[],,1),0),MATCH(РазликиЗаМаркетинг[[#Headers],[Сеп]],ПланираниЗаМаркетинг[#Headers],0))-INDEX(ДействителниЗаМаркетинг[],MATCH(INDEX(РазликиЗаМаркетинг[],ROW()-ROW(РазликиЗаМаркетинг[[#Headers],[Сеп]]),1),INDEX(ПланираниЗаМаркетинг[],,1),0),MATCH(РазликиЗаМаркетинг[[#Headers],[Сеп]],ДействителниЗаМаркетинг[#Headers],0)) -> 500.00 лв. | L22: =INDEX(ПланираниЗаМаркетинг[],MATCH(INDEX(РазликиЗаМаркетинг[],ROW()-ROW(РазликиЗаМаркетинг[[#Headers],[Окт]]),1),INDEX(ПланираниЗаМаркетинг[],,1),0),MATCH(РазликиЗаМаркетинг[[#Headers],[Окт]],ПланираниЗаМаркетинг[#Headers],0))-INDEX(ДействителниЗаМаркетинг[],MATCH(INDEX(РазликиЗаМаркетинг[],ROW()-ROW(РазликиЗаМаркетинг[[#Headers],[Окт]]),1),INDEX(ПланираниЗаМаркетинг[],,1),0),MATCH(РазликиЗаМаркетинг[[#Headers],[Окт]],ДействителниЗаМаркетинг[#Headers],0)) -> 500.00 лв. | M22: =INDEX(ПланираниЗаМаркетинг[],MATCH(INDEX(РазликиЗаМаркетинг[],ROW()-ROW(РазликиЗаМаркетинг[[#Headers],[Ное]]),1),INDEX(ПланираниЗаМаркетинг[],,1),0),MATCH(РазликиЗаМаркетинг[[#Headers],[Ное]],ПланираниЗаМаркетинг[#Headers],0))-INDEX(ДействителниЗаМаркетинг[],MATCH(INDEX(РазликиЗаМаркетинг[],ROW()-ROW(РазликиЗаМаркетинг[[#Headers],[Ное]]),1),INDEX(ПланираниЗаМаркетинг[],,1),0),MATCH(РазликиЗаМаркетинг[[#Headers],[Ное]],ДействителниЗаМаркетинг[#Headers],0)) -> 500.00 лв. | N22: =INDEX(ПланираниЗаМаркетинг[],MATCH(INDEX(РазликиЗаМаркетинг[],ROW()-ROW(РазликиЗаМаркетинг[[#Headers],[Дек]]),1),INDEX(ПланираниЗаМаркетинг[],,1),0),MATCH(РазликиЗаМаркетинг[[#Headers],[Дек]],ПланираниЗаМаркетинг[#Headers],0))-INDEX(ДействителниЗаМаркетинг[],MATCH(INDEX(РазликиЗаМаркетинг[],ROW()-ROW(РазликиЗаМаркетинг[[#Headers],[Дек]]),1),INDEX(ПланираниЗаМаркетинг[],,1),0),MATCH(РазликиЗаМаркетинг[[#Headers],[Дек]],ДействителниЗаМаркетинг[#Headers],0)) -> 500.00 лв. | O22: =SUM(РазликиЗаМаркетинг[[#This Row],[Янр]:[Дек]]) -> 3,000.00 лв.
B23: Актуализации на уеб сайт | C23: =INDEX(ПланираниЗаМаркетинг[],MATCH(INDEX(РазликиЗаМаркетинг[],ROW()-ROW(РазликиЗаМаркетинг[[#Headers],[Янр]]),1),INDEX(ПланираниЗаМаркетинг[],,1),0),MATCH(РазликиЗаМаркетинг[[#Headers],[Янр]],ПланираниЗаМаркетинг[#Headers],0))-INDEX(ДействителниЗаМаркетинг[],MATCH(INDEX(РазликиЗаМаркетинг[],ROW()-ROW(РазликиЗаМаркетинг[[#Headers],[Янр]]),1),INDEX(ПланираниЗаМаркетинг[],,1),0),MATCH(РазликиЗаМаркетинг[[#Headers],[Янр]],ДействителниЗаМаркетинг[#Headers],0)) -> 0.00 лв. | D23: =INDEX(ПланираниЗаМаркетинг[],MATCH(INDEX(РазликиЗаМаркетинг[],ROW()-ROW(РазликиЗаМаркетинг[[#Headers],[Фев]]),1),INDEX(ПланираниЗаМаркетинг[],,1),0),MATCH(РазликиЗаМаркетинг[[#Headers],[Фев]],ПланираниЗаМаркетинг[#Headers],0))-INDEX(ДействителниЗаМаркетинг[],MATCH(INDEX(РазликиЗаМаркетинг[],ROW()-ROW(РазликиЗаМаркетинг[[#Headers],[Фев]]),1),INDEX(ПланираниЗаМаркетинг[],,1),0),MATCH(РазликиЗаМаркетинг[[#Headers],[Фев]],ДействителниЗаМаркетинг[#Headers],0)) -> 0.00 лв. | E23: =INDEX(ПланираниЗаМаркетинг[],MATCH(INDEX(РазликиЗаМаркетинг[],ROW()-ROW(РазликиЗаМаркетинг[[#Headers],[Мар]]),1),INDEX(ПланираниЗаМаркетинг[],,1),0),MATCH(РазликиЗаМаркетинг[[#Headers],[Мар]],ПланираниЗаМаркетинг[#Headers],0))-INDEX(ДействителниЗаМаркетинг[],MATCH(INDEX(РазликиЗаМаркетинг[],ROW()-ROW(РазликиЗаМаркетинг[[#Headers],[Мар]]),1),INDEX(ПланираниЗаМаркетинг[],,1),0),MATCH(РазликиЗаМаркетинг[[#Headers],[Мар]],ДействителниЗаМаркетинг[#Headers],0)) -> 0.00 лв. | F23: =INDEX(ПланираниЗаМаркетинг[],MATCH(INDEX(РазликиЗаМаркетинг[],ROW()-ROW(РазликиЗаМаркетинг[[#Headers],[Апр]]),1),INDEX(ПланираниЗаМаркетинг[],,1),0),MATCH(РазликиЗаМаркетинг[[#Headers],[Апр]],ПланираниЗаМаркетинг[#Headers],0))-INDEX(ДействителниЗаМаркетинг[],MATCH(INDEX(РазликиЗаМаркетинг[],ROW()-ROW(РазликиЗаМаркетинг[[#Headers],[Апр]]),1),INDEX(ПланираниЗаМаркетинг[],,1),0),MATCH(РазликиЗаМаркетинг[[#Headers],[Апр]],ДействителниЗаМаркетинг[#Headers],0)) -> 0.00 лв. | G23: =INDEX(ПланираниЗаМаркетинг[],MATCH(INDEX(РазликиЗаМаркетинг[],ROW()-ROW(РазликиЗаМаркетинг[[#Headers],[Май]]),1),INDEX(ПланираниЗаМаркетинг[],,1),0),MATCH(РазликиЗаМаркетинг[[#Headers],[Май]],ПланираниЗаМаркетинг[#Headers],0))-INDEX(ДействителниЗаМаркетинг[],MATCH(INDEX(РазликиЗаМаркетинг[],ROW()-ROW(РазликиЗаМаркетинг[[#Headers],[Май]]),1),INDEX(ПланираниЗаМаркетинг[],,1),0),MATCH(РазликиЗаМаркетинг[[#Headers],[Май]],ДействителниЗаМаркетинг[#Headers],0)) -> 0.00 лв. | H23: =INDEX(ПланираниЗаМаркетинг[],MATCH(INDEX(РазликиЗаМаркетинг[],ROW()-ROW(РазликиЗаМаркетинг[[#Headers],[Юни]]),1),INDEX(ПланираниЗаМаркетинг[],,1),0),MATCH(РазликиЗаМаркетинг[[#Headers],[Юни]],ПланираниЗаМаркетинг[#Headers],0))-INDEX(ДействителниЗаМаркетинг[],MATCH(INDEX(РазликиЗаМаркетинг[],ROW()-ROW(РазликиЗаМаркетинг[[#Headers],[Юни]]),1),INDEX(ПланираниЗаМаркетинг[],,1),0),MATCH(РазликиЗаМаркетинг[[#Headers],[Юни]],ДействителниЗаМаркетинг[#Headers],0)) -> -500.00 лв. | I23: =INDEX(ПланираниЗаМаркетинг[],MATCH(INDEX(РазликиЗаМаркетинг[],ROW()-ROW(РазликиЗаМаркетинг[[#Headers],[Юли]]),1),INDEX(ПланираниЗаМаркетинг[],,1),0),MATCH(РазликиЗаМаркетинг[[#Headers],[Юли]],ПланираниЗаМаркетинг[#Headers],0))-INDEX(ДействителниЗаМаркетинг[],MATCH(INDEX(РазликиЗаМаркетинг[],ROW()-ROW(РазликиЗаМаркетинг[[#Headers],[Юли]]),1),INDEX(ПланираниЗаМаркетинг[],,1),0),MATCH(РазликиЗаМаркетинг[[#Headers],[Юли]],ДействителниЗаМаркетинг[#Headers],0)) -> 200.00 лв. | J23: =INDEX(ПланираниЗаМаркетинг[],MATCH(INDEX(РазликиЗаМаркетинг[],ROW()-ROW(РазликиЗаМаркетинг[[#Headers],[Авг]]),1),INDEX(ПланираниЗаМаркетинг[],,1),0),MATCH(РазликиЗаМаркетинг[[#Headers],[Авг]],ПланираниЗаМаркетинг[#Headers],0))-INDEX(ДействителниЗаМаркетинг[],MATCH(INDEX(РазликиЗаМаркетинг[],ROW()-ROW(РазликиЗаМаркетинг[[#Headers],[Авг]]),1),INDEX(ПланираниЗаМаркетинг[],,1),0),MATCH(РазликиЗаМаркетинг[[#Headers],[Авг]],ДействителниЗаМаркетинг[#Headers],0)) -> 200.00 лв. | K23: =INDEX(ПланираниЗаМаркетинг[],MATCH(INDEX(РазликиЗаМаркетинг[],ROW()-ROW(РазликиЗаМаркетинг[[#Headers],[Сеп]]),1),INDEX(ПланираниЗаМаркетинг[],,1),0),MATCH(РазликиЗаМаркетинг[[#Headers],[Сеп]],ПланираниЗаМаркетинг[#Headers],0))-INDEX(ДействителниЗаМаркетинг[],MATCH(INDEX(РазликиЗаМаркетинг[],ROW()-ROW(РазликиЗаМаркетинг[[#Headers],[Сеп]]),1),INDEX(ПланираниЗаМаркетинг[],,1),0),MATCH(РазликиЗаМаркетинг[[#Headers],[Сеп]],ДействителниЗаМаркетинг[#Headers],0)) -> 200.00 лв. | L23: =INDEX(ПланираниЗаМаркетинг[],MATCH(INDEX(РазликиЗаМаркетинг[],ROW()-ROW(РазликиЗаМаркетинг[[#Headers],[Окт]]),1),INDEX(ПланираниЗаМаркетинг[],,1),0),MATCH(РазликиЗаМаркетинг[[#Headers],[Окт]],ПланираниЗаМаркетинг[#Headers],0))-INDEX(ДействителниЗаМаркетинг[],MATCH(INDEX(РазликиЗаМаркетинг[],ROW()-ROW(РазликиЗаМаркетинг[[#Headers],[Окт]]),1),INDEX(ПланираниЗаМаркетинг[],,1),0),MATCH(РазликиЗаМаркетинг[[#Headers],[Окт]],ДействителниЗаМаркетинг[#Headers],0)) -> 200.00 лв. | M23: =INDEX(ПланираниЗаМаркетинг[],MATCH(INDEX(РазликиЗаМаркетинг[],ROW()-ROW(РазликиЗаМаркетинг[[#Headers],[Ное]]),1),INDEX(ПланираниЗаМаркетинг[],,1),0),MATCH(РазликиЗаМаркетинг[[#Headers],[Ное]],ПланираниЗаМаркетинг[#Headers],0))-INDEX(ДействителниЗаМаркетинг[],MATCH(INDEX(РазликиЗаМаркетинг[],ROW()-ROW(РазликиЗаМаркетинг[[#Headers],[Ное]]),1),INDEX(ПланираниЗаМаркетинг[],,1),0),MATCH(РазликиЗаМаркетинг[[#Headers],[Ное]],ДействителниЗаМаркетинг[#Headers],0)) -> 200.00 лв. | N23: =INDEX(ПланираниЗаМаркетинг[],MATCH(INDEX(РазликиЗаМаркетинг[],ROW()-ROW(РазликиЗаМаркетинг[[#Headers],[Дек]]),1),INDEX(ПланираниЗаМаркетинг[],,1),0),MATCH(РазликиЗаМаркетинг[[#Headers],[Дек]],ПланираниЗаМаркетинг[#Headers],0))-INDEX(ДействителниЗаМаркетинг[],MATCH(INDEX(РазликиЗаМаркетинг[],ROW()-ROW(РазликиЗаМаркетинг[[#Headers],[Дек]]),1),INDEX(ПланираниЗаМаркетинг[],,1),0),MATCH(РазликиЗаМаркетинг[[#Headers],[Дек]],ДействителниЗаМаркетинг[#Headers],0)) -> 1,000.00 лв. | O23: =SUM(РазликиЗаМаркетинг[[#This Row],[Янр]:[Дек]]) -> 1,500.00 лв.
B24: Подготовка на маркетингови материали | C24: =INDEX(ПланираниЗаМаркетинг[],MATCH(INDEX(РазликиЗаМаркетинг[],ROW()-ROW(РазликиЗаМаркетинг[[#Headers],[Янр]]),1),INDEX(ПланираниЗаМаркетинг[],,1),0),MATCH(РазликиЗаМаркетинг[[#Headers],[Янр]],ПланираниЗаМаркетинг[#Headers],0))-INDEX(ДействителниЗаМаркетинг[],MATCH(INDEX(РазликиЗаМаркетинг[],ROW()-ROW(РазликиЗаМаркетинг[[#Headers],[Янр]]),1),INDEX(ПланираниЗаМаркетинг[],,1),0),MATCH(РазликиЗаМаркетинг[[#Headers],[Янр]],ДействителниЗаМаркетинг[#Headers],0)) -> 200.00 лв. | D24: =INDEX(ПланираниЗаМаркетинг[],MATCH(INDEX(РазликиЗаМаркетинг[],ROW()-ROW(РазликиЗаМаркетинг[[#Headers],[Фев]]),1),INDEX(ПланираниЗаМаркетинг[],,1),0),MATCH(РазликиЗаМаркетинг[[#Headers],[Фев]],ПланираниЗаМаркетинг[#Headers],0))-INDEX(ДействителниЗаМаркетинг[],MATCH(INDEX(РазликиЗаМаркетинг[],ROW()-ROW(РазликиЗаМаркетинг[[#Headers],[Фев]]),1),INDEX(ПланираниЗаМаркетинг[],,1),0),MATCH(РазликиЗаМаркетинг[[#Headers],[Фев]],ДействителниЗаМаркетинг[#Headers],0)) -> 0.00 лв. | E24: =INDEX(ПланираниЗаМаркетинг[],MATCH(INDEX(РазликиЗаМаркетинг[],ROW()-ROW(РазликиЗаМаркетинг[[#Headers],[Мар]]),1),INDEX(ПланираниЗаМаркетинг[],,1),0),MATCH(РазликиЗаМаркетинг[[#Headers],[Мар]],ПланираниЗаМаркетинг[#Headers],0))-INDEX(ДействителниЗаМаркетинг[],MATCH(INDEX(РазликиЗаМаркетинг[],ROW()-ROW(РазликиЗаМаркетинг[[#Headers],[Мар]]),1),INDEX(ПланираниЗаМаркетинг[],,1),0),MATCH(РазликиЗаМаркетинг[[#Headers],[Мар]],ДействителниЗаМаркетинг[#Headers],0)) -> 0.00 лв. | F24: =INDEX(ПланираниЗаМаркетинг[],MATCH(INDEX(РазликиЗаМаркетинг[],ROW()-ROW(РазликиЗаМаркетинг[[#Headers],[Апр]]),1),INDEX(ПланираниЗаМаркетинг[],,1),0),MATCH(РазликиЗаМаркетинг[[#Headers],[Апр]],ПланираниЗаМаркетинг[#Headers],0))-INDEX(ДействителниЗаМаркетинг[],MATCH(INDEX(РазликиЗаМаркетинг[],ROW()-ROW(РазликиЗаМаркетинг[[#Headers],[Апр]]),1),INDEX(ПланираниЗаМаркетинг[],,1),0),MATCH(РазликиЗаМаркетинг[[#Headers],[Апр]],ДействителниЗаМаркетинг[#Headers],0)) -> -500.00 лв. | G24: =INDEX(ПланираниЗаМаркетинг[],MATCH(INDEX(РазликиЗаМаркетинг[],ROW()-ROW(РазликиЗаМаркетинг[[#Headers],[Май]]),1),INDEX(ПланираниЗаМаркетинг[],,1),0),MATCH(РазликиЗаМаркетинг[[#Headers],[Май]],ПланираниЗаМаркетинг[#Headers],0))-INDEX(ДействителниЗаМаркетинг[],MATCH(INDEX(РазликиЗаМаркетинг[],ROW()-ROW(РазликиЗаМаркетинг[[#Headers],[Май]]),1),INDEX(ПланираниЗаМаркетинг[],,1),0),MATCH(РазликиЗаМаркетинг[[#Headers],[Май]],ДействителниЗаМаркетинг[#Headers],0)) -> 0.00 лв. | H24: =INDEX(ПланираниЗаМаркетинг[],MATCH(INDEX(РазликиЗаМаркетинг[],ROW()-ROW(РазликиЗаМаркетинг[[#Headers],[Юни]]),1),INDEX(ПланираниЗаМаркетинг[],,1),0),MATCH(РазликиЗаМаркетинг[[#Headers],[Юни]],ПланираниЗаМаркетинг[#Headers],0))-INDEX(ДействителниЗаМаркетинг[],MATCH(INDEX(РазликиЗаМаркетинг[],ROW()-ROW(РазликиЗаМаркетинг[[#Headers],[Юни]]),1),INDEX(ПланираниЗаМаркетинг[],,1),0),MATCH(РазликиЗаМаркетинг[[#Headers],[Юни]],ДействителниЗаМаркетинг[#Headers],0)) -> 0.00 лв. | I24: =INDEX(ПланираниЗаМаркетинг[],MATCH(INDEX(РазликиЗаМаркетинг[],ROW()-ROW(РазликиЗаМаркетинг[[#Headers],[Юли]]),1),INDEX(ПланираниЗаМаркетинг[],,1),0),MATCH(РазликиЗаМаркетинг[[#Headers],[Юли]],ПланираниЗаМаркетинг[#Headers],0))-INDEX(ДействителниЗаМаркетинг[],MATCH(INDEX(РазликиЗаМаркетинг[],ROW()-ROW(РазликиЗаМаркетинг[[#Headers],[Юли]]),1),INDEX(ПланираниЗаМаркетинг[],,1),0),MATCH(РазликиЗаМаркетинг[[#Headers],[Юли]],ДействителниЗаМаркетинг[#Headers],0)) -> 5,000.00 лв. | J24: =INDEX(ПланираниЗаМаркетинг[],MATCH(INDEX(РазликиЗаМаркетинг[],ROW()-ROW(РазликиЗаМаркетинг[[#Headers],[Авг]]),1),INDEX(ПланираниЗаМаркетинг[],,1),0),MATCH(РазликиЗаМаркетинг[[#Headers],[Авг]],ПланираниЗаМаркетинг[#Headers],0))-INDEX(ДействителниЗаМаркетинг[],MATCH(INDEX(РазликиЗаМаркетинг[],ROW()-ROW(РазликиЗаМаркетинг[[#Headers],[Авг]]),1),INDEX(ПланираниЗаМаркетинг[],,1),0),MATCH(РазликиЗаМаркетинг[[#Headers],[Авг]],ДействителниЗаМаркетинг[#Headers],0)) -> 0.00 лв. | K24: =INDEX(ПланираниЗаМаркетинг[],MATCH(INDEX(РазликиЗаМаркетинг[],ROW()-ROW(РазликиЗаМаркетинг[[#Headers],[Сеп]]),1),INDEX(ПланираниЗаМаркетинг[],,1),0),MATCH(РазликиЗаМаркетинг[[#Headers],[Сеп]],ПланираниЗаМаркетинг[#Headers],0))-INDEX(ДействителниЗаМаркетинг[],MATCH(INDEX(РазликиЗаМаркетинг[],ROW()-ROW(РазликиЗаМаркетинг[[#Headers],[Сеп]]),1),INDEX(ПланираниЗаМаркетинг[],,1),0),MATCH(РазликиЗаМаркетинг[[#Headers],[Сеп]],ДействителниЗаМаркетинг[#Headers],0)) -> 0.00 лв. | L24: =INDEX(ПланираниЗаМаркетинг[],MATCH(INDEX(РазликиЗаМаркетинг[],ROW()-ROW(РазликиЗаМаркетинг[[#Headers],[Окт]]),1),INDEX(ПланираниЗаМаркетинг[],,1),0),MATCH(РазликиЗаМаркетинг[[#Headers],[Окт]],ПланираниЗаМаркетинг[#Headers],0))-INDEX(ДействителниЗаМаркетинг[],MATCH(INDEX(РазликиЗаМаркетинг[],ROW()-ROW(РазликиЗаМаркетинг[[#Headers],[Окт]]),1),INDEX(ПланираниЗаМаркетинг[],,1),0),MATCH(РазликиЗаМаркетинг[[#Headers],[Окт]],ДействителниЗаМаркетинг[#Headers],0)) -> 5,000.00 лв. | M24: =INDEX(ПланираниЗаМаркетинг[],MATCH(INDEX(РазликиЗаМаркетинг[],ROW()-ROW(РазликиЗаМаркетинг[[#Headers],[Ное]]),1),INDEX(ПланираниЗаМаркетинг[],,1),0),MATCH(РазликиЗаМаркетинг[[#Headers],[Ное]],ПланираниЗаМаркетинг[#Headers],0))-INDEX(ДействителниЗаМаркетинг[],MATCH(INDEX(РазликиЗаМаркетинг[],ROW()-ROW(РазликиЗаМаркетинг[[#Headers],[Ное]]),1),INDEX(ПланираниЗаМаркетинг[],,1),0),MATCH(РазликиЗаМаркетинг[[#Headers],[Ное]],ДействителниЗаМаркетинг[#Headers],0)) -> 0.00 лв. | N24: =INDEX(ПланираниЗаМаркетинг[],MATCH(INDEX(РазликиЗаМаркетинг[],ROW()-ROW(РазликиЗаМаркетинг[[#Headers],[Дек]]),1),INDEX(ПланираниЗаМаркетинг[],,1),0),MATCH(РазликиЗаМаркетинг[[#Headers],[Дек]],ПланираниЗаМаркетинг[#Headers],0))-INDEX(ДействителниЗаМаркетинг[],MATCH(INDEX(РазликиЗаМаркетинг[],ROW()-ROW(РазликиЗаМаркетинг[[#Headers],[Дек]]),1),INDEX(ПланираниЗаМаркетинг[],,1),0),MATCH(РазликиЗаМаркетинг[[#Headers],[Дек]],ДействителниЗаМаркетинг[#Headers],0)) -> 0.00 лв. | O24: =SUM(РазликиЗаМаркетинг[[#This Row],[Янр]:[Дек]]) -> 9,700.00 лв.
B25: Печат на маркетингови материали | C25: =INDEX(ПланираниЗаМаркетинг[],MATCH(INDEX(РазликиЗаМаркетинг[],ROW()-ROW(РазликиЗаМаркетинг[[#Headers],[Янр]]),1),INDEX(ПланираниЗаМаркетинг[],,1),0),MATCH(РазликиЗаМаркетинг[[#Headers],[Янр]],ПланираниЗаМаркетинг[#Headers],0))-INDEX(ДействителниЗаМаркетинг[],MATCH(INDEX(РазликиЗаМаркетинг[],ROW()-ROW(РазликиЗаМаркетинг[[#Headers],[Янр]]),1),INDEX(ПланираниЗаМаркетинг[],,1),0),MATCH(РазликиЗаМаркетинг[[#Headers],[Янр]],ДействителниЗаМаркетинг[#Headers],0)) -> 100.00 лв. | D25: =INDEX(ПланираниЗаМаркетинг[],MATCH(INDEX(РазликиЗаМаркетинг[],ROW()-ROW(РазликиЗаМаркетинг[[#Headers],[Фев]]),1),INDEX(ПланираниЗаМаркетинг[],,1),0),MATCH(РазликиЗаМаркетинг[[#Headers],[Фев]],ПланираниЗаМаркетинг[#Headers],0))-INDEX(ДействителниЗаМаркетинг[],MATCH(INDEX(РазликиЗаМаркетинг[],ROW()-ROW(РазликиЗаМаркетинг[[#Headers],[Фев]]),1),INDEX(ПланираниЗаМаркетинг[],,1),0),MATCH(РазликиЗаМаркетинг[[#Headers],[Фев]],ДействителниЗаМаркетинг[#Headers],0)) -> -300.00 лв. | E25: =INDEX(ПланираниЗаМаркетинг[],MATCH(INDEX(РазликиЗаМаркетинг[],ROW()-ROW(РазликиЗаМаркетинг[[#Headers],[Мар]]),1),INDEX(ПланираниЗаМаркетинг[],,1),0),MATCH(РазликиЗаМаркетинг[[#Headers],[Мар]],ПланираниЗаМаркетинг[#Headers],0))-INDEX(ДействителниЗаМаркетинг[],MATCH(INDEX(РазликиЗаМаркетинг[],ROW()-ROW(РазликиЗаМаркетинг[[#Headers],[Мар]]),1),INDEX(ПланираниЗаМаркетинг[],,1),0),MATCH(РазликиЗаМаркетинг[[#Headers],[Мар]],ДействителниЗаМаркетинг[#Headers],0)) -> 100.00 лв. | F25: =INDEX(ПланираниЗаМаркетинг[],MATCH(INDEX(РазликиЗаМаркетинг[],ROW()-ROW(РазликиЗаМаркетинг[[#Headers],[Апр]]),1),INDEX(ПланираниЗаМаркетинг[],,1),0),MATCH(РазликиЗаМаркетинг[[#Headers],[Апр]],ПланираниЗаМаркетинг[#Headers],0))-INDEX(ДействителниЗаМаркетинг[],MATCH(INDEX(РазликиЗаМаркетинг[],ROW()-ROW(РазликиЗаМаркетинг[[#Headers],[Апр]]),1),INDEX(ПланираниЗаМаркетинг[],,1),0),MATCH(РазликиЗаМаркетинг[[#Headers],[Апр]],ДействителниЗаМаркетинг[#Headers],0)) -> 100.00 лв. | G25: =INDEX(ПланираниЗаМаркетинг[],MATCH(INDEX(РазликиЗаМаркетинг[],ROW()-ROW(РазликиЗаМаркетинг[[#Headers],[Май]]),1),INDEX(ПланираниЗаМаркетинг[],,1),0),MATCH(РазликиЗаМаркетинг[[#Headers],[Май]],ПланираниЗаМаркетинг[#Headers],0))-INDEX(ДействителниЗаМаркетинг[],MATCH(INDEX(РазликиЗаМаркетинг[],ROW()-ROW(РазликиЗаМаркетинг[[#Headers],[Май]]),1),INDEX(ПланираниЗаМаркетинг[],,1),0),MATCH(РазликиЗаМаркетинг[[#Headers],[Май]],ДействителниЗаМаркетинг[#Headers],0)) -> -400.00 лв. | H25: =INDEX(ПланираниЗаМаркетинг[],MATCH(INDEX(РазликиЗаМаркетинг[],ROW()-ROW(РазликиЗаМаркетинг[[#Headers],[Юни]]),1),INDEX(ПланираниЗаМаркетинг[],,1),0),MATCH(РазликиЗаМаркетинг[[#Headers],[Юни]],ПланираниЗаМаркетинг[#Headers],0))-INDEX(ДействителниЗаМаркетинг[],MATCH(INDEX(РазликиЗаМаркетинг[],ROW()-ROW(РазликиЗаМаркетинг[[#Headers],[Юни]]),1),INDEX(ПланираниЗаМаркетинг[],,1),0),MATCH(РазликиЗаМаркетинг[[#Headers],[Юни]],ДействителниЗаМаркетинг[#Headers],0)) -> 20.00 лв. | I25: =INDEX(ПланираниЗаМаркетинг[],MATCH(INDEX(РазликиЗаМаркетинг[],ROW()-ROW(РазликиЗаМаркетинг[[#Headers],[Юли]]),1),INDEX(ПланираниЗаМаркетинг[],,1),0),MATCH(РазликиЗаМаркетинг[[#Headers],[Юли]],ПланираниЗаМаркетинг[#Headers],0))-INDEX(ДействителниЗаМаркетинг[],MATCH(INDEX(РазликиЗаМаркетинг[],ROW()-ROW(РазликиЗаМаркетинг[[#Headers],[Юли]]),1),INDEX(ПланираниЗаМаркетинг[],,1),0),MATCH(РазликиЗаМаркетинг[[#Headers],[Юли]],ДействителниЗаМаркетинг[#Headers],0)) -> 200.00 лв. | J25: =INDEX(ПланираниЗаМаркетинг[],MATCH(INDEX(РазликиЗаМаркетинг[],ROW()-ROW(РазликиЗаМаркетинг[[#Headers],[Авг]]),1),INDEX(ПланираниЗаМаркетинг[],,1),0),MATCH(РазликиЗаМаркетинг[[#Headers],[Авг]],ПланираниЗаМаркетинг[#Headers],0))-INDEX(ДействителниЗаМаркетинг[],MATCH(INDEX(РазликиЗаМаркетинг[],ROW()-ROW(РазликиЗаМаркетинг[[#Headers],[Авг]]),1),INDEX(ПланираниЗаМаркетинг[],,1),0),MATCH(РазликиЗаМаркетинг[[#Headers],[Авг]],ДействителниЗаМаркетинг[#Headers],0)) -> 200.00 лв. | K25: =INDEX(ПланираниЗаМаркетинг[],MATCH(INDEX(РазликиЗаМаркетинг[],ROW()-ROW(РазликиЗаМаркетинг[[#Headers],[Сеп]]),1),INDEX(ПланираниЗаМаркетинг[],,1),0),MATCH(РазликиЗаМаркетинг[[#Headers],[Сеп]],ПланираниЗаМаркетинг[#Headers],0))-INDEX(ДействителниЗаМаркетинг[],MATCH(INDEX(РазликиЗаМаркетинг[],ROW()-ROW(РазликиЗаМаркетинг[[#Headers],[Сеп]]),1),INDEX(ПланираниЗаМаркетинг[],,1),0),MATCH(РазликиЗаМаркетинг[[#Headers],[Сеп]],ДействителниЗаМаркетинг[#Headers],0)) -> 200.00 лв. | L25: =INDEX(ПланираниЗаМаркетинг[],MATCH(INDEX(РазликиЗаМаркетинг[],ROW()-ROW(РазликиЗаМаркетинг[[#Headers],[Окт]]),1),INDEX(ПланираниЗаМаркетинг[],,1),0),MATCH(РазликиЗаМаркетинг[[#Headers],[Окт]],ПланираниЗаМаркетинг[#Headers],0))-INDEX(ДействителниЗаМаркетинг[],MATCH(INDEX(РазликиЗаМаркетинг[],ROW()-ROW(РазликиЗаМаркетинг[[#Headers],[Окт]]),1),INDEX(ПланираниЗаМаркетинг[],,1),0),MATCH(РазликиЗаМаркетинг[[#Headers],[Окт]],ДействителниЗаМаркетинг[#Headers],0)) -> 200.00 лв. | M25: =INDEX(ПланираниЗаМаркетинг[],MATCH(INDEX(РазликиЗаМаркетинг[],ROW()-ROW(РазликиЗаМаркетинг[[#Headers],[Ное]]),1),INDEX(ПланираниЗаМаркетинг[],,1),0),MATCH(РазликиЗаМаркетинг[[#Headers],[Ное]],ПланираниЗаМаркетинг[#Headers],0))-INDEX(ДействителниЗаМаркетинг[],MATCH(INDEX(РазликиЗаМаркетинг[],ROW()-ROW(РазликиЗаМаркетинг[[#Headers],[Ное]]),1),INDEX(ПланираниЗаМаркетинг[],,1),0),MATCH(РазликиЗаМаркетинг[[#Headers],[Ное]],ДействителниЗаМаркетинг[#Headers],0)) -> 200.00 лв. | N25: =INDEX(ПланираниЗаМаркетинг[],MATCH(INDEX(РазликиЗаМаркетинг[],ROW()-ROW(РазликиЗаМаркетинг[[#Headers],[Дек]]),1),INDEX(ПланираниЗаМаркетинг[],,1),0),MATCH(РазликиЗаМаркетинг[[#Headers],[Дек]],ПланираниЗаМаркетинг[#Headers],0))-INDEX(ДействителниЗаМаркетинг[],MATCH(INDEX(РазликиЗаМаркетинг[],ROW()-ROW(РазликиЗаМаркетинг[[#Headers],[Дек]]),1),INDEX(ПланираниЗаМаркетинг[],,1),0),MATCH(РазликиЗаМаркетинг[[#Headers],[Дек]],ДействителниЗаМаркетинг[#Headers],0)) -> 200.00 лв. | O25: =SUM(РазликиЗаМаркетинг[[#This Row],[Янр]:[Дек]]) -> 820.00 лв.
B26: Маркетингови събития | C26: =INDEX(ПланираниЗаМаркетинг[],MATCH(INDEX(РазликиЗаМаркетинг[],ROW()-ROW(РазликиЗаМаркетинг[[#Headers],[Янр]]),1),INDEX(ПланираниЗаМаркетинг[],,1),0),MATCH(РазликиЗаМаркетинг[[#Headers],[Янр]],ПланираниЗаМаркетинг[#Headers],0))-INDEX(ДействителниЗаМаркетинг[],MATCH(INDEX(РазликиЗаМаркетинг[],ROW()-ROW(РазликиЗаМаркетинг[[#Headers],[Янр]]),1),INDEX(ПланираниЗаМаркетинг[],,1),0),MATCH(РазликиЗаМаркетинг[[#Headers],[Янр]],ДействителниЗаМаркетинг[#Headers],0)) -> 200.00 лв. | D26: =INDEX(ПланираниЗаМаркетинг[],MATCH(INDEX(РазликиЗаМаркетинг[],ROW()-ROW(РазликиЗаМаркетинг[[#Headers],[Фев]]),1),INDEX(ПланираниЗаМаркетинг[],,1),0),MATCH(РазликиЗаМаркетинг[[#Headers],[Фев]],ПланираниЗаМаркетинг[#Headers],0))-INDEX(ДействителниЗаМаркетинг[],MATCH(INDEX(РазликиЗаМаркетинг[],ROW()-ROW(РазликиЗаМаркетинг[[#Headers],[Фев]]),1),INDEX(ПланираниЗаМаркетинг[],,1),0),MATCH(РазликиЗаМаркетинг[[#Headers],[Фев]],ДействителниЗаМаркетинг[#Headers],0)) -> -200.00 лв. | E26: =INDEX(ПланираниЗаМаркетинг[],MATCH(INDEX(РазликиЗаМаркетинг[],ROW()-ROW(РазликиЗаМаркетинг[[#Headers],[Мар]]),1),INDEX(ПланираниЗаМаркетинг[],,1),0),MATCH(РазликиЗаМаркетинг[[#Headers],[Мар]],ПланираниЗаМаркетинг[#Headers],0))-INDEX(ДействителниЗаМаркетинг[],MATCH(INDEX(РазликиЗаМаркетинг[],ROW()-ROW(РазликиЗаМаркетинг[[#Headers],[Мар]]),1),INDEX(ПланираниЗаМаркетинг[],,1),0),MATCH(РазликиЗаМаркетинг[[#Headers],[Мар]],ДействителниЗаМаркетинг[#Headers],0)) -> -200.00 лв. | F26: =INDEX(ПланираниЗаМаркетинг[],MATCH(INDEX(РазликиЗаМаркетинг[],ROW()-ROW(РазликиЗаМаркетинг[[#Headers],[Апр]]),1),INDEX(ПланираниЗаМаркетинг[],,1),0),MATCH(РазликиЗаМаркетинг[[#Headers],[Апр]],ПланираниЗаМаркетинг[#Headers],0))-INDEX(ДействителниЗаМаркетинг[],MATCH(INDEX(РазликиЗаМаркетинг[],ROW()-ROW(РазликиЗаМаркетинг[[#Headers],[Апр]]),1),INDEX(ПланираниЗаМаркетинг[],,1),0),MATCH(РазликиЗаМаркетинг[[#Headers],[Апр]],ДействителниЗаМаркетинг[#Headers],0)) -> 300.00 лв. | G26: =INDEX(ПланираниЗаМаркетинг[],MATCH(INDEX(РазликиЗаМаркетинг[],ROW()-ROW(РазликиЗаМаркетинг[[#Headers],[Май]]),1),INDEX(ПланираниЗаМаркетинг[],,1),0),MATCH(РазликиЗаМаркетинг[[#Headers],[Май]],ПланираниЗаМаркетинг[#Headers],0))-INDEX(ДействителниЗаМаркетинг[],MATCH(INDEX(РазликиЗаМаркетинг[],ROW()-ROW(РазликиЗаМаркетинг[[#Headers],[Май]]),1),INDEX(ПланираниЗаМаркетинг[],,1),0),MATCH(РазликиЗаМаркетинг[[#Headers],[Май]],ДействителниЗаМаркетинг[#Headers],0)) -> 500.00 лв. | H26: =INDEX(ПланираниЗаМаркетинг[],MATCH(INDEX(РазликиЗаМаркетинг[],ROW()-ROW(РазликиЗаМаркетинг[[#Headers],[Юни]]),1),INDEX(ПланираниЗаМаркетинг[],,1),0),MATCH(РазликиЗаМаркетинг[[#Headers],[Юни]],ПланираниЗаМаркетинг[#Headers],0))-INDEX(ДействителниЗаМаркетинг[],MATCH(INDEX(РазликиЗаМаркетинг[],ROW()-ROW(РазликиЗаМаркетинг[[#Headers],[Юни]]),1),INDEX(ПланираниЗаМаркетинг[],,1),0),MATCH(РазликиЗаМаркетинг[[#Headers],[Юни]],ДействителниЗаМаркетинг[#Headers],0)) -> -300.00 лв. | I26: =INDEX(ПланираниЗаМаркетинг[],MATCH(INDEX(РазликиЗаМаркетинг[],ROW()-ROW(РазликиЗаМаркетинг[[#Headers],[Юли]]),1),INDEX(ПланираниЗаМаркетинг[],,1),0),MATCH(РазликиЗаМаркетинг[[#Headers],[Юли]],ПланираниЗаМаркетинг[#Headers],0))-INDEX(ДействителниЗаМаркетинг[],MATCH(INDEX(РазликиЗаМаркетинг[],ROW()-ROW(РазликиЗаМаркетинг[[#Headers],[Юли]]),1),INDEX(ПланираниЗаМаркетинг[],,1),0),MATCH(РазликиЗаМаркетинг[[#Headers],[Юли]],ДействителниЗаМаркетинг[#Headers],0)) -> 2,000.00 лв. | J26: =INDEX(ПланираниЗаМаркетинг[],MATCH(INDEX(РазликиЗаМаркетинг[],ROW()-ROW(РазликиЗаМаркетинг[[#Headers],[Авг]]),1),INDEX(ПланираниЗаМаркетинг[],,1),0),MATCH(РазликиЗаМаркетинг[[#Headers],[Авг]],ПланираниЗаМаркетинг[#Headers],0))-INDEX(ДействителниЗаМаркетинг[],MATCH(INDEX(РазликиЗаМаркетинг[],ROW()-ROW(РазликиЗаМаркетинг[[#Headers],[Авг]]),1),INDEX(ПланираниЗаМаркетинг[],,1),0),MATCH(РазликиЗаМаркетинг[[#Headers],[Авг]],ДействителниЗаМаркетинг[#Headers],0)) -> 5,000.00 лв. | K26: =INDEX(ПланираниЗаМаркетинг[],MATCH(INDEX(РазликиЗаМаркетинг[],ROW()-ROW(РазликиЗаМаркетинг[[#Headers],[Сеп]]),1),INDEX(ПланираниЗаМаркетинг[],,1),0),MATCH(РазликиЗаМаркетинг[[#Headers],[Сеп]],ПланираниЗаМаркетинг[#Headers],0))-INDEX(ДействителниЗаМаркетинг[],MATCH(INDEX(РазликиЗаМаркетинг[],ROW()-ROW(РазликиЗаМаркетинг[[#Headers],[Сеп]]),1),INDEX(ПланираниЗаМаркетинг[],,1),0),MATCH(РазликиЗаМаркетинг[[#Headers],[Сеп]],ДействителниЗаМаркетинг[#Headers],0)) -> 2,000.00 лв. | L26: =INDEX(ПланираниЗаМаркетинг[],MATCH(INDEX(РазликиЗаМаркетинг[],ROW()-ROW(РазликиЗаМаркетинг[[#Headers],[Окт]]),1),INDEX(ПланираниЗаМаркетинг[],,1),0),MATCH(РазликиЗаМаркетинг[[#Headers],[Окт]],ПланираниЗаМаркетинг[#Headers],0))-INDEX(ДействителниЗаМаркетинг[],MATCH(INDEX(РазликиЗаМаркетинг[],ROW()-ROW(РазликиЗаМаркетинг[[#Headers],[Окт]]),1),INDEX(ПланираниЗаМаркетинг[],,1),0),MATCH(РазликиЗаМаркетинг[[#Headers],[Окт]],ДействителниЗаМаркетинг[#Headers],0)) -> 2,000.00 лв. | M26: =INDEX(ПланираниЗаМаркетинг[],MATCH(INDEX(РазликиЗаМаркетинг[],ROW()-ROW(РазликиЗаМаркетинг[[#Headers],[Ное]]),1),INDEX(ПланираниЗаМаркетинг[],,1),0),MATCH(РазликиЗаМаркетинг[[#Headers],[Ное]],ПланираниЗаМаркетинг[#Headers],0))-INDEX(ДействителниЗаМаркетинг[],MATCH(INDEX(РазликиЗаМаркетинг[],ROW()-ROW(РазликиЗаМаркетинг[[#Headers],[Ное]]),1),INDEX(ПланираниЗаМаркетинг[],,1),0),MATCH(РазликиЗаМаркетинг[[#Headers],[Ное]],ДействителниЗаМаркетинг[#Headers],0)) -> 2,000.00 лв. | N26: =INDEX(ПланираниЗаМаркетинг[],MATCH(INDEX(РазликиЗаМаркетинг[],ROW()-ROW(РазликиЗаМаркетинг[[#Headers],[Дек]]),1),INDEX(ПланираниЗаМаркетинг[],,1),0),MATCH(РазликиЗаМаркетинг[[#Headers],[Дек]],ПланираниЗаМаркетинг[#Headers],0))-INDEX(ДействителниЗаМаркетинг[],MATCH(INDEX(РазликиЗаМаркетинг[],ROW()-ROW(РазликиЗаМаркетинг[[#Headers],[Дек]]),1),INDEX(ПланираниЗаМаркетинг[],,1),0),MATCH(РазликиЗаМаркетинг[[#Headers],[Дек]],ДействителниЗаМаркетинг[#Headers],0)) -> 5,000.00 лв. | O26: =SUM(РазликиЗаМаркетинг[[#This Row],[Янр]:[Дек]]) -> 18,300.00 лв.
B27: Разни разходи | C27: =INDEX(ПланираниЗаМаркетинг[],MATCH(INDEX(РазликиЗаМаркетинг[],ROW()-ROW(РазликиЗаМаркетинг[[#Headers],[Янр]]),1),INDEX(ПланираниЗаМаркетинг[],,1),0),MATCH(РазликиЗаМаркетинг[[#Headers],[Янр]],ПланираниЗаМаркетинг[#Headers],0))-INDEX(ДействителниЗаМаркетинг[],MATCH(INDEX(РазликиЗаМаркетинг[],ROW()-ROW(РазликиЗаМаркетинг[[#Headers],[Янр]]),1),INDEX(ПланираниЗаМаркетинг[],,1),0),MATCH(РазликиЗаМаркетинг[[#Headers],[Янр]],ДействителниЗаМаркетинг[#Headers],0)) -> 55.00 лв. | D27: =INDEX(ПланираниЗаМаркетинг[],MATCH(INDEX(РазликиЗаМаркетинг[],ROW()-ROW(РазликиЗаМаркетинг[[#Headers],[Фев]]),1),INDEX(ПланираниЗаМаркетинг[],,1),0),MATCH(РазликиЗаМаркетинг[[#Headers],[Фев]],ПланираниЗаМаркетинг[#Headers],0))-INDEX(ДействителниЗаМаркетинг[],MATCH(INDEX(РазликиЗаМаркетинг[],ROW()-ROW(РазликиЗаМаркетинг[[#Headers],[Фев]]),1),INDEX(ПланираниЗаМаркетинг[],,1),0),MATCH(РазликиЗаМаркетинг[[#Headers],[Фев]],ДействителниЗаМаркетинг[#Headers],0)) -> 44.00 лв. | E27: =INDEX(ПланираниЗаМаркетинг[],MATCH(INDEX(РазликиЗаМаркетинг[],ROW()-ROW(РазликиЗаМаркетинг[[#Headers],[Мар]]),1),INDEX(ПланираниЗаМаркетинг[],,1),0),MATCH(РазликиЗаМаркетинг[[#Headers],[Мар]],ПланираниЗаМаркетинг[#Headers],0))-INDEX(ДействителниЗаМаркетинг[],MATCH(INDEX(РазликиЗаМаркетинг[],ROW()-ROW(РазликиЗаМаркетинг[[#Headers],[Мар]]),1),INDEX(ПланираниЗаМаркетинг[],,1),0),MATCH(РазликиЗаМаркетинг[[#Headers],[Мар]],ДействителниЗаМаркетинг[#Headers],0)) -> 77.00 лв. | F27: =INDEX(ПланираниЗаМаркетинг[],MATCH(INDEX(РазликиЗаМаркетинг[],ROW()-ROW(РазликиЗаМаркетинг[[#Headers],[Апр]]),1),INDEX(ПланираниЗаМаркетинг[],,1),0),MATCH(РазликиЗаМаркетинг[[#Headers],[Апр]],ПланираниЗаМаркетинг[#Headers],0))-INDEX(ДействителниЗаМаркетинг[],MATCH(INDEX(РазликиЗаМаркетинг[],ROW()-ROW(РазликиЗаМаркетинг[[#Headers],[Апр]]),1),INDEX(ПланираниЗаМаркетинг[],,1),0),MATCH(РазликиЗаМаркетинг[[#Headers],[Апр]],ДействителниЗаМаркетинг[#Headers],0)) -> -23.00 лв. | G27: =INDEX(ПланираниЗаМаркетинг[],MATCH(INDEX(РазликиЗаМаркетинг[],ROW()-ROW(РазликиЗаМаркетинг[[#Headers],[Май]]),1),INDEX(ПланираниЗаМаркетинг[],,1),0),MATCH(РазликиЗаМаркетинг[[#Headers],[Май]],ПланираниЗаМаркетинг[#Headers],0))-INDEX(ДействителниЗаМаркетинг[],MATCH(INDEX(РазликиЗаМаркетинг[],ROW()-ROW(РазликиЗаМаркетинг[[#Headers],[Май]]),1),INDEX(ПланираниЗаМаркетинг[],,1),0),MATCH(РазликиЗаМаркетинг[[#Headers],[Май]],ДействителниЗаМаркетинг[#Headers],0)) -> 13.00 лв. | H27: =INDEX(ПланираниЗаМаркетинг[],MATCH(INDEX(РазликиЗаМаркетинг[],ROW()-ROW(РазликиЗаМаркетинг[[#Headers],[Юни]]),1),INDEX(ПланираниЗаМаркетинг[],,1),0),MATCH(РазликиЗаМаркетинг[[#Headers],[Юни]],ПланираниЗаМаркетинг[#Headers],0))-INDEX(ДействителниЗаМаркетинг[],MATCH(INDEX(РазликиЗаМаркетинг[],ROW()-ROW(РазликиЗаМаркетинг[[#Headers],[Юни]]),1),INDEX(ПланираниЗаМаркетинг[],,1),0),MATCH(РазликиЗаМаркетинг[[#Headers],[Юни]],ДействителниЗаМаркетинг[#Headers],0)) -> -45.00 лв. | I27: =INDEX(ПланираниЗаМаркетинг[],MATCH(INDEX(РазликиЗаМаркетинг[],ROW()-ROW(РазликиЗаМаркетинг[[#Headers],[Юли]]),1),INDEX(ПланираниЗаМаркетинг[],,1),0),MATCH(РазликиЗаМаркетинг[[#Headers],[Юли]],ПланираниЗаМаркетинг[#Headers],0))-INDEX(ДействителниЗаМаркетинг[],MATCH(INDEX(РазликиЗаМаркетинг[],ROW()-ROW(РазликиЗаМаркетинг[[#Headers],[Юли]]),1),INDEX(ПланираниЗаМаркетинг[],,1),0),MATCH(РазликиЗаМаркетинг[[#Headers],[Юли]],ДействителниЗаМаркетинг[#Headers],0)) -> 200.00 лв. | J27: =INDEX(ПланираниЗаМаркетинг[],MATCH(INDEX(РазликиЗаМаркетинг[],ROW()-ROW(РазликиЗаМаркетинг[[#Headers],[Авг]]),1),INDEX(ПланираниЗаМаркетинг[],,1),0),MATCH(РазликиЗаМаркетинг[[#Headers],[Авг]],ПланираниЗаМаркетинг[#Headers],0))-INDEX(ДействителниЗаМаркетинг[],MATCH(INDEX(РазликиЗаМаркетинг[],ROW()-ROW(РазликиЗаМаркетинг[[#Headers],[Авг]]),1),INDEX(ПланираниЗаМаркетинг[],,1),0),MATCH(РазликиЗаМаркетинг[[#Headers],[Авг]],ДействителниЗаМаркетинг[#Headers],0)) -> 200.00 лв. | K27: =INDEX(ПланираниЗаМаркетинг[],MATCH(INDEX(РазликиЗаМаркетинг[],ROW()-ROW(РазликиЗаМаркетинг[[#Headers],[Сеп]]),1),INDEX(ПланираниЗаМаркетинг[],,1),0),MATCH(РазликиЗаМаркетинг[[#Headers],[Сеп]],ПланираниЗаМаркетинг[#Headers],0))-INDEX(ДействителниЗаМаркетинг[],MATCH(INDEX(РазликиЗаМаркетинг[],ROW()-ROW(РазликиЗаМаркетинг[[#Headers],[Сеп]]),1),INDEX(ПланираниЗаМаркетинг[],,1),0),MATCH(РазликиЗаМаркетинг[[#Headers],[Сеп]],ДействителниЗаМаркетинг[#Headers],0)) -> 200.00 лв. | L27: =INDEX(ПланираниЗаМаркетинг[],MATCH(INDEX(РазликиЗаМаркетинг[],ROW()-ROW(РазликиЗаМаркетинг[[#Headers],[Окт]]),1),INDEX(ПланираниЗаМаркетинг[],,1),0),MATCH(РазликиЗаМаркетинг[[#Headers],[Окт]],ПланираниЗаМаркетинг[#Headers],0))-INDEX(ДействителниЗаМаркетинг[],MATCH(INDEX(РазликиЗаМаркетинг[],ROW()-ROW(РазликиЗаМаркетинг[[#Headers],[Окт]]),1),INDEX(ПланираниЗаМаркетинг[],,1),0),MATCH(РазликиЗаМаркетинг[[#Headers],[Окт]],ДействителниЗаМаркетинг[#Headers],0)) -> 200.00 лв. | M27: =INDEX(ПланираниЗаМаркетинг[],MATCH(INDEX(РазликиЗаМаркетинг[],ROW()-ROW(РазликиЗаМаркетинг[[#Headers],[Ное]]),1),INDEX(ПланираниЗаМаркетинг[],,1),0),MATCH(РазликиЗаМаркетинг[[#Headers],[Ное]],ПланираниЗаМаркетинг[#Headers],0))-INDEX(ДействителниЗаМаркетинг[],MATCH(INDEX(РазликиЗаМаркетинг[],ROW()-ROW(РазликиЗаМаркетинг[[#Headers],[Ное]]),1),INDEX(ПланираниЗаМаркетинг[],,1),0),MATCH(РазликиЗаМаркетинг[[#Headers],[Ное]],ДействителниЗаМаркетинг[#Headers],0)) -> 200.00 лв. | N27: =INDEX(ПланираниЗаМаркетинг[],MATCH(INDEX(РазликиЗаМаркетинг[],ROW()-ROW(РазликиЗаМаркетинг[[#Headers],[Дек]]),1),INDEX(ПланираниЗаМаркетинг[],,1),0),MATCH(РазликиЗаМаркетинг[[#Headers],[Дек]],ПланираниЗаМаркетинг[#Headers],0))-INDEX(ДействителниЗаМаркетинг[],MATCH(INDEX(РазликиЗаМаркетинг[],ROW()-ROW(РазликиЗаМаркетинг[[#Headers],[Дек]]),1),INDEX(ПланираниЗаМаркетинг[],,1),0),MATCH(РазликиЗаМаркетинг[[#Headers],[Дек]],ДействителниЗаМаркетинг[#Headers],0)) -> 200.00 лв. | O27: =SUM(РазликиЗаМаркетинг[[#This Row],[Янр]:[Дек]]) -> 1,321.00 лв.
B28: Междинна сума | C28: =SUBTOTAL(109,РазликиЗаМаркетинг[Янр]) -> 555.00 лв. | D28: =SUBTOTAL(109,РазликиЗаМаркетинг[Фев]) -> -456.00 лв. | E28: =SUBTOTAL(109,РазликиЗаМаркетинг[Мар]) -> -23.00 лв. | F28: =SUBTOTAL(109,РазликиЗаМаркетинг[Апр]) -> -123.00 лв. | G28: =SUBTOTAL(109,РазликиЗаМаркетинг[Май]) -> 113.00 лв. | H28: =SUBTOTAL(109,РазликиЗаМаркетинг[Юни]) -> -825.00 лв. | I28: =SUBTOTAL(109,РазликиЗаМаркетинг[Юли]) -> 8,100.00 лв. | J28: =SUBTOTAL(109,РазликиЗаМаркетинг[Авг]) -> 6,100.00 лв. | K28: =SUBTOTAL(109,РазликиЗаМаркетинг[Сеп]) -> 3,100.00 лв. | L28: =SUBTOTAL(109,РазликиЗаМаркетинг[Окт]) -> 8,100.00 лв. | M28: =SUBTOTAL(109,РазликиЗаМаркетинг[Ное]) -> 3,100.00 лв. | N28: =SUBTOTAL(109,РазликиЗаМаркетинг[Дек]) -> 6,900.00 лв. | O28: =SUBTOTAL(109,РазликиЗаМаркетинг[ГОДИНА]) -> 34,641.00 лв.
A30: Разликата в разходите за обучения или пътувания се изчислява автоматично в таблицата "Разлики за обучения ип ътувания", започваща от клетката вдясно. Следващата инструкция е в клетка A35. | B30: Обучения/пътувания | C30: Янр | D30: Фев | E30: Мар | F30: Апр | G30: Май | H30: Юни | I30: Юли | J30: Авг | K30: Сеп | L30: Окт | M30: Ное | N30: Дек | O30: ГОДИНА
B31: Курсове за обучение | C31: =INDEX(ПланираниЗаОбученияИПътувания[],MATCH(INDEX(РазликиЗаОбученияИПътувания[],ROW()-ROW(РазликиЗаОбученияИПътувания[[#Headers],[Янр]]),1),INDEX(ПланираниЗаОбученияИПътувания[],,1),0),MATCH(РазликиЗаОбученияИПътувания[[#Headers],[Янр]],ПланираниЗаОбученияИПътувания[#Headers],0))-INDEX(ДействителниЗаОбученияИПътувания[],MATCH(INDEX(РазликиЗаОбученияИПътувания[],ROW()-ROW(РазликиЗаОбученияИПътувания[[#Headers],[Янр]]),1),INDEX(ПланираниЗаОбученияИПътувания[],,1),0),MATCH(РазликиЗаОбученияИПътувания[[#Headers],[Янр]],ДействителниЗаОбученияИПътувания[#Headers],0)) -> 400.00 лв. | D31: =INDEX(ПланираниЗаОбученияИПътувания[],MATCH(INDEX(РазликиЗаОбученияИПътувания[],ROW()-ROW(РазликиЗаОбученияИПътувания[[#Headers],[Фев]]),1),INDEX(ПланираниЗаОбученияИПътувания[],,1),0),MATCH(РазликиЗаОбученияИПътувания[[#Headers],[Фев]],ПланираниЗаОбученияИПътувания[#Headers],0))-INDEX(ДействителниЗаОбученияИПътувания[],MATCH(INDEX(РазликиЗаОбученияИПътувания[],ROW()-ROW(РазликиЗаОбученияИПътувания[[#Headers],[Фев]]),1),INDEX(ПланираниЗаОбученияИПътувания[],,1),0),MATCH(РазликиЗаОбученияИПътувания[[#Headers],[Фев]],ДействителниЗаОбученияИПътувания[#Headers],0)) -> -400.00 лв. | E31: =INDEX(ПланираниЗаОбученияИПътувания[],MATCH(INDEX(РазликиЗаОбученияИПътувания[],ROW()-ROW(РазликиЗаОбученияИПътувания[[#Headers],[Мар]]),1),INDEX(ПланираниЗаОбученияИПътувания[],,1),0),MATCH(РазликиЗаОбученияИПътувания[[#Headers],[Мар]],ПланираниЗаОбученияИПътувания[#Headers],0))-INDEX(ДействителниЗаОбученияИПътувания[],MATCH(INDEX(РазликиЗаОбученияИПътувания[],ROW()-ROW(РазликиЗаОбученияИПътувания[[#Headers],[Мар]]),1),INDEX(ПланираниЗаОбученияИПътувания[],,1),0),MATCH(РазликиЗаОбученияИПътувания[[#Headers],[Мар]],ДействителниЗаОбученияИПътувания[#Headers],0)) -> 600.00 лв. | F31: =INDEX(ПланираниЗаОбученияИПътувания[],MATCH(INDEX(РазликиЗаОбученияИПътувания[],ROW()-ROW(РазликиЗаОбученияИПътувания[[#Headers],[Апр]]),1),INDEX(ПланираниЗаОбученияИПътувания[],,1),0),MATCH(РазликиЗаОбученияИПътувания[[#Headers],[Апр]],ПланираниЗаОбученияИПътувания[#Headers],0))-INDEX(ДействителниЗаОбученияИПътувания[],MATCH(INDEX(РазликиЗаОбученияИПътувания[],ROW()-ROW(РазликиЗаОбученияИПътувания[[#Headers],[Апр]]),1),INDEX(ПланираниЗаОбученияИПътувания[],,1),0),MATCH(РазликиЗаОбученияИПътувания[[#Headers],[Апр]],ДействителниЗаОбученияИПътувания[#Headers],0)) -> 400.00 лв. | G31: =INDEX(ПланираниЗаОбученияИПътувания[],MATCH(INDEX(РазликиЗаОбученияИПътувания[],ROW()-ROW(РазликиЗаОбученияИПътувания[[#Headers],[Май]]),1),INDEX(ПланираниЗаОбученияИПътувания[],,1),0),MATCH(РазликиЗаОбученияИПътувания[[#Headers],[Май]],ПланираниЗаОбученияИПътувания[#Headers],0))-INDEX(ДействителниЗаОбученияИПътувания[],MATCH(INDEX(РазликиЗаОбученияИПътувания[],ROW()-ROW(РазликиЗаОбученияИПътувания[[#Headers],[Май]]),1),INDEX(ПланираниЗаОбученияИПътувания[],,1),0),MATCH(РазликиЗаОбученияИПътувания[[#Headers],[Май]],ДействителниЗаОбученияИПътувания[#Headers],0)) -> 800.00 лв. | H31: =INDEX(ПланираниЗаОбученияИПътувания[],MATCH(INDEX(РазликиЗаОбученияИПътувания[],ROW()-ROW(РазликиЗаОбученияИПътувания[[#Headers],[Юни]]),1),INDEX(ПланираниЗаОбученияИПътувания[],,1),0),MATCH(РазликиЗаОбученияИПътувания[[#Headers],[Юни]],ПланираниЗаОбученияИПътувания[#Headers],0))-INDEX(ДействителниЗаОбученияИПътувания[],MATCH(INDEX(РазликиЗаОбученияИПътувания[],ROW()-ROW(РазликиЗаОбученияИПътувания[[#Headers],[Юни]]),1),INDEX(ПланираниЗаОбученияИПътувания[],,1),0),MATCH(РазликиЗаОбученияИПътувания[[#Headers],[Юни]],ДействителниЗаОбученияИПътувания[#Headers],0)) -> -800.00 лв. | I31: =INDEX(ПланираниЗаОбученияИПътувания[],MATCH(INDEX(РазликиЗаОбученияИПътувания[],ROW()-ROW(РазликиЗаОбученияИПътувания[[#Headers],[Юли]]),1),INDEX(ПланираниЗаОбученияИПътувания[],,1),0),MATCH(РазликиЗаОбученияИПътувания[[#Headers],[Юли]],ПланираниЗаОбученияИПътувания[#Headers],0))-INDEX(ДействителниЗаОбученияИПътувания[],MATCH(INDEX(РазликиЗаОбученияИПътувания[],ROW()-ROW(РазликиЗаОбученияИПътувания[[#Headers],[Юли]]),1),INDEX(ПланираниЗаОбученияИПътувания[],,1),0),MATCH(РазликиЗаОбученияИПътувания[[#Headers],[Юли]],ДействителниЗаОбученияИПътувания[#Headers],0)) -> 2,000.00 лв. | J31: =INDEX(ПланираниЗаОбученияИПътувания[],MATCH(INDEX(РазликиЗаОбученияИПътувания[],ROW()-ROW(РазликиЗаОбученияИПътувания[[#Headers],[Авг]]),1),INDEX(ПланираниЗаОбученияИПътувания[],,1),0),MATCH(РазликиЗаОбученияИПътувания[[#Headers],[Авг]],ПланираниЗаОбученияИПътувания[#Headers],0))-INDEX(ДействителниЗаОбученияИПътувания[],MATCH(INDEX(РазликиЗаОбученияИПътувания[],ROW()-ROW(РазликиЗаОбученияИПътувания[[#Headers],[Авг]]),1),INDEX(ПланираниЗаОбученияИПътувания[],,1),0),MATCH(РазликиЗаОбученияИПътувания[[#Headers],[Авг]],ДействителниЗаОбученияИПътувания[#Headers],0)) -> 2,000.00 лв. | K31: =INDEX(ПланираниЗаОбученияИПътувания[],MATCH(INDEX(РазликиЗаОбученияИПътувания[],ROW()-ROW(РазликиЗаОбученияИПътувания[[#Headers],[Сеп]]),1),INDEX(ПланираниЗаОбученияИПътувания[],,1),0),MATCH(РазликиЗаОбученияИПътувания[[#Headers],[Сеп]],ПланираниЗаОбученияИПътувания[#Headers],0))-INDEX(ДействителниЗаОбученияИПътувания[],MATCH(INDEX(РазликиЗаОбученияИПътувания[],ROW()-ROW(РазликиЗаОбученияИПътувания[[#Headers],[Сеп]]),1),INDEX(ПланираниЗаОбученияИПътувания[],,1),0),MATCH(РазликиЗаОбученияИПътувания[[#Headers],[Сеп]],ДействителниЗаОбученияИПътувания[#Headers],0)) -> 2,000.00 лв. | L31: =INDEX(ПланираниЗаОбученияИПътувания[],MATCH(INDEX(РазликиЗаОбученияИПътувания[],ROW()-ROW(РазликиЗаОбученияИПътувания[[#Headers],[Окт]]),1),INDEX(ПланираниЗаОбученияИПътувания[],,1),0),MATCH(РазликиЗаОбученияИПътувания[[#Headers],[Окт]],ПланираниЗаОбученияИПътувания[#Headers],0))-INDEX(ДействителниЗаОбученияИПътувания[],MATCH(INDEX(РазликиЗаОбученияИПътувания[],ROW()-ROW(РазликиЗаОбученияИПътувания[[#Headers],[Окт]]),1),INDEX(ПланираниЗаОбученияИПътувания[],,1),0),MATCH(РазликиЗаОбученияИПътувания[[#Headers],[Окт]],ДействителниЗаОбученияИПътувания[#Headers],0)) -> 2,000.00 лв. | M31: =INDEX(ПланираниЗаОбученияИПътувания[],MATCH(INDEX(РазликиЗаОбученияИПътувания[],ROW()-ROW(РазликиЗаОбученияИПътувания[[#Headers],[Ное]]),1),INDEX(ПланираниЗаОбученияИПътувания[],,1),0),MATCH(РазликиЗаОбученияИПътувания[[#Headers],[Ное]],ПланираниЗаОбученияИПътувания[#Headers],0))-INDEX(ДействителниЗаОбученияИПътувания[],MATCH(INDEX(РазликиЗаОбученияИПътувания[],ROW()-ROW(РазликиЗаОбученияИПътувания[[#Headers],[Ное]]),1),INDEX(ПланираниЗаОбученияИПътувания[],,1),0),MATCH(РазликиЗаОбученияИПътувания[[#Headers],[Ное]],ДействителниЗаОбученияИПътувания[#Headers],0)) -> 2,000.00 лв. | N31: =INDEX(ПланираниЗаОбученияИПътувания[],MATCH(INDEX(РазликиЗаОбученияИПътувания[],ROW()-ROW(РазликиЗаОбученияИПътувания[[#Headers],[Дек]]),1),INDEX(ПланираниЗаОбученияИПътувания[],,1),0),MATCH(РазликиЗаОбученияИПътувания[[#Headers],[Дек]],ПланираниЗаОбученияИПътувания[#Headers],0))-INDEX(ДействителниЗаОбученияИПътувания[],MATCH(INDEX(РазликиЗаОбученияИПътувания[],ROW()-ROW(РазликиЗаОбученияИПътувания[[#Headers],[Дек]]),1),INDEX(ПланираниЗаОбученияИПътувания[],,1),0),MATCH(РазликиЗаОбученияИПътувания[[#Headers],[Дек]],ДействителниЗаОбученияИПътувания[#Headers],0)) -> 2,000.00 лв. | O31: =SUM(РазликиЗаОбученияИПътувания[[#This Row],[Янр]:[Дек]]) -> 13,000.00 лв.
B32: Пътни разходи, свързани с обучение | C32: =INDEX(ПланираниЗаОбученияИПътувания[],MATCH(INDEX(РазликиЗаОбученияИПътувания[],ROW()-ROW(РазликиЗаОбученияИПътувания[[#Headers],[Янр]]),1),INDEX(ПланираниЗаОбученияИПътувания[],,1),0),MATCH(РазликиЗаОбученияИПътувания[[#Headers],[Янр]],ПланираниЗаОбученияИПътувания[#Headers],0))-INDEX(ДействителниЗаОбученияИПътувания[],MATCH(INDEX(РазликиЗаОбученияИПътувания[],ROW()-ROW(РазликиЗаОбученияИПътувания[[#Headers],[Янр]]),1),INDEX(ПланираниЗаОбученияИПътувания[],,1),0),MATCH(РазликиЗаОбученияИПътувания[[#Headers],[Янр]],ДействителниЗаОбученияИПътувания[#Headers],0)) -> 800.00 лв. | D32: =INDEX(ПланираниЗаОбученияИПътувания[],MATCH(INDEX(РазликиЗаОбученияИПътувания[],ROW()-ROW(РазликиЗаОбученияИПътувания[[#Headers],[Фев]]),1),INDEX(ПланираниЗаОбученияИПътувания[],,1),0),MATCH(РазликиЗаОбученияИПътувания[[#Headers],[Фев]],ПланираниЗаОбученияИПътувания[#Headers],0))-INDEX(ДействителниЗаОбученияИПътувания[],MATCH(INDEX(РазликиЗаОбученияИПътувания[],ROW()-ROW(РазликиЗаОбученияИПътувания[[#Headers],[Фев]]),1),INDEX(ПланираниЗаОбученияИПътувания[],,1),0),MATCH(РазликиЗаОбученияИПътувания[[#Headers],[Фев]],ДействителниЗаОбученияИПътувания[#Headers],0)) -> -200.00 лв. | E32: =INDEX(ПланираниЗаОбученияИПътувания[],MATCH(INDEX(РазликиЗаОбученияИПътувания[],ROW()-ROW(РазликиЗаОбученияИПътувания[[#Headers],[Мар]]),1),INDEX(ПланираниЗаОбученияИПътувания[],,1),0),MATCH(РазликиЗаОбученияИПътувания[[#Headers],[Мар]],ПланираниЗаОбученияИПътувания[#Headers],0))-INDEX(ДействителниЗаОбученияИПътувания[],MATCH(INDEX(РазликиЗаОбученияИПътувания[],ROW()-ROW(РазликиЗаОбученияИПътувания[[#Headers],[Мар]]),1),INDEX(ПланираниЗаОбученияИПътувания[],,1),0),MATCH(РазликиЗаОбученияИПътувания[[#Headers],[Мар]],ДействителниЗаОбученияИПътувания[#Headers],0)) -> 600.00 лв. | F32: =INDEX(ПланираниЗаОбученияИПътувания[],MATCH(INDEX(РазликиЗаОбученияИПътувания[],ROW()-ROW(РазликиЗаОбученияИПътувания[[#Headers],[Апр]]),1),INDEX(ПланираниЗаОбученияИПътувания[],,1),0),MATCH(РазликиЗаОбученияИПътувания[[#Headers],[Апр]],ПланираниЗаОбученияИПътувания[#Headers],0))-INDEX(ДействителниЗаОбученияИПътувания[],MATCH(INDEX(РазликиЗаОбученияИПътувания[],ROW()-ROW(РазликиЗаОбученияИПътувания[[#Headers],[Апр]]),1),INDEX(ПланираниЗаОбученияИПътувания[],,1),0),MATCH(РазликиЗаОбученияИПътувания[[#Headers],[Апр]],ДействителниЗаОбученияИПътувания[#Headers],0)) -> 800.00 лв. | G32: =INDEX(ПланираниЗаОбученияИПътувания[],MATCH(INDEX(РазликиЗаОбученияИПътувания[],ROW()-ROW(РазликиЗаОбученияИПътувания[[#Headers],[Май]]),1),INDEX(ПланираниЗаОбученияИПътувания[],,1),0),MATCH(РазликиЗаОбученияИПътувания[[#Headers],[Май]],ПланираниЗаОбученияИПътувания[#Headers],0))-INDEX(ДействителниЗаОбученияИПътувания[],MATCH(INDEX(РазликиЗаОбученияИПътувания[],ROW()-ROW(РазликиЗаОбученияИПътувания[[#Headers],[Май]]),1),INDEX(ПланираниЗаОбученияИПътувания[],,1),0),MATCH(РазликиЗаОбученияИПътувания[[#Headers],[Май]],ДействителниЗаОбученияИПътувания[#Headers],0)) -> 1,200.00 лв. | H32: =INDEX(ПланираниЗаОбученияИПътувания[],MATCH(INDEX(РазликиЗаОбученияИПътувания[],ROW()-ROW(РазликиЗаОбученияИПътувания[[#Headers],[Юни]]),1),INDEX(ПланираниЗаОбученияИПътувания[],,1),0),MATCH(РазликиЗаОбученияИПътувания[[#Headers],[Юни]],ПланираниЗаОбученияИПътувания[#Headers],0))-INDEX(ДействителниЗаОбученияИПътувания[],MATCH(INDEX(РазликиЗаОбученияИПътувания[],ROW()-ROW(РазликиЗаОбученияИПътувания[[#Headers],[Юни]]),1),INDEX(ПланираниЗаОбученияИПътувания[],,1),0),MATCH(РазликиЗаОбученияИПътувания[[#Headers],[Юни]],ДействителниЗаОбученияИПътувания[#Headers],0)) -> -1,500.00 лв. | I32: =INDEX(ПланираниЗаОбученияИПътувания[],MATCH(INDEX(РазликиЗаОбученияИПътувания[],ROW()-ROW(РазликиЗаОбученияИПътувания[[#Headers],[Юли]]),1),INDEX(ПланираниЗаОбученияИПътувания[],,1),0),MATCH(РазликиЗаОбученияИПътувания[[#Headers],[Юли]],ПланираниЗаОбученияИПътувания[#Headers],0))-INDEX(ДействителниЗаОбученияИПътувания[],MATCH(INDEX(РазликиЗаОбученияИПътувания[],ROW()-ROW(РазликиЗаОбученияИПътувания[[#Headers],[Юли]]),1),INDEX(ПланираниЗаОбученияИПътувания[],,1),0),MATCH(РазликиЗаОбученияИПътувания[[#Headers],[Юли]],ДействителниЗаОбученияИПътувания[#Headers],0)) -> 2,000.00 лв. | J32: =INDEX(ПланираниЗаОбученияИПътувания[],MATCH(INDEX(РазликиЗаОбученияИПътувания[],ROW()-ROW(РазликиЗаОбученияИПътувания[[#Headers],[Авг]]),1),INDEX(ПланираниЗаОбученияИПътувания[],,1),0),MATCH(РазликиЗаОбученияИПътувания[[#Headers],[Авг]],ПланираниЗаОбученияИПътувания[#Headers],0))-INDEX(ДействителниЗаОбученияИПътувания[],MATCH(INDEX(РазликиЗаОбученияИПътувания[],ROW()-ROW(РазликиЗаОбученияИПътувания[[#Headers],[Авг]]),1),INDEX(ПланираниЗаОбученияИПътувания[],,1),0),MATCH(РазликиЗаОбученияИПътувания[[#Headers],[Авг]],ДействителниЗаОбученияИПътувания[#Headers],0)) -> 2,000.00 лв. | K32: =INDEX(ПланираниЗаОбученияИПътувания[],MATCH(INDEX(РазликиЗаОбученияИПътувания[],ROW()-ROW(РазликиЗаОбученияИПътувания[[#Headers],[Сеп]]),1),INDEX(ПланираниЗаОбученияИПътувания[],,1),0),MATCH(РазликиЗаОбученияИПътувания[[#Headers],[Сеп]],ПланираниЗаОбученияИПътувания[#Headers],0))-INDEX(ДействителниЗаОбученияИПътувания[],MATCH(INDEX(РазликиЗаОбученияИПътувания[],ROW()-ROW(РазликиЗаОбученияИПътувания[[#Headers],[Сеп]]),1),INDEX(ПланираниЗаОбученияИПътувания[],,1),0),MATCH(РазликиЗаОбученияИПътувания[[#Headers],[Сеп]],ДействителниЗаОбученияИПътувания[#Headers],0)) -> 2,000.00 лв. | L32: =INDEX(ПланираниЗаОбученияИПътувания[],MATCH(INDEX(РазликиЗаОбученияИПътувания[],ROW()-ROW(РазликиЗаОбученияИПътувания[[#Headers],[Окт]]),1),INDEX(ПланираниЗаОбученияИПътувания[],,1),0),MATCH(РазликиЗаОбученияИПътувания[[#Headers],[Окт]],ПланираниЗаОбученияИПътувания[#Headers],0))-INDEX(ДействителниЗаОбученияИПътувания[],MATCH(INDEX(РазликиЗаОбученияИПътувания[],ROW()-ROW(РазликиЗаОбученияИПътувания[[#Headers],[Окт]]),1),INDEX(ПланираниЗаОбученияИПътувания[],,1),0),MATCH(РазликиЗаОбученияИПътувания[[#Headers],[Окт]],ДействителниЗаОбученияИПътувания[#Headers],0)) -> 2,000.00 лв. | M32: =INDEX(ПланираниЗаОбученияИПътувания[],MATCH(INDEX(РазликиЗаОбученияИПътувания[],ROW()-ROW(РазликиЗаОбученияИПътувания[[#Headers],[Ное]]),1),INDEX(ПланираниЗаОбученияИПътувания[],,1),0),MATCH(РазликиЗаОбученияИПътувания[[#Headers],[Ное]],ПланираниЗаОбученияИПътувания[#Headers],0))-INDEX(ДействителниЗаОбученияИПътувания[],MATCH(INDEX(РазликиЗаОбученияИПътувания[],ROW()-ROW(РазликиЗаОбученияИПътувания[[#Headers],[Ное]]),1),INDEX(ПланираниЗаОбученияИПътувания[],,1),0),MATCH(РазликиЗаОбученияИПътувания[[#Headers],[Ное]],ДействителниЗаОбученияИПътувания[#Headers],0)) -> 2,000.00 лв. | N32: =INDEX(ПланираниЗаОбученияИПътувания[],MATCH(INDEX(РазликиЗаОбученияИПътувания[],ROW()-ROW(РазликиЗаОбученияИПътувания[[#Headers],[Дек]]),1),INDEX(ПланираниЗаОбученияИПътувания[],,1),0),MATCH(РазликиЗаОбученияИПътувания[[#Headers],[Дек]],ПланираниЗаОбученияИПътувания[#Headers],0))-INDEX(ДействителниЗаОбученияИПътувания[],MATCH(INDEX(РазликиЗаОбученияИПътувания[],ROW()-ROW(РазликиЗаОбученияИПътувания[[#Headers],[Дек]]),1),INDEX(ПланираниЗаОбученияИПътувания[],,1),0),MATCH(РазликиЗаОбученияИПътувания[[#Headers],[Дек]],ДействителниЗаОбученияИПътувания[#Headers],0)) -> 2,000.00 лв. | O32: =SUM(РазликиЗаОбученияИПътувания[[#This Row],[Янр]:[Дек]]) -> 13,700.00 лв.
B33: Междинна сума | C33: =SUBTOTAL(109,РазликиЗаОбученияИПътувания[Янр]) -> 1,200.00 лв. | D33: =SUBTOTAL(109,РазликиЗаОбученияИПътувания[Фев]) -> -600.00 лв. | E33: =SUBTOTAL(109,РазликиЗаОбученияИПътувания[Мар]) -> 1,200.00 лв. | F33: =SUBTOTAL(109,РазликиЗаОбученияИПътувания[Апр]) -> 1,200.00 лв. | G33: =SUBTOTAL(109,РазликиЗаОбученияИПътувания[Май]) -> 2,000.00 лв. | H33: =SUBTOTAL(109,РазликиЗаОбученияИПътувания[Юни]) -> -2,300.00 лв. | I33: =SUBTOTAL(109,РазликиЗаОбученияИПътувания[Юли]) -> 4,000.00 лв. | J33: =SUBTOTAL(109,РазликиЗаОбученияИПътувания[Авг]) -> 4,000.00 лв. | K33: =SUBTOTAL(109,РазликиЗаОбученияИПътувания[Сеп]) -> 4,000.00 лв. | L33: =SUBTOTAL(109,РазликиЗаОбученияИПътувания[Окт]) -> 4,000.00 лв. | M33: =SUBTOTAL(109,РазликиЗаОбученияИПътувания[Ное]) -> 4,000.00 лв. | N33: =SUBTOTAL(109,РазликиЗаОбученияИПътувания[Дек]) -> 4,000.00 лв. | O33: =SUBTOTAL(109,РазликиЗаОбученияИПътувания[ГОДИНА]) -> 26,700.00 лв.
A35: Разлики в разходите се изчисляват автоматично в таблицата "Общи Разлики", започваща от клетката вдясно. | B35: ОБЩИ СУМИ | C35: Янр | D35: Фев | E35: Мар | F35: Апр | G35: Май | H35: Юни | I35: Юли | J35: Авг | K35: Сеп | L35: Окт | M35: Ное | N35: Дек | O35: Година
B36: Месечни действителни разходи | C36: =РазликиЗаОбученияИПътувания[[#Totals],[Янр]]+РазликиЗаМаркетинг[[#Totals],[Янр]]+РазликиЗаОфис[[#Totals],[Янр]]+РазликиЗаСлужители[[#Totals],[Янр]] -> 1,738.00 лв. | D36: =РазликиЗаОбученияИПътувания[[#Totals],[Фев]]+РазликиЗаМаркетинг[[#Totals],[Фев]]+РазликиЗаОфис[[#Totals],[Фев]]+РазликиЗаСлужители[[#Totals],[Фев]] -> -984.00 лв. | E36: =РазликиЗаОбученияИПътувания[[#Totals],[Мар]]+РазликиЗаМаркетинг[[#Totals],[Мар]]+РазликиЗаОфис[[#Totals],[Мар]]+РазликиЗаСлужители[[#Totals],[Мар]] -> 1,255.00 лв. | F36: =РазликиЗаОбученияИПътувания[[#Totals],[Апр]]+РазликиЗаМаркетинг[[#Totals],[Апр]]+РазликиЗаОфис[[#Totals],[Апр]]+РазликиЗаСлужители[[#Totals],[Апр]] -> 301.00 лв. | G36: =РазликиЗаОбученияИПътувания[[#Totals],[Май]]+РазликиЗаМаркетинг[[#Totals],[Май]]+РазликиЗаОфис[[#Totals],[Май]]+РазликиЗаСлужители[[#Totals],[Май]] -> 1,440.00 лв. | H36: =РазликиЗаОбученияИПътувания[[#Totals],[Юни]]+РазликиЗаМаркетинг[[#Totals],[Юни]]+РазликиЗаОфис[[#Totals],[Юни]]+РазликиЗаСлужители[[#Totals],[Юни]] -> -3,744.00 лв. | I36: =РазликиЗаОбученияИПътувания[[#Totals],[Юли]]+РазликиЗаМаркетинг[[#Totals],[Юли]]+РазликиЗаОфис[[#Totals],[Юли]]+РазликиЗаСлужители[[#Totals],[Юли]] -> 134,695.00 лв. | J36: =РазликиЗаОбученияИПътувания[[#Totals],[Авг]]+РазликиЗаМаркетинг[[#Totals],[Авг]]+РазликиЗаОфис[[#Totals],[Авг]]+РазликиЗаСлужители[[#Totals],[Авг]] -> 138,918.00 лв. | K36: =РазликиЗаОбученияИПътувания[[#Totals],[Сеп]]+РазликиЗаМаркетинг[[#Totals],[Сеп]]+РазликиЗаОфис[[#Totals],[Сеп]]+РазликиЗаСлужители[[#Totals],[Сеп]] -> 135,918.00 лв. | L36: =РазликиЗаОбученияИПътувания[[#Totals],[Окт]]+РазликиЗаМаркетинг[[#Totals],[Окт]]+РазликиЗаОфис[[#Totals],[Окт]]+РазликиЗаСлужители[[#Totals],[Окт]] -> 140,918.00 лв. | M36: =РазликиЗаОбученияИПътувания[[#Totals],[Ное]]+РазликиЗаМаркетинг[[#Totals],[Ное]]+РазликиЗаОфис[[#Totals],[Ное]]+РазликиЗаСлужители[[#Totals],[Ное]] -> 136,218.00 лв. | N36: =РазликиЗаОбученияИПътувания[[#Totals],[Дек]]+РазликиЗаМаркетинг[[#Totals],[Дек]]+РазликиЗаОфис[[#Totals],[Дек]]+РазликиЗаСлужители[[#Totals],[Дек]] -> 140,018.00 лв. | O36: =РазликиЗаОбученияИПътувания[[#Totals],[ГОДИНА]]+РазликиЗаМаркетинг[[#Totals],[ГОДИНА]]+РазликиЗаОфис[[#Totals],[ГОДИНА]]+РазликиЗаСлужители[[#Totals],[ГОДИНА]] -> 826,691.00 лв.
B37: ОБЩИ действителни разходи | C37: =SUM($C$36:C36) -> 1,738.00 лв. | D37: =SUM($C$36:D36) -> 754.00 лв. | E37: =SUM($C$36:E36) -> 2,009.00 лв. | F37: =SUM($C$36:F36) -> 2,310.00 лв. | G37: =SUM($C$36:G36) -> 3,750.00 лв. | H37: =SUM($C$36:H36) -> 6.00 лв. | I37: =SUM($C$36:I36) -> 134,701.00 лв. | J37: =SUM($C$36:J36) -> 273,619.00 лв. | K37: =SUM($C$36:K36) -> 409,537.00 лв. | L37: =SUM($C$36:L36) -> 550,455.00 лв. | M37: =SUM($C$36:M36) -> 686,673.00 лв. | N37: =SUM($C$36:N36) -> 826,691.00 лв.

Sheet АНАЛИЗ НА РАЗХОДИТЕ
A1: Годишните планирани и действителни разходи, разлики в разходите и процент на разликата се актуализират автоматично за всяка категория разходи в този работен лист. Полезни инструкции как да използвате този работен лист, можете да намерите в клетките в тази колона. Натиснете стрелката надолу, за да започнете.
A2: Име на фирмата се актуализира автоматично в клетката отдясно. Добавете емблема в клетка F2. | B2: ='ПЛАНИРАНИ РАЗХОДИ'!B2:D3 -> Име на фирмата | F2: Контейнерът за емблемата е в тази клетка.
A3: Заглавието на този работен лист е в клетка E3. Следващата инструкция е в клетка A5. | E3: =заглавие_работен_лист -> Подробни прогнози за разходите
A5: Планирани разходи, действителни разходи, разликата в разходите и процентът на разликата се изчисляват автоматично в таблицата "Анализ", започваща от клетката вдясно. Следващата инструкция е в клетка A12. | B5: Категория разходи | C5: Планирани разходи | D5: Действителни разходи | E5: Разлики в разходите | F5: Процент на разликата
B6: Разходи за служители | C6: =ПланираниЗаСлужители[[#Totals],[ГОДИНА]] -> 1,355,090.00 лв. | D6: =ДействителниЗаСлужители[[#Totals],[ГОДИНА]] -> 659,130.00 лв. | E6: =C6-D6 -> 695,960.00 лв. | F6: =E6/C6 -> 51%
B7: ='ПЛАНИРАНИ РАЗХОДИ'!B10 -> Разходи за офис | C7: =ПланираниЗаОфис[[#Totals],[ГОДИНА]] -> 138,740.00 лв. | D7: =ДействителиЗаОфис[[#Totals],[ГОДИНА]] -> 69,350.00 лв. | E7: =C7-D7 -> 69,390.00 лв. | F7: =E7/C7 -> 50%
B8: ='ПЛАНИРАНИ РАЗХОДИ'!B21 -> Разходи за маркетинг | C8: =ПланираниЗаМаркетинг[[#Totals],[ГОДИНА]] -> 67,800.00 лв. | D8: =ДействителниЗаМаркетинг[[#Totals],[ГОДИНА]] -> 33,159.00 лв. | E8: =C8-D8 -> 34,641.00 лв. | F8: =E8/C8 -> 51%
B9: ='ПЛАНИРАНИ РАЗХОДИ'!B30 -> Обучения/пътувания | C9: =ПланираниЗаОбученияИПътувания[[#Totals],[ГОДИНА]] -> 48,000.00 лв. | D9: =ДействителниЗаОбученияИПътувания[[#Totals],[ГОДИНА]] -> 21,300.00 лв. | E9: =C9-D9 -> 26,700.00 лв. | F9: =E9/C9 -> 56%
B10: ='ПЛАНИРАНИ РАЗХОДИ'!B35 -> ОБЩИ СУМИ | C10: ='ПЛАНИРАНИ РАЗХОДИ'!O36 -> 1,609,630.00 лв. | D10: ='ДЕЙСТВИТЕЛНИ РАЗХОДИ'!O36 -> 782,939.00 лв. | E10: =C10-D10 -> 826,691.00 лв. | F10: =E10/C10 -> 51%
A12: Кръговата диаграма на планирани разходи е в клетката отдясно, а кръговата диаграма на действителни разходи – в клетка D12. Следващата инструкция е в клетка A14. | B12: Кръговата диаграма, показваща планираните разходи в различни категории, е в тази клетка. | D12: Кръговата диаграма, показваща действително направените разходи в различни категории, е в тази клетка.
A14: Диаграмата, показваща планирани разходи, действителни разходи и разлика между месечни разходи, е в клетката отдясно.
